Workbook

Sheet REPORT
A1: Date Selector | C1: ="REPORT DATE: "&TEXT(Criteria!$B$8,"mm/dd/yyyy") -> REPORT DATE: 05/01/2024
C3: ="MATURED UNREDEEMED SAVINGS BONDS AS OF " & UPPER(TEXT(Criteria!$B$7,"MMM d, yyyy")) -> MATURED UNREDEEMED SAVINGS BONDS AS OF APR 30, 2024
E5: BONDS ISSUED (Matured dates) | G5: ="OUTSTANDING AS OF LAST MONTH "&TEXT(EOMONTH(Criteria!$B$7,-1),"mm/d/yyyy") -> OUTSTANDING AS OF LAST MONTH 03/31/2024 | J5: ="OUTSTANDING AS OF THIS MONTH "&TEXT(Criteria!$B$7,"mm/d/yyyy") -> OUTSTANDING AS OF THIS MONTH 04/30/2024 | M5: NET
C6: ALL SERIES | E6: BONDS | F6: PAR AMOUNT | G6: BONDS | H6: PERCENT | I6: MATURITY VALUE | J6: BONDS | K6: PERCENT | L6: MATURITY VALUE | M6: CHANGE
A7: Totals for | B7: EE | C7: SERIES EE | E7: =SUMIFS(Data!E:E,Data!$A:$A,Criteria!$B$10,Data!$B:$B,$B7) -> 1263047400 | F7: =SUMIFS(Data!F:F,Data!$A:$A,Criteria!$B$10,Data!$B:$B,$B7) -> 217965527875 | G7: =SUMIFS(Data!G:G,Data!$A:$A,Criteria!$B$11,Data!$B:$B,$B7) -> 73179347 | H7: =IF(E7,G7/E7) -> 0.0579387179 | I7: =SUMIFS(Data!H:H,Data!$A:$A,Criteria!$B$11,Data!$B:$B,$B7) -> 31345306788 | J7: =SUMIFS(Data!G:G,Data!$A:$A,Criteria!$B$10,Data!$B:$B,$B7) -> 73500230 | K7: =IF(E7,J7/E7) -> 0.0581927725 | L7: =SUMIFS(Data!H:H,Data!$A:$A,Criteria!$B$10,Data!$B:$B,$B7) -> 31177772445 | M7: =J7-G7 -> 320883
A8: =Criteria!B7 -> 2024-04-30 | B8: E | C8: 40 YR SERIES E | E8: =SUMIFS(Data!E:E,Data!$A:$A,Criteria!$B$10,Data!$B:$B,$B8,Data!$I:$I,$B$21) -> 2643669565 | F8: =SUMIFS(Data!F:F,Data!$A:$A,Criteria!$B$10,Data!$B:$B,$B8,Data!$I:$I,$B$21) -> 157167834775 | G8: =SUMIFS(Data!G:G,Data!$A:$A,Criteria!$B$11,Data!$B:$B,$B8,Data!$I:$I,$B$21) -> 5672392 | H8: 0.002145650907 | I8: =SUMIFS(Data!H:H,Data!$A:$A,Criteria!$B$11,Data!$B:$B,$B8,Data!$I:$I,$B$21) -> 1825827523 | J8: =SUMIFS(Data!G:G,Data!$A:$A,Criteria!$B$10,Data!$B:$B,$B8,Data!$I:$I,40) -> 5663866 | K8: 0.002142425844 | L8: =SUMIFS(Data!H:H,Data!$A:$A,Criteria!$B$10,Data!$B:$B,$B8,Data!$I:$I,40) -> 1821872757 | M8: =J8-G8 -> -8526
B9: E | C9: 30 YR SERIES E | E9: =SUMIFS(Data!E:E,Data!$A:$A,Criteria!$B$10,Data!$B:$B,$B9,Data!$I:$I,$B$50) -> 1955749137 | F9: =SUMIFS(Data!F:F,Data!$A:$A,Criteria!$B$10,Data!$B:$B,$B9,Data!$I:$I,$B$50) -> 111138146600 | G9: =SUMIFS(Data!G:G,Data!$A:$A,Criteria!$B$11,Data!$B:$B,$B9,Data!$I:$I,$B$50) -> 15366121 | H9: =IF(E9,G9/E9) -> 0.007856897753 | I9: =SUMIFS(Data!H:H,Data!$A:$A,Criteria!$B$11,Data!$B:$B,$B9,Data!$I:$I,$B$50) -> 4307153306 | J9: =SUMIFS(Data!G:G,Data!$A:$A,Criteria!$B$10,Data!$B:$B,$B9,Data!$I:$I,30) -> 15310038 | K9: =IF(E9,J9/E9) -> 0.007828221785 | L9: =SUMIFS(Data!H:H,Data!$A:$A,Criteria!$B$10,Data!$B:$B,$B9,Data!$I:$I,30) -> 4283682395 | M9: -56083
A10: Pieces | B10: E | C10: SERIES E TOTAL | E10: =SUMIFS(Data!E:E,Data!$A:$A,Criteria!$B$10,Data!$B:$B,$B10) -> 4599418702 | F10: =SUMIFS(Data!F:F,Data!$A:$A,Criteria!$B$10,Data!$B:$B,$B10) -> 268305981375 | G10: =SUMIFS(Data!G:G,Data!$A:$A,Criteria!$B$11,Data!$B:$B,$B10) -> 21038513 | H10: 0.004574167816 | I10: =SUMIFS(Data!H:H,Data!$A:$A,Criteria!$B$11,Data!$B:$B,$B10) -> 6132980829 | J10: =SUMIFS(Data!G:G,Data!$A:$A,Criteria!$B$10,Data!$B:$B,$B10) -> 20973904 | K10: 0.004560120606 | L10: =SUMIFS(Data!H:H,Data!$A:$A,Criteria!$B$10,Data!$B:$B,$B10) -> 6105555152 | M10: -64609
A11: =+J19 -> 95242977 | B11: SN | C11: SAVINGS NOTES | E11: =SUMIFS(Data!E:E,Data!$A:$A,Criteria!$B$10,Data!$B:$B,$B11) -> 30850113 | F11: =SUMIFS(Data!F:F,Data!$A:$A,Criteria!$B$10,Data!$B:$B,$B11) -> 1063874100 | G11: =SUMIFS(Data!G:G,Data!$A:$A,Criteria!$B$11,Data!$B:$B,$B11) -> 141244 | H11: 0.004578394899 | I11: =SUMIFS(Data!H:H,Data!$A:$A,Criteria!$B$11,Data!$B:$B,$B11) -> 25465101 | J11: =SUMIFS(Data!G:G,Data!$A:$A,Criteria!$B$10,Data!$B:$B,$B11) -> 140901 | K11: 0.004567276626 | L11: =SUMIFS(Data!H:H,Data!$A:$A,Criteria!$B$10,Data!$B:$B,$B11) -> 25386964 | M11: -343
B12: H | C12: SERIES H | E12: =SUMIFS(Data!E:E,Data!$A:$A,Criteria!$B$10,Data!$B:$B,$B12) -> 16386525 | F12: =SUMIFS(Data!F:F,Data!$A:$A,Criteria!$B$10,Data!$B:$B,$B12) -> 18554048500 | G12: =SUMIFS(Data!G:G,Data!$A:$A,Criteria!$B$11,Data!$B:$B,$B12) -> 27991 | H12: =IF(E12,G12/E12) -> 0.001708171806 | I12: =SUMIFS(Data!H:H,Data!$A:$A,Criteria!$B$11,Data!$B:$B,$B12) -> 26613000 | J12: =SUMIFS(Data!G:G,Data!$A:$A,Criteria!$B$10,Data!$B:$B,$B12) -> 27946 | K12: =IF(E12,J12/E12) -> 0.001705425647 | L12: =SUMIFS(Data!H:H,Data!$A:$A,Criteria!$B$10,Data!$B:$B,$B12) -> 26554000 | M12: -45
A13: Maturity Value | B13: HH | C13: SERIES HH | E13: =SUMIFS(Data!E:E,Data!$A:$A,Criteria!$B$10,Data!$B:$B,$B13) -> 14115385 | F13: =SUMIFS(Data!F:F,Data!$A:$A,Criteria!$B$10,Data!$B:$B,$B13) -> 23342424500 | G13: =SUMIFS(Data!G:G,Data!$A:$A,Criteria!$B$11,Data!$B:$B,$B13) -> 560825 | H13: 0.03973147031 | I13: =SUMIFS(Data!H:H,Data!$A:$A,Criteria!$B$11,Data!$B:$B,$B13) -> 708622000 | J13: =SUMIFS(Data!G:G,Data!$A:$A,Criteria!$B$10,Data!$B:$B,$B13) -> 575644 | K13: 0.04078131769 | L13: =SUMIFS(Data!H:H,Data!$A:$A,Criteria!$B$10,Data!$B:$B,$B13) -> 708401500 | M13: 14819
A14: =+L19 -> 38047916036 | C14: SERIES A-D | E14: =SUMIFS(Data!E:E,Data!$A:$A,Criteria!$B$10,Data!$B:$B,"a")+SUMIFS(Data!E:E,Data!$A:$A,Criteria!$B$10,Data!$B:$B,"b")+SUMIFS(Data!E:E,Data!$A:$A,Criteria!$B$10,Data!$B:$B,"c")+SUMIFS(Data!E:E,Data!$A:$A,Criteria!$B$10,Data!$B:$B,"d") -> 18559885 | F14: =SUMIFS(Data!F:F,Data!$A:$A,Criteria!$B$10,Data!$B:$B,"a")+SUMIFS(Data!F:F,Data!$A:$A,Criteria!$B$10,Data!$B:$B,"b")+SUMIFS(Data!F:F,Data!$A:$A,Criteria!$B$10,Data!$B:$B,"c")+SUMIFS(Data!F:F,Data!$A:$A,Criteria!$B$10,Data!$B:$B,"d") -> 5265102100 | G14: =SUMIFS(Data!G:G,Data!$A:$A,Criteria!$B$11,Data!$B:$B,"a")+SUMIFS(Data!G:G,Data!$A:$A,Criteria!$B$11,Data!$B:$B,"b")+SUMIFS(Data!G:G,Data!$A:$A,Criteria!$B$11,Data!$B:$B,"c")+SUMIFS(Data!G:G,Data!$A:$A,Criteria!$B$11,Data!$B:$B,"d") -> 7874 | H14: 0.0004242483183 | I14: =SUMIFS(Data!H:H,Data!$A:$A,Criteria!$B$11,Data!$B:$B,"a")+SUMIFS(Data!H:H,Data!$A:$A,Criteria!$B$11,Data!$B:$B,"b")+SUMIFS(Data!H:H,Data!$A:$A,Criteria!$B$11,Data!$B:$B,"c")+SUMIFS(Data!H:H,Data!$A:$A,Criteria!$B$11,Data!$B:$B,"d") -> 850900 | J14: =SUMIFS(Data!G:G,Data!$A:$A,Criteria!$B$10,Data!$B:$B,"a")+SUMIFS(Data!G:G,Data!$A:$A,Criteria!$B$10,Data!$B:$B,"b")+SUMIFS(Data!G:G,Data!$A:$A,Criteria!$B$10,Data!$B:$B,"c")+SUMIFS(Data!G:G,Data!$A:$A,Criteria!$B$10,Data!$B:$B,"d") -> 7871 | K14: 0.0004240866794 | L14: =SUMIFS(Data!H:H,Data!$A:$A,Criteria!$B$10,Data!$B:$B,"a")+SUMIFS(Data!H:H,Data!$A:$A,Criteria!$B$10,Data!$B:$B,"b")+SUMIFS(Data!H:H,Data!$A:$A,Criteria!$B$10,Data!$B:$B,"c")+SUMIFS(Data!H:H,Data!$A:$A,Criteria!$B$10,Data!$B:$B,"d") -> 850800 | M14: -3
B15: F | C15: SERIES F | E15: =SUMIFS(Data!E:E,Data!$A:$A,Criteria!$B$10,Data!$B:$B,$B15) -> 5624339 | F15: =SUMIFS(Data!F:F,Data!$A:$A,Criteria!$B$10,Data!$B:$B,$B15) -> 6699540700 | G15: =SUMIFS(Data!G:G,Data!$A:$A,Criteria!$B$11,Data!$B:$B,$B15) -> 9102 | H15: 0.001618323504 | I15: =SUMIFS(Data!H:H,Data!$A:$A,Criteria!$B$11,Data!$B:$B,$B15) -> 967175 | J15: =SUMIFS(Data!G:G,Data!$A:$A,Criteria!$B$10,Data!$B:$B,$B15) -> 9093 | K15: 0.001616723316 | L15: =SUMIFS(Data!H:H,Data!$A:$A,Criteria!$B$10,Data!$B:$B,$B15) -> 965125 | M15: -9
B16: G | C16: SERIES G | E16: =SUMIFS(Data!E:E,Data!$A:$A,Criteria!$B$10,Data!$B:$B,$B16) -> 17260002 | F16: =SUMIFS(Data!F:F,Data!$A:$A,Criteria!$B$10,Data!$B:$B,$B16) -> 23437866700 | G16: =SUMIFS(Data!G:G,Data!$A:$A,Criteria!$B$11,Data!$B:$B,$B16) -> 5523 | H16: 0.0003199883754 | I16: =SUMIFS(Data!H:H,Data!$A:$A,Criteria!$B$11,Data!$B:$B,$B16) -> 2119200 | J16: =SUMIFS(Data!G:G,Data!$A:$A,Criteria!$B$10,Data!$B:$B,$B16) -> 5523 | K16: 0.0003199883754 | L16: =SUMIFS(Data!H:H,Data!$A:$A,Criteria!$B$10,Data!$B:$B,$B16) -> 2119200 | M16: 0
B17: J | C17: SERIES J | E17: =SUMIFS(Data!E:E,Data!$A:$A,Criteria!$B$10,Data!$B:$B,$B17) -> 793354 | F17: =SUMIFS(Data!F:F,Data!$A:$A,Criteria!$B$10,Data!$B:$B,$B17) -> 1350604800 | G17: =SUMIFS(Data!G:G,Data!$A:$A,Criteria!$B$11,Data!$B:$B,$B17) -> 1769 | H17: 0.002229773846 | I17: =SUMIFS(Data!H:H,Data!$A:$A,Criteria!$B$11,Data!$B:$B,$B17) -> 230350 | J17: =SUMIFS(Data!G:G,Data!$A:$A,Criteria!$B$10,Data!$B:$B,$B17) -> 1769 | K17: 0.002229773846 | L17: =SUMIFS(Data!H:H,Data!$A:$A,Criteria!$B$10,Data!$B:$B,$B17) -> 230350 | M17: 0
B18: K | C18: SERIES K | E18: =SUMIFS(Data!E:E,Data!$A:$A,Criteria!$B$10,Data!$B:$B,$B18) -> 936780 | F18: =SUMIFS(Data!F:F,Data!$A:$A,Criteria!$B$10,Data!$B:$B,$B18) -> 2583273000 | G18: =SUMIFS(Data!G:G,Data!$A:$A,Criteria!$B$11,Data!$B:$B,$B18) -> 96 | H18: =IF(E18,G18/E18) -> 0.0001024787036 | I18: =SUMIFS(Data!H:H,Data!$A:$A,Criteria!$B$11,Data!$B:$B,$B18) -> 80500 | J18: =SUMIFS(Data!G:G,Data!$A:$A,Criteria!$B$10,Data!$B:$B,$B18) -> 96 | K18: =IF(E18,J18/E18) -> 0.0001024787036 | L18: =SUMIFS(Data!H:H,Data!$A:$A,Criteria!$B$10,Data!$B:$B,$B18) -> 80500 | M18: 0
C19: GRAND TOTAL | E19: =SUM(E10:E18,E7) -> 5966992485 | F19: =SUM(F10:F18,F7) -> 568568243650 | G19: =SUM(G10:G18,G7) -> 94972284 | H19: =IF(E19,G19/E19) -> 0.01591627344 | I19: =SUM(I10:I18,I7) -> 38243235843 | J19: =SUM(J10:J18,J7) -> 95242977 | K19: =J19/E19 -> 0.0159616385 | L19: =SUM(L10:L18,L7) -> 38047916036 | M19: 270693
B21: 40 | C21: SERIES E BONDS (40 YEAR MATURITY) | G21: =G5 -> OUTSTANDING AS OF LAST MONTH 03/31/2024 | J21: =J5 -> OUTSTANDING AS OF THIS MONTH 04/30/2024 | M21: =M$5 -> NET
C22: SERIES | D22: YEAR | E22: BONDS | F22: PAR AMOUNT | G22: BONDS | H22: PERCENT | I22: MATURITY VALUE | J22: BONDS | K22: PERCENT | L22: MATURITY VALUE | M22: =M$6 -> CHANGE
B23: 1941 | C23: E | D23: 1941 | E23: =SUMIFS(Data!E:E,Data!$A:$A,Criteria!$B$10,Data!$C:$C,REPORT!$B23,Data!$B:$B,$C23,Data!$I:$I,40) -> 15533834 | F23: =SUMIFS(Data!F:F,Data!$A:$A,Criteria!$B$10,Data!$C:$C,REPORT!$B23,Data!$B:$B,$C23,Data!$I:$I,40) -> 1783227575 | G23: =SUMIFS(Data!G:G,Data!$A:$A,Criteria!$B$11,Data!$C:$C,$B23,Data!$B:$B,$C23,Data!$I:$I,40) -> 33997 | H23: =IF(E23,G23/E23) -> 0.002188577527 | I23: =SUMIFS(Data!H:H,Data!$A:$A,Criteria!$B$11,Data!$C:$C,$B23,Data!$B:$B,$C23,Data!$I:$I,40) -> 6812446 | J23: =SUMIFS(Data!G:G,Data!$A:$A,Criteria!$B$10,Data!$C:$C,$B23,Data!$B:$B,$C23,Data!$I:$I,40) -> 33978 | K23: =IF(E23,J23/E23) -> 0.00218735439 | L23: =SUMIFS(Data!H:H,Data!$A:$A,Criteria!$B$10,Data!$C:$C,$B23,Data!$B:$B,$C23,Data!$I:$I,40) -> 6807648 | M23: =J23-G23 -> -19
B24: =B23+1 -> 1942 | C24: E | D24: 1942 | E24: =SUMIFS(Data!E:E,Data!$A:$A,Criteria!$B$10,Data!$C:$C,REPORT!$B24,Data!$B:$B,$C24,Data!$I:$I,40) -> 147177997 | F24: =SUMIFS(Data!F:F,Data!$A:$A,Criteria!$B$10,Data!$C:$C,REPORT!$B24,Data!$B:$B,$C24,Data!$I:$I,40) -> 8281451175 | G24: =SUMIFS(Data!G:G,Data!$A:$A,Criteria!$B$11,Data!$C:$C,$B24,Data!$B:$B,$C24,Data!$I:$I,40) -> 326199 | H24: =IF(E24,G24/E24) -> 0.002216357109 | I24: =SUMIFS(Data!H:H,Data!$A:$A,Criteria!$B$11,Data!$C:$C,$B24,Data!$B:$B,$C24,Data!$I:$I,40) -> 46348850 | J24: =SUMIFS(Data!G:G,Data!$A:$A,Criteria!$B$10,Data!$C:$C,$B24,Data!$B:$B,$C24,Data!$I:$I,40) -> 326128 | K24: =IF(E24,J24/E24) -> 0.0022158747 | L24: =SUMIFS(Data!H:H,Data!$A:$A,Criteria!$B$10,Data!$C:$C,$B24,Data!$B:$B,$C24,Data!$I:$I,40) -> 46338715 | M24: =J24-G24 -> -71
B25: =B24+1 -> 1943 | C25: E | D25: 1943 | E25: =SUMIFS(Data!E:E,Data!$A:$A,Criteria!$B$10,Data!$C:$C,REPORT!$B25,Data!$B:$B,$C25,Data!$I:$I,40) -> 274091322 | F25: =SUMIFS(Data!F:F,Data!$A:$A,Criteria!$B$10,Data!$C:$C,REPORT!$B25,Data!$B:$B,$C25,Data!$I:$I,40) -> 13871586310 | G25: =SUMIFS(Data!G:G,Data!$A:$A,Criteria!$B$11,Data!$C:$C,$B25,Data!$B:$B,$C25,Data!$I:$I,40) -> 521538 | H25: 0.001902789173 | I25: =SUMIFS(Data!H:H,Data!$A:$A,Criteria!$B$11,Data!$C:$C,$B25,Data!$B:$B,$C25,Data!$I:$I,40) -> 76527515 | J25: =SUMIFS(Data!G:G,Data!$A:$A,Criteria!$B$10,Data!$C:$C,$B25,Data!$B:$B,$C25,Data!$I:$I,40) -> 521413 | K25: 0.001902333121 | L25: =SUMIFS(Data!H:H,Data!$A:$A,Criteria!$B$10,Data!$C:$C,$B25,Data!$B:$B,$C25,Data!$I:$I,40) -> 76502692 | M25: -125
B26: 1944 | C26: E | D26: 1944 | E26: =SUMIFS(Data!E:E,Data!$A:$A,Criteria!$B$10,Data!$C:$C,REPORT!$B26,Data!$B:$B,$C26,Data!$I:$I,40) -> 317106076 | F26: =SUMIFS(Data!F:F,Data!$A:$A,Criteria!$B$10,Data!$C:$C,REPORT!$B26,Data!$B:$B,$C26,Data!$I:$I,40) -> 16493868260 | G26: =SUMIFS(Data!G:G,Data!$A:$A,Criteria!$B$11,Data!$C:$C,$B26,Data!$B:$B,$C26,Data!$I:$I,40) -> 608415 | H26: 0.001918648194 | I26: =SUMIFS(Data!H:H,Data!$A:$A,Criteria!$B$11,Data!$C:$C,$B26,Data!$B:$B,$C26,Data!$I:$I,40) -> 96647238 | J26: =SUMIFS(Data!G:G,Data!$A:$A,Criteria!$B$10,Data!$C:$C,$B26,Data!$B:$B,$C26,Data!$I:$I,40) -> 608213 | K26: 0.001918011183 | L26: =SUMIFS(Data!H:H,Data!$A:$A,Criteria!$B$10,Data!$C:$C,$B26,Data!$B:$B,$C26,Data!$I:$I,40) -> 96621969 | M26: -202
B27: 1945 | C27: E | D27: 1945 | E27: =SUMIFS(Data!E:E,Data!$A:$A,Criteria!$B$10,Data!$C:$C,REPORT!$B27,Data!$B:$B,$C27,Data!$I:$I,40) -> 245505526 | F27: =SUMIFS(Data!F:F,Data!$A:$A,Criteria!$B$10,Data!$C:$C,REPORT!$B27,Data!$B:$B,$C27,Data!$I:$I,40) -> 13046226095 | G27: =SUMIFS(Data!G:G,Data!$A:$A,Criteria!$B$11,Data!$C:$C,$B27,Data!$B:$B,$C27,Data!$I:$I,40) -> 474601 | H27: 0.001933158116 | I27: =SUMIFS(Data!H:H,Data!$A:$A,Criteria!$B$11,Data!$C:$C,$B27,Data!$B:$B,$C27,Data!$I:$I,40) -> 80064524 | J27: =SUMIFS(Data!G:G,Data!$A:$A,Criteria!$B$10,Data!$C:$C,$B27,Data!$B:$B,$C27,Data!$I:$I,40) -> 474432 | K27: 0.00193246974 | L27: =SUMIFS(Data!H:H,Data!$A:$A,Criteria!$B$10,Data!$C:$C,$B27,Data!$B:$B,$C27,Data!$I:$I,40) -> 80034962 | M27: -169
B28: 1946 | C28: E | D28: 1946 | E28: =SUMIFS(Data!E:E,Data!$A:$A,Criteria!$B$10,Data!$C:$C,REPORT!$B28,Data!$B:$B,$C28,Data!$I:$I,40) -> 84650016 | F28: =SUMIFS(Data!F:F,Data!$A:$A,Criteria!$B$10,Data!$C:$C,REPORT!$B28,Data!$B:$B,$C28,Data!$I:$I,40) -> 5771917640 | G28: =SUMIFS(Data!G:G,Data!$A:$A,Criteria!$B$11,Data!$C:$C,$B28,Data!$B:$B,$C28,Data!$I:$I,40) -> 142588 | H28: 0.001684441501 | I28: =SUMIFS(Data!H:H,Data!$A:$A,Criteria!$B$11,Data!$C:$C,$B28,Data!$B:$B,$C28,Data!$I:$I,40) -> 29150490 | J28: =SUMIFS(Data!G:G,Data!$A:$A,Criteria!$B$10,Data!$C:$C,$B28,Data!$B:$B,$C28,Data!$I:$I,40) -> 142543 | K28: 0.0016839099 | L28: =SUMIFS(Data!H:H,Data!$A:$A,Criteria!$B$10,Data!$C:$C,$B28,Data!$B:$B,$C28,Data!$I:$I,40) -> 29115129 | M28: -45
B29: 1947 | C29: E | D29: 1947 | E29: =SUMIFS(Data!E:E,Data!$A:$A,Criteria!$B$10,Data!$C:$C,REPORT!$B29,Data!$B:$B,$C29,Data!$I:$I,40) -> 61078475 | F29: =SUMIFS(Data!F:F,Data!$A:$A,Criteria!$B$10,Data!$C:$C,REPORT!$B29,Data!$B:$B,$C29,Data!$I:$I,40) -> 5398720610 | G29: =SUMIFS(Data!G:G,Data!$A:$A,Criteria!$B$11,Data!$C:$C,$B29,Data!$B:$B,$C29,Data!$I:$I,40) -> 84643 | H29: 0.001385807357 | I29: =SUMIFS(Data!H:H,Data!$A:$A,Criteria!$B$11,Data!$C:$C,$B29,Data!$B:$B,$C29,Data!$I:$I,40) -> 24439504 | J29: =SUMIFS(Data!G:G,Data!$A:$A,Criteria!$B$10,Data!$C:$C,$B29,Data!$B:$B,$C29,Data!$I:$I,40) -> 84604 | K29: 0.001385168834 | L29: =SUMIFS(Data!H:H,Data!$A:$A,Criteria!$B$10,Data!$C:$C,$B29,Data!$B:$B,$C29,Data!$I:$I,40) -> 24427973 | M29: -39
B30: 1948 | C30: E | D30: 1948 | E30: =SUMIFS(Data!E:E,Data!$A:$A,Criteria!$B$10,Data!$C:$C,REPORT!$B30,Data!$B:$B,$C30,Data!$I:$I,40) -> 61577319 | F30: =SUMIFS(Data!F:F,Data!$A:$A,Criteria!$B$10,Data!$C:$C,REPORT!$B30,Data!$B:$B,$C30,Data!$I:$I,40) -> 5603037375 | G30: =SUMIFS(Data!G:G,Data!$A:$A,Criteria!$B$11,Data!$C:$C,$B30,Data!$B:$B,$C30,Data!$I:$I,40) -> 79531 | H30: 0.001291563213 | I30: =SUMIFS(Data!H:H,Data!$A:$A,Criteria!$B$11,Data!$C:$C,$B30,Data!$B:$B,$C30,Data!$I:$I,40) -> 26454384 | J30: =SUMIFS(Data!G:G,Data!$A:$A,Criteria!$B$10,Data!$C:$C,$B30,Data!$B:$B,$C30,Data!$I:$I,40) -> 79489 | K30: 0.001290881144 | L30: =SUMIFS(Data!H:H,Data!$A:$A,Criteria!$B$10,Data!$C:$C,$B30,Data!$B:$B,$C30,Data!$I:$I,40) -> 26439865 | M30: -42
B31: 1949 | C31: E | D31: 1949 | E31: =SUMIFS(Data!E:E,Data!$A:$A,Criteria!$B$10,Data!$C:$C,REPORT!$B31,Data!$B:$B,$C31,Data!$I:$I,40) -> 64794503 | F31: =SUMIFS(Data!F:F,Data!$A:$A,Criteria!$B$10,Data!$C:$C,REPORT!$B31,Data!$B:$B,$C31,Data!$I:$I,40) -> 5561006370 | G31: =SUMIFS(Data!G:G,Data!$A:$A,Criteria!$B$11,Data!$C:$C,$B31,Data!$B:$B,$C31,Data!$I:$I,40) -> 88365 | H31: 0.001363773097 | I31: =SUMIFS(Data!H:H,Data!$A:$A,Criteria!$B$11,Data!$C:$C,$B31,Data!$B:$B,$C31,Data!$I:$I,40) -> 31040386 | J31: =SUMIFS(Data!G:G,Data!$A:$A,Criteria!$B$10,Data!$C:$C,$B31,Data!$B:$B,$C31,Data!$I:$I,40) -> 88299 | K31: 0.001362754492 | L31: =SUMIFS(Data!H:H,Data!$A:$A,Criteria!$B$10,Data!$C:$C,$B31,Data!$B:$B,$C31,Data!$I:$I,40) -> 31019487 | M31: -66
B32: 1950 | C32: E | D32: 1950 | E32: =SUMIFS(Data!E:E,Data!$A:$A,Criteria!$B$10,Data!$C:$C,REPORT!$B32,Data!$B:$B,$C32,Data!$I:$I,40) -> 63416111 | F32: =SUMIFS(Data!F:F,Data!$A:$A,Criteria!$B$10,Data!$C:$C,REPORT!$B32,Data!$B:$B,$C32,Data!$I:$I,40) -> 4894816990 | G32: =SUMIFS(Data!G:G,Data!$A:$A,Criteria!$B$11,Data!$C:$C,$B32,Data!$B:$B,$C32,Data!$I:$I,40) -> 88884 | H32: 0.001401599666 | I32: =SUMIFS(Data!H:H,Data!$A:$A,Criteria!$B$11,Data!$C:$C,$B32,Data!$B:$B,$C32,Data!$I:$I,40) -> 33112692 | J32: =SUMIFS(Data!G:G,Data!$A:$A,Criteria!$B$10,Data!$C:$C,$B32,Data!$B:$B,$C32,Data!$I:$I,40) -> 88789 | K32: 0.001400101624 | L32: =SUMIFS(Data!H:H,Data!$A:$A,Criteria!$B$10,Data!$C:$C,$B32,Data!$B:$B,$C32,Data!$I:$I,40) -> 33068517 | M32: -95
B33: 1951 | C33: E | D33: 1951 | E33: =SUMIFS(Data!E:E,Data!$A:$A,Criteria!$B$10,Data!$C:$C,REPORT!$B33,Data!$B:$B,$C33,Data!$I:$I,40) -> 69923481 | F33: =SUMIFS(Data!F:F,Data!$A:$A,Criteria!$B$10,Data!$C:$C,REPORT!$B33,Data!$B:$B,$C33,Data!$I:$I,40) -> 4327776600 | G33: =SUMIFS(Data!G:G,Data!$A:$A,Criteria!$B$11,Data!$C:$C,$B33,Data!$B:$B,$C33,Data!$I:$I,40) -> 104739 | H33: 0.001497908836 | I33: =SUMIFS(Data!H:H,Data!$A:$A,Criteria!$B$11,Data!$C:$C,$B33,Data!$B:$B,$C33,Data!$I:$I,40) -> 37212766 | J33: =SUMIFS(Data!G:G,Data!$A:$A,Criteria!$B$10,Data!$C:$C,$B33,Data!$B:$B,$C33,Data!$I:$I,40) -> 104660 | K33: 0.001496779029 | L33: =SUMIFS(Data!H:H,Data!$A:$A,Criteria!$B$10,Data!$C:$C,$B33,Data!$B:$B,$C33,Data!$I:$I,40) -> 37182184 | M33: -79
B34: 1952 | C34: E | D34: 1952 | E34: =SUMIFS(Data!E:E,Data!$A:$A,Criteria!$B$10,Data!$C:$C,REPORT!$B34,Data!$B:$B,$C34,Data!$I:$I,40) -> 77093372 | F34: =SUMIFS(Data!F:F,Data!$A:$A,Criteria!$B$10,Data!$C:$C,REPORT!$B34,Data!$B:$B,$C34,Data!$I:$I,40) -> 4561017675 | G34: =SUMIFS(Data!G:G,Data!$A:$A,Criteria!$B$11,Data!$C:$C,$B34,Data!$B:$B,$C34,Data!$I:$I,40) -> 121933 | H34: 0.001581627536 | I34: =SUMIFS(Data!H:H,Data!$A:$A,Criteria!$B$11,Data!$C:$C,$B34,Data!$B:$B,$C34,Data!$I:$I,40) -> 42929655 | J34: =SUMIFS(Data!G:G,Data!$A:$A,Criteria!$B$10,Data!$C:$C,$B34,Data!$B:$B,$C34,Data!$I:$I,40) -> 121827 | K34: 0.00158025258 | L34: =SUMIFS(Data!H:H,Data!$A:$A,Criteria!$B$10,Data!$C:$C,$B34,Data!$B:$B,$C34,Data!$I:$I,40) -> 42890889 | M34: -106
B35: 1953 | C35: E | D35: 1953 | E35: =SUMIFS(Data!E:E,Data!$A:$A,Criteria!$B$10,Data!$C:$C,REPORT!$B35,Data!$B:$B,$C35,Data!$I:$I,40) -> 83880950 | F35: =SUMIFS(Data!F:F,Data!$A:$A,Criteria!$B$10,Data!$C:$C,REPORT!$B35,Data!$B:$B,$C35,Data!$I:$I,40) -> 5215142575 | G35: =SUMIFS(Data!G:G,Data!$A:$A,Criteria!$B$11,Data!$C:$C,$B35,Data!$B:$B,$C35,Data!$I:$I,40) -> 135792 | H35: 0.001618865785 | I35: =SUMIFS(Data!H:H,Data!$A:$A,Criteria!$B$11,Data!$C:$C,$B35,Data!$B:$B,$C35,Data!$I:$I,40) -> 48724502 | J35: =SUMIFS(Data!G:G,Data!$A:$A,Criteria!$B$10,Data!$C:$C,$B35,Data!$B:$B,$C35,Data!$I:$I,40) -> 135652 | K35: 0.001617196753 | L35: =SUMIFS(Data!H:H,Data!$A:$A,Criteria!$B$10,Data!$C:$C,$B35,Data!$B:$B,$C35,Data!$I:$I,40) -> 48639067 | M35: -140
B36: 1954 | C36: E | D36: 1954 | E36: =SUMIFS(Data!E:E,Data!$A:$A,Criteria!$B$10,Data!$C:$C,REPORT!$B36,Data!$B:$B,$C36,Data!$I:$I,40) -> 84126308 | F36: =SUMIFS(Data!F:F,Data!$A:$A,Criteria!$B$10,Data!$C:$C,REPORT!$B36,Data!$B:$B,$C36,Data!$I:$I,40) -> 5358585100 | G36: =SUMIFS(Data!G:G,Data!$A:$A,Criteria!$B$11,Data!$C:$C,$B36,Data!$B:$B,$C36,Data!$I:$I,40) -> 139257 | H36: 0.00165533236 | I36: =SUMIFS(Data!H:H,Data!$A:$A,Criteria!$B$11,Data!$C:$C,$B36,Data!$B:$B,$C36,Data!$I:$I,40) -> 53907994 | J36: =SUMIFS(Data!G:G,Data!$A:$A,Criteria!$B$10,Data!$C:$C,$B36,Data!$B:$B,$C36,Data!$I:$I,40) -> 139071 | K36: 0.001653121399 | L36: =SUMIFS(Data!H:H,Data!$A:$A,Criteria!$B$10,Data!$C:$C,$B36,Data!$B:$B,$C36,Data!$I:$I,40) -> 53817211 | M36: -186
B37: 1955 | C37: E | D37: 1955 | E37: =SUMIFS(Data!E:E,Data!$A:$A,Criteria!$B$10,Data!$C:$C,REPORT!$B37,Data!$B:$B,$C37,Data!$I:$I,40) -> 88041041 | F37: =SUMIFS(Data!F:F,Data!$A:$A,Criteria!$B$10,Data!$C:$C,REPORT!$B37,Data!$B:$B,$C37,Data!$I:$I,40) -> 5646147400 | G37: =SUMIFS(Data!G:G,Data!$A:$A,Criteria!$B$11,Data!$C:$C,$B37,Data!$B:$B,$C37,Data!$I:$I,40) -> 158647 | H37: 0.001801966426 | I37: =SUMIFS(Data!H:H,Data!$A:$A,Criteria!$B$11,Data!$C:$C,$B37,Data!$B:$B,$C37,Data!$I:$I,40) -> 63109789 | J37: =SUMIFS(Data!G:G,Data!$A:$A,Criteria!$B$10,Data!$C:$C,$B37,Data!$B:$B,$C37,Data!$I:$I,40) -> 158429 | K37: 0.001799490308 | L37: =SUMIFS(Data!H:H,Data!$A:$A,Criteria!$B$10,Data!$C:$C,$B37,Data!$B:$B,$C37,Data!$I:$I,40) -> 62998437 | M37: -218
B38: 1956 | C38: E | D38: 1956 | E38: =SUMIFS(Data!E:E,Data!$A:$A,Criteria!$B$10,Data!$C:$C,REPORT!$B38,Data!$B:$B,$C38,Data!$I:$I,40) -> 90877143 | F38: =SUMIFS(Data!F:F,Data!$A:$A,Criteria!$B$10,Data!$C:$C,REPORT!$B38,Data!$B:$B,$C38,Data!$I:$I,40) -> 5526628875 | G38: =SUMIFS(Data!G:G,Data!$A:$A,Criteria!$B$11,Data!$C:$C,$B38,Data!$B:$B,$C38,Data!$I:$I,40) -> 174817 | H38: 0.001923663027 | I38: =SUMIFS(Data!H:H,Data!$A:$A,Criteria!$B$11,Data!$C:$C,$B38,Data!$B:$B,$C38,Data!$I:$I,40) -> 71785339 | J38: =SUMIFS(Data!G:G,Data!$A:$A,Criteria!$B$10,Data!$C:$C,$B38,Data!$B:$B,$C38,Data!$I:$I,40) -> 174582 | K38: 0.001921077118 | L38: =SUMIFS(Data!H:H,Data!$A:$A,Criteria!$B$10,Data!$C:$C,$B38,Data!$B:$B,$C38,Data!$I:$I,40) -> 71679809 | M38: -235
B39: 1957 | C39: E | D39: 1957 | E39: =SUMIFS(Data!E:E,Data!$A:$A,Criteria!$B$10,Data!$C:$C,REPORT!$B39,Data!$B:$B,$C39,Data!$I:$I,40) -> 90523358 | F39: =SUMIFS(Data!F:F,Data!$A:$A,Criteria!$B$10,Data!$C:$C,REPORT!$B39,Data!$B:$B,$C39,Data!$I:$I,40) -> 5170467950 | G39: =SUMIFS(Data!G:G,Data!$A:$A,Criteria!$B$11,Data!$C:$C,$B39,Data!$B:$B,$C39,Data!$I:$I,40) -> 204381 | H39: 0.002257770862 | I39: =SUMIFS(Data!H:H,Data!$A:$A,Criteria!$B$11,Data!$C:$C,$B39,Data!$B:$B,$C39,Data!$I:$I,40) -> 80885910 | J39: =SUMIFS(Data!G:G,Data!$A:$A,Criteria!$B$10,Data!$C:$C,$B39,Data!$B:$B,$C39,Data!$I:$I,40) -> 204061 | K39: 0.002254235863 | L39: =SUMIFS(Data!H:H,Data!$A:$A,Criteria!$B$10,Data!$C:$C,$B39,Data!$B:$B,$C39,Data!$I:$I,40) -> 80770025 | M39: -320
B40: 1958 | C40: E | D40: 1958 | E40: =SUMIFS(Data!E:E,Data!$A:$A,Criteria!$B$10,Data!$C:$C,REPORT!$B40,Data!$B:$B,$C40,Data!$I:$I,40) -> 86030714 | F40: =SUMIFS(Data!F:F,Data!$A:$A,Criteria!$B$10,Data!$C:$C,REPORT!$B40,Data!$B:$B,$C40,Data!$I:$I,40) -> 5054709050 | G40: =SUMIFS(Data!G:G,Data!$A:$A,Criteria!$B$11,Data!$C:$C,$B40,Data!$B:$B,$C40,Data!$I:$I,40) -> 224626 | H40: 0.002610997742 | I40: =SUMIFS(Data!H:H,Data!$A:$A,Criteria!$B$11,Data!$C:$C,$B40,Data!$B:$B,$C40,Data!$I:$I,40) -> 80132004 | J40: =SUMIFS(Data!G:G,Data!$A:$A,Criteria!$B$10,Data!$C:$C,$B40,Data!$B:$B,$C40,Data!$I:$I,40) -> 224199 | K40: 0.002606034398 | L40: =SUMIFS(Data!H:H,Data!$A:$A,Criteria!$B$10,Data!$C:$C,$B40,Data!$B:$B,$C40,Data!$I:$I,40) -> 79994983 | M40: -427
B41: 1959 | C41: E | D41: 1959 | E41: =SUMIFS(Data!E:E,Data!$A:$A,Criteria!$B$10,Data!$C:$C,REPORT!$B41,Data!$B:$B,$C41,Data!$I:$I,40) -> 85933690 | F41: =SUMIFS(Data!F:F,Data!$A:$A,Criteria!$B$10,Data!$C:$C,REPORT!$B41,Data!$B:$B,$C41,Data!$I:$I,40) -> 4806681450 | G41: =SUMIFS(Data!G:G,Data!$A:$A,Criteria!$B$11,Data!$C:$C,$B41,Data!$B:$B,$C41,Data!$I:$I,40) -> 208178 | H41: 0.002422542311 | I41: =SUMIFS(Data!H:H,Data!$A:$A,Criteria!$B$11,Data!$C:$C,$B41,Data!$B:$B,$C41,Data!$I:$I,40) -> 78242208 | J41: =SUMIFS(Data!G:G,Data!$A:$A,Criteria!$B$10,Data!$C:$C,$B41,Data!$B:$B,$C41,Data!$I:$I,40) -> 207672 | K41: 0.00241665405 | L41: =SUMIFS(Data!H:H,Data!$A:$A,Criteria!$B$10,Data!$C:$C,$B41,Data!$B:$B,$C41,Data!$I:$I,40) -> 78055443 | M41: -506
B42: 1960 | C42: E | D42: =IF(Criteria!$C$7>(2000+CELL("row",A41)-41),"",IF(Criteria!$D$7=1,"Jan. ","Jan-"&TEXT(Criteria!$B$7,"mmm ")))&TEXT((1960+CELL("row",A41)-41),"0") -> 1960 | E42: =SUMIFS(Data!E:E,Data!$A:$A,Criteria!$B$10,Data!$C:$C,REPORT!$B42,Data!$B:$B,$C42,Data!$I:$I,40) -> 87668900 | F42: =SUMIFS(Data!F:F,Data!$A:$A,Criteria!$B$10,Data!$C:$C,REPORT!$B42,Data!$B:$B,$C42,Data!$I:$I,40) -> 4865044075 | G42: =SUMIFS(Data!G:G,Data!$A:$A,Criteria!$B$11,Data!$C:$C,$B42,Data!$B:$B,$C42,Data!$I:$I,40) -> 219182 | H42: 0.002500111214 | I42: =SUMIFS(Data!H:H,Data!$A:$A,Criteria!$B$11,Data!$C:$C,$B42,Data!$B:$B,$C42,Data!$I:$I,40) -> 88847722 | J42: =SUMIFS(Data!G:G,Data!$A:$A,Criteria!$B$10,Data!$C:$C,$B42,Data!$B:$B,$C42,Data!$I:$I,40) -> 218606 | K42: 0.002493541039 | L42: =SUMIFS(Data!H:H,Data!$A:$A,Criteria!$B$10,Data!$C:$C,$B42,Data!$B:$B,$C42,Data!$I:$I,40) -> 88661583 | M42: -576
B43: 1961 | C43: E | D43: =IF(Criteria!$C$7>(2000+CELL("row",A42)-41),"",IF(Criteria!$D$7=1,"Jan. ","Jan-"&TEXT(Criteria!$B$7,"mmm ")))&TEXT((1960+CELL("row",A42)-41),"0") -> 1961 | E43: =SUMIFS(Data!E:E,Data!$A:$A,Criteria!$B$10,Data!$C:$C,REPORT!$B43,Data!$B:$B,$C43,Data!$I:$I,40) -> 87339293 | F43: =SUMIFS(Data!F:F,Data!$A:$A,Criteria!$B$10,Data!$C:$C,REPORT!$B43,Data!$B:$B,$C43,Data!$I:$I,40) -> 4974025950 | G43: =SUMIFS(Data!G:G,Data!$A:$A,Criteria!$B$11,Data!$C:$C,$B43,Data!$B:$B,$C43,Data!$I:$I,40) -> 231377 | H43: 0.002649174181 | I43: =SUMIFS(Data!H:H,Data!$A:$A,Criteria!$B$11,Data!$C:$C,$B43,Data!$B:$B,$C43,Data!$I:$I,40) -> 105385697 | J43: =SUMIFS(Data!G:G,Data!$A:$A,Criteria!$B$10,Data!$C:$C,$B43,Data!$B:$B,$C43,Data!$I:$I,40) -> 230649 | K43: 0.002640838872 | L43: =SUMIFS(Data!H:H,Data!$A:$A,Criteria!$B$10,Data!$C:$C,$B43,Data!$B:$B,$C43,Data!$I:$I,40) -> 105052293 | M43: -728
B44: 1962 | C44: E | D44: =IF(Criteria!$C$7>(2000+CELL("row",A43)-41),"",IF(Criteria!$D$7=1,"Jan. ","Jan-"&TEXT(Criteria!$B$7,"mmm ")))&TEXT((1960+CELL("row",A43)-41),"0") -> 1962 | E44: =SUMIFS(Data!E:E,Data!$A:$A,Criteria!$B$10,Data!$C:$C,REPORT!$B44,Data!$B:$B,$C44,Data!$I:$I,40) -> 88839858 | F44: =SUMIFS(Data!F:F,Data!$A:$A,Criteria!$B$10,Data!$C:$C,REPORT!$B44,Data!$B:$B,$C44,Data!$I:$I,40) -> 4891723800 | G44: =SUMIFS(Data!G:G,Data!$A:$A,Criteria!$B$11,Data!$C:$C,$B44,Data!$B:$B,$C44,Data!$I:$I,40) -> 272395 | H44: 0.003066135022 | I44: =SUMIFS(Data!H:H,Data!$A:$A,Criteria!$B$11,Data!$C:$C,$B44,Data!$B:$B,$C44,Data!$I:$I,40) -> 125804859 | J44: =SUMIFS(Data!G:G,Data!$A:$A,Criteria!$B$10,Data!$C:$C,$B44,Data!$B:$B,$C44,Data!$I:$I,40) -> 271716 | K44: 0.003058492057 | L44: =SUMIFS(Data!H:H,Data!$A:$A,Criteria!$B$10,Data!$C:$C,$B44,Data!$B:$B,$C44,Data!$I:$I,40) -> 125418773 | M44: -679
B45: 1963 | C45: E | D45: =IF(Criteria!$C$7>(2000+CELL("row",A44)-41),"",IF(Criteria!$D$7=1,"Jan. ","Jan-"&TEXT(Criteria!$B$7,"mmm ")))&TEXT((1960+CELL("row",A44)-41),"0") -> 1963 | E45: =SUMIFS(Data!E:E,Data!$A:$A,Criteria!$B$10,Data!$C:$C,REPORT!$B45,Data!$B:$B,$C45,Data!$I:$I,40) -> 94698284 | F45: =SUMIFS(Data!F:F,Data!$A:$A,Criteria!$B$10,Data!$C:$C,REPORT!$B45,Data!$B:$B,$C45,Data!$I:$I,40) -> 5532030750 | G45: =SUMIFS(Data!G:G,Data!$A:$A,Criteria!$B$11,Data!$C:$C,$B45,Data!$B:$B,$C45,Data!$I:$I,40) -> 325257 | H45: 0.00343466625 | I45: =SUMIFS(Data!H:H,Data!$A:$A,Criteria!$B$11,Data!$C:$C,$B45,Data!$B:$B,$C45,Data!$I:$I,40) -> 170253784 | J45: =SUMIFS(Data!G:G,Data!$A:$A,Criteria!$B$10,Data!$C:$C,$B45,Data!$B:$B,$C45,Data!$I:$I,40) -> 324220 | K45: 0.003423715682 | L45: =SUMIFS(Data!H:H,Data!$A:$A,Criteria!$B$10,Data!$C:$C,$B45,Data!$B:$B,$C45,Data!$I:$I,40) -> 169567406 | M45: -1037
B46: 1964 | C46: E | D46: =IF(Criteria!$C$7>(2000+CELL("row",A45)-41),"",IF(Criteria!$D$7=1,"Jan. ","Jan-"&TEXT(Criteria!$B$7,"mmm ")))&TEXT((1960+CELL("row",A45)-41),"0") -> 1964 | E46: =SUMIFS(Data!E:E,Data!$A:$A,Criteria!$B$10,Data!$C:$C,REPORT!$B46,Data!$B:$B,$C46,Data!$I:$I,40) -> 100307265 | F46: =SUMIFS(Data!F:F,Data!$A:$A,Criteria!$B$10,Data!$C:$C,REPORT!$B46,Data!$B:$B,$C46,Data!$I:$I,40) -> 5524982875 | G46: =SUMIFS(Data!G:G,Data!$A:$A,Criteria!$B$11,Data!$C:$C,$B46,Data!$B:$B,$C46,Data!$I:$I,40) -> 360685 | H46: 0.003595801361 | I46: =SUMIFS(Data!H:H,Data!$A:$A,Criteria!$B$11,Data!$C:$C,$B46,Data!$B:$B,$C46,Data!$I:$I,40) -> 180929538 | J46: =SUMIFS(Data!G:G,Data!$A:$A,Criteria!$B$10,Data!$C:$C,$B46,Data!$B:$B,$C46,Data!$I:$I,40) -> 359562 | K46: 0.003584605761 | L46: =SUMIFS(Data!H:H,Data!$A:$A,Criteria!$B$10,Data!$C:$C,$B46,Data!$B:$B,$C46,Data!$I:$I,40) -> 180236651 | M46: -1123
B47: 1965 | C47: E | D47: =IF(Criteria!$C$7>(2000+CELL("row",A46)-41),"",IF(Criteria!$D$7=1,"Jan. ","Jan-"&TEXT(Criteria!$B$7,"mmm ")))&TEXT((1960+CELL("row",A46)-41),"0") -> 1965 | E47: =SUMIFS(Data!E:E,Data!$A:$A,Criteria!$B$10,Data!$C:$C,REPORT!$B47,Data!$B:$B,$C47,Data!$I:$I,40) -> 93454729 | F47: =SUMIFS(Data!F:F,Data!$A:$A,Criteria!$B$10,Data!$C:$C,REPORT!$B47,Data!$B:$B,$C47,Data!$I:$I,40) -> 5007012250 | G47: =SUMIFS(Data!G:G,Data!$A:$A,Criteria!$B$11,Data!$C:$C,$B47,Data!$B:$B,$C47,Data!$I:$I,40) -> 342365 | H47: 0.003663431521 | I47: =SUMIFS(Data!H:H,Data!$A:$A,Criteria!$B$11,Data!$C:$C,$B47,Data!$B:$B,$C47,Data!$I:$I,40) -> 147077727 | J47: =SUMIFS(Data!G:G,Data!$A:$A,Criteria!$B$10,Data!$C:$C,$B47,Data!$B:$B,$C47,Data!$I:$I,40) -> 341072 | K47: 0.003649595945 | L47: =SUMIFS(Data!H:H,Data!$A:$A,Criteria!$B$10,Data!$C:$C,$B47,Data!$B:$B,$C47,Data!$I:$I,40) -> 146531046 | M47: -1293
C48: 40 YR SERIES E TOTAL | E48: =SUM(E23:E47) -> 2643669565 | F48: =SUM(F23:F47) -> 157167834775 | G48: =SUM(G23:G47) -> 5672392 | H48: =G48/E48 -> 0.002145650907 | I48: =SUM(I23:I47) -> 1825827523 | J48: =SUM(J23:J47) -> 5663866 | K48: =J48/E48 -> 0.002142425844 | L48: =SUM(L23:L47) -> 1821872757 | M48: =J48-G48 -> -8526
B50: 30 | C50: SERIES E BONDS (30 YEAR MATURITY) | G50: =G5 -> OUTSTANDING AS OF LAST MONTH 03/31/2024 | J50: =J5 -> OUTSTANDING AS OF THIS MONTH 04/30/2024 | M50: =M$5 -> NET
C51: SERIES | D51: YEAR | E51: BONDS | F51: PAR AMOUNT | G51: BONDS | H51: PERCENT | I51: MATURITY VALUE | J51: BONDS | K51: PERCENT | L51: MATURITY VALUE | M51: =M$6 -> CHANGE
B52: 1965 | C52: E | D52: Dec. 1965 | E52: =SUMIFS(Data!E:E,Data!$A:$A,Criteria!$B$10,Data!$C:$C,REPORT!$B52,Data!$B:$B,$C52,Data!$I:$I,30) -> 10149102 | F52: =SUMIFS(Data!F:F,Data!$A:$A,Criteria!$B$10,Data!$C:$C,REPORT!$B52,Data!$B:$B,$C52,Data!$I:$I,30) -> 516124325 | G52: =SUMIFS(Data!G:G,Data!$A:$A,Criteria!$B$11,Data!$C:$C,$B52,Data!$B:$B,$C52,Data!$I:$I,30) -> 50919 | H52: =IF(E52,G52/E52) -> 0.005017094123 | I52: =SUMIFS(Data!H:H,Data!$A:$A,Criteria!$B$11,Data!$C:$C,$B52,Data!$B:$B,$C52,Data!$I:$I,30) -> 10985265 | J52: =SUMIFS(Data!G:G,Data!$A:$A,Criteria!$B$10,Data!$C:$C,$B52,Data!$B:$B,$C52,Data!$I:$I,30) -> 50818 | K52: =IF(E52,J52/E52) -> 0.005007142504 | L52: =SUMIFS(Data!H:H,Data!$A:$A,Criteria!$B$10,Data!$C:$C,$B52,Data!$B:$B,$C52,Data!$I:$I,30) -> 10960410 | M52: =J52-G52 -> -101
B53: =B52+1 -> 1966 | C53: E | D53: 1966 | E53: =SUMIFS(Data!E:E,Data!$A:$A,Criteria!$B$10,Data!$C:$C,REPORT!$B53,Data!$B:$B,$C53,Data!$I:$I,30) -> 111972527 | F53: =SUMIFS(Data!F:F,Data!$A:$A,Criteria!$B$10,Data!$C:$C,REPORT!$B53,Data!$B:$B,$C53,Data!$I:$I,30) -> 6029679350 | G53: =SUMIFS(Data!G:G,Data!$A:$A,Criteria!$B$11,Data!$C:$C,$B53,Data!$B:$B,$C53,Data!$I:$I,30) -> 473301 | H53: =IF(E53,G53/E53) -> 0.004226938631 | I53: =SUMIFS(Data!H:H,Data!$A:$A,Criteria!$B$11,Data!$C:$C,$B53,Data!$B:$B,$C53,Data!$I:$I,30) -> 113954488 | J53: =SUMIFS(Data!G:G,Data!$A:$A,Criteria!$B$10,Data!$C:$C,$B53,Data!$B:$B,$C53,Data!$I:$I,30) -> 472091 | K53: =IF(E53,J53/E53) -> 0.004216132409 | L53: =SUMIFS(Data!H:H,Data!$A:$A,Criteria!$B$10,Data!$C:$C,$B53,Data!$B:$B,$C53,Data!$I:$I,30) -> 113580954 | M53: =J53-G53 -> -1210
B54: =B53+1 -> 1967 | C54: E | D54: 1967 | E54: =SUMIFS(Data!E:E,Data!$A:$A,Criteria!$B$10,Data!$C:$C,REPORT!$B54,Data!$B:$B,$C54,Data!$I:$I,30) -> 119503016 | F54: =SUMIFS(Data!F:F,Data!$A:$A,Criteria!$B$10,Data!$C:$C,REPORT!$B54,Data!$B:$B,$C54,Data!$I:$I,30) -> 6106807150 | G54: =SUMIFS(Data!G:G,Data!$A:$A,Criteria!$B$11,Data!$C:$C,$B54,Data!$B:$B,$C54,Data!$I:$I,30) -> 557994 | H54: 0.004669288012 | I54: =SUMIFS(Data!H:H,Data!$A:$A,Criteria!$B$11,Data!$C:$C,$B54,Data!$B:$B,$C54,Data!$I:$I,30) -> 131902510 | J54: =SUMIFS(Data!G:G,Data!$A:$A,Criteria!$B$10,Data!$C:$C,$B54,Data!$B:$B,$C54,Data!$I:$I,30) -> 556525 | K54: 0.004656995435 | L54: =SUMIFS(Data!H:H,Data!$A:$A,Criteria!$B$10,Data!$C:$C,$B54,Data!$B:$B,$C54,Data!$I:$I,30) -> 131453295 | M54: -1469
B55: 1968 | C55: E | D55: 1968 | E55: =SUMIFS(Data!E:E,Data!$A:$A,Criteria!$B$10,Data!$C:$C,REPORT!$B55,Data!$B:$B,$C55,Data!$I:$I,30) -> 121444547 | F55: =SUMIFS(Data!F:F,Data!$A:$A,Criteria!$B$10,Data!$C:$C,REPORT!$B55,Data!$B:$B,$C55,Data!$I:$I,30) -> 5925047450 | G55: =SUMIFS(Data!G:G,Data!$A:$A,Criteria!$B$11,Data!$C:$C,$B55,Data!$B:$B,$C55,Data!$I:$I,30) -> 603357 | H55: 0.004968168723 | I55: =SUMIFS(Data!H:H,Data!$A:$A,Criteria!$B$11,Data!$C:$C,$B55,Data!$B:$B,$C55,Data!$I:$I,30) -> 144219763 | J55: =SUMIFS(Data!G:G,Data!$A:$A,Criteria!$B$10,Data!$C:$C,$B55,Data!$B:$B,$C55,Data!$I:$I,30) -> 601924 | K55: 0.004956369099 | L55: =SUMIFS(Data!H:H,Data!$A:$A,Criteria!$B$10,Data!$C:$C,$B55,Data!$B:$B,$C55,Data!$I:$I,30) -> 143850522 | M55: -1433
B56: 1969 | C56: E | D56: 1969 | E56: =SUMIFS(Data!E:E,Data!$A:$A,Criteria!$B$10,Data!$C:$C,REPORT!$B56,Data!$B:$B,$C56,Data!$I:$I,30) -> 119793729 | F56: =SUMIFS(Data!F:F,Data!$A:$A,Criteria!$B$10,Data!$C:$C,REPORT!$B56,Data!$B:$B,$C56,Data!$I:$I,30) -> 5656724975 | G56: =SUMIFS(Data!G:G,Data!$A:$A,Criteria!$B$11,Data!$C:$C,$B56,Data!$B:$B,$C56,Data!$I:$I,30) -> 608591 | H56: 0.005080324363 | I56: =SUMIFS(Data!H:H,Data!$A:$A,Criteria!$B$11,Data!$C:$C,$B56,Data!$B:$B,$C56,Data!$I:$I,30) -> 147073325 | J56: =SUMIFS(Data!G:G,Data!$A:$A,Criteria!$B$10,Data!$C:$C,$B56,Data!$B:$B,$C56,Data!$I:$I,30) -> 607082 | K56: 0.005067727711 | L56: =SUMIFS(Data!H:H,Data!$A:$A,Criteria!$B$10,Data!$C:$C,$B56,Data!$B:$B,$C56,Data!$I:$I,30) -> 146617960 | M56: -1509
B57: 1970 | C57: E | D57: =IF(Criteria!$C$7>(2000+CELL("row",A56)-56),"",IF(Criteria!$D$7=1,"Jan. ","Jan-"&TEXT(Criteria!$B$7,"mmm ")))&TEXT((1970+CELL("row",A56)-56),"0") -> 1970 | E57: =SUMIFS(Data!E:E,Data!$A:$A,Criteria!$B$10,Data!$C:$C,REPORT!$B57,Data!$B:$B,$C57,Data!$I:$I,30) -> 122282374 | F57: =SUMIFS(Data!F:F,Data!$A:$A,Criteria!$B$10,Data!$C:$C,REPORT!$B57,Data!$B:$B,$C57,Data!$I:$I,30) -> 6013069900 | G57: =SUMIFS(Data!G:G,Data!$A:$A,Criteria!$B$11,Data!$C:$C,$B57,Data!$B:$B,$C57,Data!$I:$I,30) -> 670913 | H57: 0.005486587953 | I57: =SUMIFS(Data!H:H,Data!$A:$A,Criteria!$B$11,Data!$C:$C,$B57,Data!$B:$B,$C57,Data!$I:$I,30) -> 172557540 | J57: =SUMIFS(Data!G:G,Data!$A:$A,Criteria!$B$10,Data!$C:$C,$B57,Data!$B:$B,$C57,Data!$I:$I,30) -> 669062 | K57: 0.005471450857 | L57: =SUMIFS(Data!H:H,Data!$A:$A,Criteria!$B$10,Data!$C:$C,$B57,Data!$B:$B,$C57,Data!$I:$I,30) -> 171914077 | M57: -1851
B58: 1971 | C58: E | D58: =IF(Criteria!$C$7>(2000+CELL("row",A57)-56),"",IF(Criteria!$D$7=1,"Jan. ","Jan-"&TEXT(Criteria!$B$7,"mmm ")))&TEXT((1970+CELL("row",A57)-56),"0") -> 1971 | E58: =SUMIFS(Data!E:E,Data!$A:$A,Criteria!$B$10,Data!$C:$C,REPORT!$B58,Data!$B:$B,$C58,Data!$I:$I,30) -> 130002183 | F58: =SUMIFS(Data!F:F,Data!$A:$A,Criteria!$B$10,Data!$C:$C,REPORT!$B58,Data!$B:$B,$C58,Data!$I:$I,30) -> 7072612300 | G58: =SUMIFS(Data!G:G,Data!$A:$A,Criteria!$B$11,Data!$C:$C,$B58,Data!$B:$B,$C58,Data!$I:$I,30) -> 733731 | H58: 0.00564398984 | I58: =SUMIFS(Data!H:H,Data!$A:$A,Criteria!$B$11,Data!$C:$C,$B58,Data!$B:$B,$C58,Data!$I:$I,30) -> 192477410 | J58: =SUMIFS(Data!G:G,Data!$A:$A,Criteria!$B$10,Data!$C:$C,$B58,Data!$B:$B,$C58,Data!$I:$I,30) -> 731466 | K58: 0.005626567055 | L58: =SUMIFS(Data!H:H,Data!$A:$A,Criteria!$B$10,Data!$C:$C,$B58,Data!$B:$B,$C58,Data!$I:$I,30) -> 191622138 | M58: -2265
B59: 1972 | C59: E | D59: =IF(Criteria!$C$7>(2000+CELL("row",A58)-56),"",IF(Criteria!$D$7=1,"Jan. ","Jan-"&TEXT(Criteria!$B$7,"mmm ")))&TEXT((1970+CELL("row",A58)-56),"0") -> 1972 | E59: =SUMIFS(Data!E:E,Data!$A:$A,Criteria!$B$10,Data!$C:$C,REPORT!$B59,Data!$B:$B,$C59,Data!$I:$I,30) -> 137420570 | F59: =SUMIFS(Data!F:F,Data!$A:$A,Criteria!$B$10,Data!$C:$C,REPORT!$B59,Data!$B:$B,$C59,Data!$I:$I,30) -> 7996016325 | G59: =SUMIFS(Data!G:G,Data!$A:$A,Criteria!$B$11,Data!$C:$C,$B59,Data!$B:$B,$C59,Data!$I:$I,30) -> 915289 | H59: 0.006660494859 | I59: =SUMIFS(Data!H:H,Data!$A:$A,Criteria!$B$11,Data!$C:$C,$B59,Data!$B:$B,$C59,Data!$I:$I,30) -> 247174009 | J59: =SUMIFS(Data!G:G,Data!$A:$A,Criteria!$B$10,Data!$C:$C,$B59,Data!$B:$B,$C59,Data!$I:$I,30) -> 912513 | K59: 0.006640294099 | L59: =SUMIFS(Data!H:H,Data!$A:$A,Criteria!$B$10,Data!$C:$C,$B59,Data!$B:$B,$C59,Data!$I:$I,30) -> 246042527 | M59: -2776
B60: 1973 | C60: E | D60: =IF(Criteria!$C$7>(2000+CELL("row",A59)-56),"",IF(Criteria!$D$7=1,"Jan. ","Jan-"&TEXT(Criteria!$B$7,"mmm ")))&TEXT((1970+CELL("row",A59)-56),"0") -> 1973 | E60: =SUMIFS(Data!E:E,Data!$A:$A,Criteria!$B$10,Data!$C:$C,REPORT!$B60,Data!$B:$B,$C60,Data!$I:$I,30) -> 141856585 | F60: =SUMIFS(Data!F:F,Data!$A:$A,Criteria!$B$10,Data!$C:$C,REPORT!$B60,Data!$B:$B,$C60,Data!$I:$I,30) -> 8132922650 | G60: =SUMIFS(Data!G:G,Data!$A:$A,Criteria!$B$11,Data!$C:$C,$B60,Data!$B:$B,$C60,Data!$I:$I,30) -> 945674 | H60: 0.006666408895 | I60: =SUMIFS(Data!H:H,Data!$A:$A,Criteria!$B$11,Data!$C:$C,$B60,Data!$B:$B,$C60,Data!$I:$I,30) -> 271031055 | J60: =SUMIFS(Data!G:G,Data!$A:$A,Criteria!$B$10,Data!$C:$C,$B60,Data!$B:$B,$C60,Data!$I:$I,30) -> 942547 | K60: 0.006644365505 | L60: =SUMIFS(Data!H:H,Data!$A:$A,Criteria!$B$10,Data!$C:$C,$B60,Data!$B:$B,$C60,Data!$I:$I,30) -> 269816253 | M60: -3127
B61: 1974 | C61: E | D61: =IF(Criteria!$C$7>(2000+CELL("row",A60)-56),"",IF(Criteria!$D$7=1,"Jan. ","Jan-"&TEXT(Criteria!$B$7,"mmm ")))&TEXT((1970+CELL("row",A60)-56),"0") -> 1974 | E61: =SUMIFS(Data!E:E,Data!$A:$A,Criteria!$B$10,Data!$C:$C,REPORT!$B61,Data!$B:$B,$C61,Data!$I:$I,30) -> 143062567 | F61: =SUMIFS(Data!F:F,Data!$A:$A,Criteria!$B$10,Data!$C:$C,REPORT!$B61,Data!$B:$B,$C61,Data!$I:$I,30) -> 8468440375 | G61: =SUMIFS(Data!G:G,Data!$A:$A,Criteria!$B$11,Data!$C:$C,$B61,Data!$B:$B,$C61,Data!$I:$I,30) -> 1016928 | H61: 0.007108274522 | I61: =SUMIFS(Data!H:H,Data!$A:$A,Criteria!$B$11,Data!$C:$C,$B61,Data!$B:$B,$C61,Data!$I:$I,30) -> 296194154 | J61: =SUMIFS(Data!G:G,Data!$A:$A,Criteria!$B$10,Data!$C:$C,$B61,Data!$B:$B,$C61,Data!$I:$I,30) -> 1013628 | K61: 0.007085207691 | L61: =SUMIFS(Data!H:H,Data!$A:$A,Criteria!$B$10,Data!$C:$C,$B61,Data!$B:$B,$C61,Data!$I:$I,30) -> 294951691 | M61: -3300
B62: 1975 | C62: E | D62: =IF(Criteria!$C$7>(2000+CELL("row",A61)-56),"",IF(Criteria!$D$7=1,"Jan. ","Jan-"&TEXT(Criteria!$B$7,"mmm ")))&TEXT((1970+CELL("row",A61)-56),"0") -> 1975 | E62: =SUMIFS(Data!E:E,Data!$A:$A,Criteria!$B$10,Data!$C:$C,REPORT!$B62,Data!$B:$B,$C62,Data!$I:$I,30) -> 146081235 | F62: =SUMIFS(Data!F:F,Data!$A:$A,Criteria!$B$10,Data!$C:$C,REPORT!$B62,Data!$B:$B,$C62,Data!$I:$I,30) -> 8935810750 | G62: =SUMIFS(Data!G:G,Data!$A:$A,Criteria!$B$11,Data!$C:$C,$B62,Data!$B:$B,$C62,Data!$I:$I,30) -> 1170191 | H62: 0.008010549747 | I62: =SUMIFS(Data!H:H,Data!$A:$A,Criteria!$B$11,Data!$C:$C,$B62,Data!$B:$B,$C62,Data!$I:$I,30) -> 367300681 | J62: =SUMIFS(Data!G:G,Data!$A:$A,Criteria!$B$10,Data!$C:$C,$B62,Data!$B:$B,$C62,Data!$I:$I,30) -> 1165943 | K62: 0.007981470036 | L62: =SUMIFS(Data!H:H,Data!$A:$A,Criteria!$B$10,Data!$C:$C,$B62,Data!$B:$B,$C62,Data!$I:$I,30) -> 365304839 | M62: -4248
B63: 1976 | C63: E | D63: =IF(Criteria!$C$7>(2000+CELL("row",A62)-56),"",IF(Criteria!$D$7=1,"Jan. ","Jan-"&TEXT(Criteria!$B$7,"mmm ")))&TEXT((1970+CELL("row",A62)-56),"0") -> 1976 | E63: =SUMIFS(Data!E:E,Data!$A:$A,Criteria!$B$10,Data!$C:$C,REPORT!$B63,Data!$B:$B,$C63,Data!$I:$I,30) -> 153251181 | F63: =SUMIFS(Data!F:F,Data!$A:$A,Criteria!$B$10,Data!$C:$C,REPORT!$B63,Data!$B:$B,$C63,Data!$I:$I,30) -> 9680278575 | G63: =SUMIFS(Data!G:G,Data!$A:$A,Criteria!$B$11,Data!$C:$C,$B63,Data!$B:$B,$C63,Data!$I:$I,30) -> 1625898 | H63: 0.01060936685 | I63: =SUMIFS(Data!H:H,Data!$A:$A,Criteria!$B$11,Data!$C:$C,$B63,Data!$B:$B,$C63,Data!$I:$I,30) -> 506593528 | J63: =SUMIFS(Data!G:G,Data!$A:$A,Criteria!$B$10,Data!$C:$C,$B63,Data!$B:$B,$C63,Data!$I:$I,30) -> 1619979 | K63: 0.01057074399 | L63: =SUMIFS(Data!H:H,Data!$A:$A,Criteria!$B$10,Data!$C:$C,$B63,Data!$B:$B,$C63,Data!$I:$I,30) -> 503408426 | M63: -5919
B64: 1977 | C64: E | D64: =IF(Criteria!$C$7>(2000+CELL("row",A63)-56),"",IF(Criteria!$D$7=1,"Jan. ","Jan-"&TEXT(Criteria!$B$7,"mmm ")))&TEXT((1970+CELL("row",A63)-56),"0") -> 1977 | E64: =SUMIFS(Data!E:E,Data!$A:$A,Criteria!$B$10,Data!$C:$C,REPORT!$B64,Data!$B:$B,$C64,Data!$I:$I,30) -> 158559383 | F64: =SUMIFS(Data!F:F,Data!$A:$A,Criteria!$B$10,Data!$C:$C,REPORT!$B64,Data!$B:$B,$C64,Data!$I:$I,30) -> 10323207800 | G64: =SUMIFS(Data!G:G,Data!$A:$A,Criteria!$B$11,Data!$C:$C,$B64,Data!$B:$B,$C64,Data!$I:$I,30) -> 1640959 | H64: 0.01034917625 | I64: =SUMIFS(Data!H:H,Data!$A:$A,Criteria!$B$11,Data!$C:$C,$B64,Data!$B:$B,$C64,Data!$I:$I,30) -> 582999533 | J64: =SUMIFS(Data!G:G,Data!$A:$A,Criteria!$B$10,Data!$C:$C,$B64,Data!$B:$B,$C64,Data!$I:$I,30) -> 1634261 | K64: 0.0103069334 | L64: =SUMIFS(Data!H:H,Data!$A:$A,Criteria!$B$10,Data!$C:$C,$B64,Data!$B:$B,$C64,Data!$I:$I,30) -> 579423454 | M64: -6698
B65: 1978 | C65: E | D65: =IF(Criteria!$C$7>(2000+CELL("row",A64)-56),"",IF(Criteria!$D$7=1,"Jan. ","Jan-"&TEXT(Criteria!$B$7,"mmm ")))&TEXT((1970+CELL("row",A64)-56),"0") -> 1978 | E65: =SUMIFS(Data!E:E,Data!$A:$A,Criteria!$B$10,Data!$C:$C,REPORT!$B65,Data!$B:$B,$C65,Data!$I:$I,30) -> 161741744 | F65: =SUMIFS(Data!F:F,Data!$A:$A,Criteria!$B$10,Data!$C:$C,REPORT!$B65,Data!$B:$B,$C65,Data!$I:$I,30) -> 10282853400 | G65: =SUMIFS(Data!G:G,Data!$A:$A,Criteria!$B$11,Data!$C:$C,$B65,Data!$B:$B,$C65,Data!$I:$I,30) -> 2013874 | H65: 0.01245117031 | I65: =SUMIFS(Data!H:H,Data!$A:$A,Criteria!$B$11,Data!$C:$C,$B65,Data!$B:$B,$C65,Data!$I:$I,30) -> 554307732 | J65: =SUMIFS(Data!G:G,Data!$A:$A,Criteria!$B$10,Data!$C:$C,$B65,Data!$B:$B,$C65,Data!$I:$I,30) -> 2005484 | K65: 0.01239929749 | L65: =SUMIFS(Data!H:H,Data!$A:$A,Criteria!$B$10,Data!$C:$C,$B65,Data!$B:$B,$C65,Data!$I:$I,30) -> 550185455 | M65: -8390
B66: 1979 | C66: E | D66: =IF(Criteria!$C$7>(2000+CELL("row",A65)-56),"",IF(Criteria!$D$7=1,"Jan. ","Jan-"&TEXT(Criteria!$B$7,"mmm ")))&TEXT((1970+CELL("row",A65)-56),"0") -> 1979 | E66: =SUMIFS(Data!E:E,Data!$A:$A,Criteria!$B$10,Data!$C:$C,REPORT!$B66,Data!$B:$B,$C66,Data!$I:$I,30) -> 149651969 | F66: =SUMIFS(Data!F:F,Data!$A:$A,Criteria!$B$10,Data!$C:$C,REPORT!$B66,Data!$B:$B,$C66,Data!$I:$I,30) -> 8666645200 | G66: =SUMIFS(Data!G:G,Data!$A:$A,Criteria!$B$11,Data!$C:$C,$B66,Data!$B:$B,$C66,Data!$I:$I,30) -> 2004489 | H66: 0.01339433763 | I66: =SUMIFS(Data!H:H,Data!$A:$A,Criteria!$B$11,Data!$C:$C,$B66,Data!$B:$B,$C66,Data!$I:$I,30) -> 508031116 | J66: =SUMIFS(Data!G:G,Data!$A:$A,Criteria!$B$10,Data!$C:$C,$B66,Data!$B:$B,$C66,Data!$I:$I,30) -> 1994739 | K66: 0.01332918647 | L66: =SUMIFS(Data!H:H,Data!$A:$A,Criteria!$B$10,Data!$C:$C,$B66,Data!$B:$B,$C66,Data!$I:$I,30) -> 504632986 | M66: -9750
B67: 1980 | C67: E | D67: =IF(Criteria!$C$7>(2000+CELL("row",A66)-56),"",IF(Criteria!$D$7=1,"Jan. ","Jan-"&TEXT(Criteria!$B$7,"mmm ")))&TEXT((1970+CELL("row",A66)-56),"0") -> 1980 | E67: =SUMIFS(Data!E:E,Data!$A:$A,Criteria!$B$10,Data!$C:$C,REPORT!$B67,Data!$B:$B,$C67,Data!$I:$I,30) -> 28976425 | F67: =SUMIFS(Data!F:F,Data!$A:$A,Criteria!$B$10,Data!$C:$C,REPORT!$B67,Data!$B:$B,$C67,Data!$I:$I,30) -> 1331906075 | G67: =SUMIFS(Data!G:G,Data!$A:$A,Criteria!$B$11,Data!$C:$C,$B67,Data!$B:$B,$C67,Data!$I:$I,30) -> 334013 | H67: 0.01152706036 | I67: =SUMIFS(Data!H:H,Data!$A:$A,Criteria!$B$11,Data!$C:$C,$B67,Data!$B:$B,$C67,Data!$I:$I,30) -> 60351197 | J67: =SUMIFS(Data!G:G,Data!$A:$A,Criteria!$B$10,Data!$C:$C,$B67,Data!$B:$B,$C67,Data!$I:$I,30) -> 331976 | K67: 0.01145676183 | L67: =SUMIFS(Data!H:H,Data!$A:$A,Criteria!$B$10,Data!$C:$C,$B67,Data!$B:$B,$C67,Data!$I:$I,30) -> 59917408 | M67: -2037
C68: 30 YR SERIES E TOTAL | E68: =SUM(E52:E67) -> 1955749137 | F68: =SUM(F52:F67) -> 111138146600 | G68: =SUM(G52:G67) -> 15366121 | H68: =G68/E68 -> 0.007856897753 | I68: =SUM(I52:I67) -> 4307153306 | J68: =SUM(J52:J67) -> 15310038 | K68: =J68/E68 -> 0.007828221785 | L68: =SUM(L52:L67) -> 4283682395 | M68: =J68-G68 -> -56083
C70: SAVINGS NOTES (30 YEAR MATURITY) | G70: =G5 -> OUTSTANDING AS OF LAST MONTH 03/31/2024 | J70: =J5 -> OUTSTANDING AS OF THIS MONTH 04/30/2024 | M70: =M$5 -> NET
C71: SERIES | D71: YEAR | E71: BONDS | F71: PAR AMOUNT | G71: BONDS | H71: PERCENT | I71: MATURITY VALUE | J71: BONDS | K71: PERCENT | L71: MATURITY VALUE | M71: =M$6 -> CHANGE
B72: 1967 | C72: SN | D72: 1967 | E72: =SUMIFS(Data!E:E,Data!$A:$A,Criteria!$B$10,Data!$C:$C,REPORT!$B72,Data!$B:$B,$C72) -> 4001806 | F72: =SUMIFS(Data!F:F,Data!$A:$A,Criteria!$B$10,Data!$C:$C,REPORT!$B72,Data!$B:$B,$C72) -> 136296525 | G72: =SUMIFS(Data!G:G,Data!$A:$A,Criteria!$B$11,Data!$C:$C,$B72,Data!$B:$B,$C72) -> 16695 | H72: =IF(E72,G72/E72) -> 0.004171866402 | I72: =SUMIFS(Data!H:H,Data!$A:$A,Criteria!$B$11,Data!$C:$C,$B72,Data!$B:$B,$C72) -> 3154360 | J72: =SUMIFS(Data!G:G,Data!$A:$A,Criteria!$B$10,Data!$C:$C,$B72,Data!$B:$B,$C72) -> 16650 | K72: =IF(E72,J72/E72) -> 0.004160621479 | L72: =SUMIFS(Data!H:H,Data!$A:$A,Criteria!$B$10,Data!$C:$C,$B72,Data!$B:$B,$C72) -> 3142294 | M72: =J72-G72 -> -45
B73: =B72+1 -> 1968 | C73: SN | D73: 1968 | E73: =SUMIFS(Data!E:E,Data!$A:$A,Criteria!$B$10,Data!$C:$C,REPORT!$B73,Data!$B:$B,$C73) -> 10178871 | F73: =SUMIFS(Data!F:F,Data!$A:$A,Criteria!$B$10,Data!$C:$C,REPORT!$B73,Data!$B:$B,$C73) -> 349658250 | G73: =SUMIFS(Data!G:G,Data!$A:$A,Criteria!$B$11,Data!$C:$C,$B73,Data!$B:$B,$C73) -> 42666 | H73: =IF(E73,G73/E73) -> 0.004191624002 | I73: =SUMIFS(Data!H:H,Data!$A:$A,Criteria!$B$11,Data!$C:$C,$B73,Data!$B:$B,$C73) -> 7875067 | J73: =SUMIFS(Data!G:G,Data!$A:$A,Criteria!$B$10,Data!$C:$C,$B73,Data!$B:$B,$C73) -> 42562 | K73: =IF(E73,J73/E73) -> 0.004181406759 | L73: =SUMIFS(Data!H:H,Data!$A:$A,Criteria!$B$10,Data!$C:$C,$B73,Data!$B:$B,$C73) -> 7848125 | M73: =J73-G73 -> -104
B74: =B73+1 -> 1969 | C74: SN | D74: 1969 | E74: =SUMIFS(Data!E:E,Data!$A:$A,Criteria!$B$10,Data!$C:$C,REPORT!$B74,Data!$B:$B,$C74) -> 12710952 | F74: =SUMIFS(Data!F:F,Data!$A:$A,Criteria!$B$10,Data!$C:$C,REPORT!$B74,Data!$B:$B,$C74) -> 445991500 | G74: =SUMIFS(Data!G:G,Data!$A:$A,Criteria!$B$11,Data!$C:$C,$B74,Data!$B:$B,$C74) -> 59138 | H74: 0.004652523273 | I74: =SUMIFS(Data!H:H,Data!$A:$A,Criteria!$B$11,Data!$C:$C,$B74,Data!$B:$B,$C74) -> 10507527 | J74: =SUMIFS(Data!G:G,Data!$A:$A,Criteria!$B$10,Data!$C:$C,$B74,Data!$B:$B,$C74) -> 59001 | K74: 0.004641745166 | L74: =SUMIFS(Data!H:H,Data!$A:$A,Criteria!$B$10,Data!$C:$C,$B74,Data!$B:$B,$C74) -> 10480043 | M74: =J74-G74 -> -137
B75: =B74+1 -> 1970 | C75: SN | D75: =IF(Criteria!$C$7>(2000+CELL("row",A74)-74),"",IF(Criteria!$D$7=1,"Jan. ","Jan-"&TEXT(Criteria!B7,"mmm ")))&TEXT((1970+CELL("row",A74)-74),"0") -> 1970 | E75: =SUMIFS(Data!E:E,Data!$A:$A,Criteria!$B$10,Data!$C:$C,REPORT!$B75,Data!$B:$B,$C75) -> 3958484 | F75: =SUMIFS(Data!F:F,Data!$A:$A,Criteria!$B$10,Data!$C:$C,REPORT!$B75,Data!$B:$B,$C75) -> 131927825 | G75: =SUMIFS(Data!G:G,Data!$A:$A,Criteria!$B$11,Data!$C:$C,$B75,Data!$B:$B,$C75) -> 22745 | H75: 0.005745886557 | I75: =SUMIFS(Data!H:H,Data!$A:$A,Criteria!$B$11,Data!$C:$C,$B75,Data!$B:$B,$C75) -> 3928147 | J75: =SUMIFS(Data!G:G,Data!$A:$A,Criteria!$B$10,Data!$C:$C,$B75,Data!$B:$B,$C75) -> 22688 | K75: 0.005731487105 | L75: =SUMIFS(Data!H:H,Data!$A:$A,Criteria!$B$10,Data!$C:$C,$B75,Data!$B:$B,$C75) -> 3916502 | M75: =J75-G75 -> -57
C76: SAVINGS NOTE TOTAL | E76: =SUM(E72:E75) -> 30850113 | F76: =SUM(F72:F75) -> 1063874100 | G76: =SUM(G70:G75) -> 141244 | H76: =G76/E76 -> 0.004578394899 | I76: =SUM(I72:I75) -> 25465101 | J76: =SUM(J70:J75) -> 140901 | K76: =J76/E76 -> 0.004567276626 | L76: =SUM(L72:L75) -> 25386964 | M76: =J76-G76 -> -343
C78: SERIES H BONDS (30 YEAR MATURITY) | G78: =G5 -> OUTSTANDING AS OF LAST MONTH 03/31/2024 | J78: =J5 -> OUTSTANDING AS OF THIS MONTH 04/30/2024 | M78: =M$5 -> NET
C79: SERIES | D79: YEAR | E79: BONDS | F79: PAR AMOUNT | G79: BONDS | H79: PERCENT | I79: MATURITY VALUE | J79: BONDS | K79: PERCENT | L79: MATURITY VALUE | M79: =M$6 -> CHANGE
B80: 1952 | C80: H | D80: 1952 | E80: =SUMIFS(Data!E:E,Data!$A:$A,Criteria!$B$10,Data!$C:$C,REPORT!$B80,Data!$B:$B,$C80) -> 178338 | F80: =SUMIFS(Data!F:F,Data!$A:$A,Criteria!$B$10,Data!$C:$C,REPORT!$B80,Data!$B:$B,$C80) -> 191480500 | G80: =SUMIFS(Data!G:G,Data!$A:$A,Criteria!$B$11,Data!$C:$C,$B80,Data!$B:$B,$C80) -> 75 | H80: =IF(E80,G80/E80) -> 0.0004205497426 | I80: =SUMIFS(Data!H:H,Data!$A:$A,Criteria!$B$11,Data!$C:$C,$B80,Data!$B:$B,$C80) -> 72000 | J80: =SUMIFS(Data!G:G,Data!$A:$A,Criteria!$B$10,Data!$C:$C,$B80,Data!$B:$B,$C80) -> 75 | K80: =IF(E80,J80/E80) -> 0.0004205497426 | L80: =SUMIFS(Data!H:H,Data!$A:$A,Criteria!$B$10,Data!$C:$C,$B80,Data!$B:$B,$C80) -> 72000 | M80: =J80-G80 -> 0
B81: =B80+1 -> 1953 | C81: H | D81: 1953 | E81: =SUMIFS(Data!E:E,Data!$A:$A,Criteria!$B$10,Data!$C:$C,REPORT!$B81,Data!$B:$B,$C81) -> 420121 | F81: =SUMIFS(Data!F:F,Data!$A:$A,Criteria!$B$10,Data!$C:$C,REPORT!$B81,Data!$B:$B,$C81) -> 470502000 | G81: =SUMIFS(Data!G:G,Data!$A:$A,Criteria!$B$11,Data!$C:$C,$B81,Data!$B:$B,$C81) -> 132 | H81: 0.0003141951961 | I81: =SUMIFS(Data!H:H,Data!$A:$A,Criteria!$B$11,Data!$C:$C,$B81,Data!$B:$B,$C81) -> 92000 | J81: =SUMIFS(Data!G:G,Data!$A:$A,Criteria!$B$10,Data!$C:$C,$B81,Data!$B:$B,$C81) -> 132 | K81: 0.0003141951961 | L81: =SUMIFS(Data!H:H,Data!$A:$A,Criteria!$B$10,Data!$C:$C,$B81,Data!$B:$B,$C81) -> 92000 | M81: =J81-G81 -> 0
B82: =B81+1 -> 1954 | C82: H | D82: 1954 | E82: =SUMIFS(Data!E:E,Data!$A:$A,Criteria!$B$10,Data!$C:$C,REPORT!$B82,Data!$B:$B,$C82) -> 724523 | F82: =SUMIFS(Data!F:F,Data!$A:$A,Criteria!$B$10,Data!$C:$C,REPORT!$B82,Data!$B:$B,$C82) -> 877690500 | G82: =SUMIFS(Data!G:G,Data!$A:$A,Criteria!$B$11,Data!$C:$C,$B82,Data!$B:$B,$C82) -> 197 | H82: 0.0002719030314 | I82: =SUMIFS(Data!H:H,Data!$A:$A,Criteria!$B$11,Data!$C:$C,$B82,Data!$B:$B,$C82) -> 150000 | J82: =SUMIFS(Data!G:G,Data!$A:$A,Criteria!$B$10,Data!$C:$C,$B82,Data!$B:$B,$C82) -> 197 | K82: 0.0002719030314 | L82: =SUMIFS(Data!H:H,Data!$A:$A,Criteria!$B$10,Data!$C:$C,$B82,Data!$B:$B,$C82) -> 150000 | M82: 0
B83: 1955 | C83: H | D83: 1955 | E83: =SUMIFS(Data!E:E,Data!$A:$A,Criteria!$B$10,Data!$C:$C,REPORT!$B83,Data!$B:$B,$C83) -> 996746 | F83: =SUMIFS(Data!F:F,Data!$A:$A,Criteria!$B$10,Data!$C:$C,REPORT!$B83,Data!$B:$B,$C83) -> 1173096000 | G83: =SUMIFS(Data!G:G,Data!$A:$A,Criteria!$B$11,Data!$C:$C,$B83,Data!$B:$B,$C83) -> 289 | H83: 0.0002899434761 | I83: =SUMIFS(Data!H:H,Data!$A:$A,Criteria!$B$11,Data!$C:$C,$B83,Data!$B:$B,$C83) -> 256000 | J83: =SUMIFS(Data!G:G,Data!$A:$A,Criteria!$B$10,Data!$C:$C,$B83,Data!$B:$B,$C83) -> 289 | K83: 0.0002899434761 | L83: =SUMIFS(Data!H:H,Data!$A:$A,Criteria!$B$10,Data!$C:$C,$B83,Data!$B:$B,$C83) -> 256000 | M83: 0
B84: 1956 | C84: H | D84: 1956 | E84: =SUMIFS(Data!E:E,Data!$A:$A,Criteria!$B$10,Data!$C:$C,REPORT!$B84,Data!$B:$B,$C84) -> 810033 | F84: =SUMIFS(Data!F:F,Data!$A:$A,Criteria!$B$10,Data!$C:$C,REPORT!$B84,Data!$B:$B,$C84) -> 893178000 | G84: =SUMIFS(Data!G:G,Data!$A:$A,Criteria!$B$11,Data!$C:$C,$B84,Data!$B:$B,$C84) -> 278 | H84: 0.0003431958945 | I84: =SUMIFS(Data!H:H,Data!$A:$A,Criteria!$B$11,Data!$C:$C,$B84,Data!$B:$B,$C84) -> 217000 | J84: =SUMIFS(Data!G:G,Data!$A:$A,Criteria!$B$10,Data!$C:$C,$B84,Data!$B:$B,$C84) -> 278 | K84: 0.0003431958945 | L84: =SUMIFS(Data!H:H,Data!$A:$A,Criteria!$B$10,Data!$C:$C,$B84,Data!$B:$B,$C84) -> 217000 | M84: 0
B85: 1957 | C85: H | D85: 1957 | E85: =SUMIFS(Data!E:E,Data!$A:$A,Criteria!$B$10,Data!$C:$C,REPORT!$B85,Data!$B:$B,$C85) -> 607168 | F85: =SUMIFS(Data!F:F,Data!$A:$A,Criteria!$B$10,Data!$C:$C,REPORT!$B85,Data!$B:$B,$C85) -> 632194500 | G85: =SUMIFS(Data!G:G,Data!$A:$A,Criteria!$B$11,Data!$C:$C,$B85,Data!$B:$B,$C85) -> 255 | H85: 0.0004199826078 | I85: =SUMIFS(Data!H:H,Data!$A:$A,Criteria!$B$11,Data!$C:$C,$B85,Data!$B:$B,$C85) -> 197500 | J85: =SUMIFS(Data!G:G,Data!$A:$A,Criteria!$B$10,Data!$C:$C,$B85,Data!$B:$B,$C85) -> 255 | K85: 0.0004199826078 | L85: =SUMIFS(Data!H:H,Data!$A:$A,Criteria!$B$10,Data!$C:$C,$B85,Data!$B:$B,$C85) -> 197500 | M85: 0
B86: 1958 | C86: H | D86: 1958 | E86: =SUMIFS(Data!E:E,Data!$A:$A,Criteria!$B$10,Data!$C:$C,REPORT!$B86,Data!$B:$B,$C86) -> 773873 | F86: =SUMIFS(Data!F:F,Data!$A:$A,Criteria!$B$10,Data!$C:$C,REPORT!$B86,Data!$B:$B,$C86) -> 890261000 | G86: =SUMIFS(Data!G:G,Data!$A:$A,Criteria!$B$11,Data!$C:$C,$B86,Data!$B:$B,$C86) -> 322 | H86: 0.0004160889448 | I86: =SUMIFS(Data!H:H,Data!$A:$A,Criteria!$B$11,Data!$C:$C,$B86,Data!$B:$B,$C86) -> 266500 | J86: =SUMIFS(Data!G:G,Data!$A:$A,Criteria!$B$10,Data!$C:$C,$B86,Data!$B:$B,$C86) -> 322 | K86: 0.0004160889448 | L86: =SUMIFS(Data!H:H,Data!$A:$A,Criteria!$B$10,Data!$C:$C,$B86,Data!$B:$B,$C86) -> 266500 | M86: 0
B87: 1959 | C87: H | D87: 1959 | E87: =SUMIFS(Data!E:E,Data!$A:$A,Criteria!$B$10,Data!$C:$C,REPORT!$B87,Data!$B:$B,$C87) -> 649562 | F87: =SUMIFS(Data!F:F,Data!$A:$A,Criteria!$B$10,Data!$C:$C,REPORT!$B87,Data!$B:$B,$C87) -> 718736500 | G87: =SUMIFS(Data!G:G,Data!$A:$A,Criteria!$B$11,Data!$C:$C,$B87,Data!$B:$B,$C87) -> 296 | H87: 0.0004556916815 | I87: =SUMIFS(Data!H:H,Data!$A:$A,Criteria!$B$11,Data!$C:$C,$B87,Data!$B:$B,$C87) -> 252000 | J87: =SUMIFS(Data!G:G,Data!$A:$A,Criteria!$B$10,Data!$C:$C,$B87,Data!$B:$B,$C87) -> 296 | K87: 0.0004556916815 | L87: =SUMIFS(Data!H:H,Data!$A:$A,Criteria!$B$10,Data!$C:$C,$B87,Data!$B:$B,$C87) -> 252000 | M87: 0
B88: 1960 | C88: H | D88: 1960 | E88: =SUMIFS(Data!E:E,Data!$A:$A,Criteria!$B$10,Data!$C:$C,REPORT!$B88,Data!$B:$B,$C88) -> 929551 | F88: =SUMIFS(Data!F:F,Data!$A:$A,Criteria!$B$10,Data!$C:$C,REPORT!$B88,Data!$B:$B,$C88) -> 1006778500 | G88: =SUMIFS(Data!G:G,Data!$A:$A,Criteria!$B$11,Data!$C:$C,$B88,Data!$B:$B,$C88) -> 508 | H88: 0.0005465004072 | I88: =SUMIFS(Data!H:H,Data!$A:$A,Criteria!$B$11,Data!$C:$C,$B88,Data!$B:$B,$C88) -> 441000 | J88: =SUMIFS(Data!G:G,Data!$A:$A,Criteria!$B$10,Data!$C:$C,$B88,Data!$B:$B,$C88) -> 507 | K88: 0.000545424619 | L88: =SUMIFS(Data!H:H,Data!$A:$A,Criteria!$B$10,Data!$C:$C,$B88,Data!$B:$B,$C88) -> 440500 | M88: -1
B89: 1961 | C89: H | D89: 1961 | E89: =SUMIFS(Data!E:E,Data!$A:$A,Criteria!$B$10,Data!$C:$C,REPORT!$B89,Data!$B:$B,$C89) -> 954441 | F89: =SUMIFS(Data!F:F,Data!$A:$A,Criteria!$B$10,Data!$C:$C,REPORT!$B89,Data!$B:$B,$C89) -> 1041586000 | G89: =SUMIFS(Data!G:G,Data!$A:$A,Criteria!$B$11,Data!$C:$C,$B89,Data!$B:$B,$C89) -> 555 | H89: 0.0005814922033 | I89: =SUMIFS(Data!H:H,Data!$A:$A,Criteria!$B$11,Data!$C:$C,$B89,Data!$B:$B,$C89) -> 445000 | J89: =SUMIFS(Data!G:G,Data!$A:$A,Criteria!$B$10,Data!$C:$C,$B89,Data!$B:$B,$C89) -> 545 | K89: 0.0005710148663 | L89: =SUMIFS(Data!H:H,Data!$A:$A,Criteria!$B$10,Data!$C:$C,$B89,Data!$B:$B,$C89) -> 440000 | M89: -10
B90: 1962 | C90: H | D90: 1962 | E90: =SUMIFS(Data!E:E,Data!$A:$A,Criteria!$B$10,Data!$C:$C,REPORT!$B90,Data!$B:$B,$C90) -> 771830 | F90: =SUMIFS(Data!F:F,Data!$A:$A,Criteria!$B$10,Data!$C:$C,REPORT!$B90,Data!$B:$B,$C90) -> 856767500 | G90: =SUMIFS(Data!G:G,Data!$A:$A,Criteria!$B$11,Data!$C:$C,$B90,Data!$B:$B,$C90) -> 663 | H90: 0.0008589974476 | I90: =SUMIFS(Data!H:H,Data!$A:$A,Criteria!$B$11,Data!$C:$C,$B90,Data!$B:$B,$C90) -> 551500 | J90: =SUMIFS(Data!G:G,Data!$A:$A,Criteria!$B$10,Data!$C:$C,$B90,Data!$B:$B,$C90) -> 663 | K90: 0.0008589974476 | L90: =SUMIFS(Data!H:H,Data!$A:$A,Criteria!$B$10,Data!$C:$C,$B90,Data!$B:$B,$C90) -> 551500 | M90: 0
B91: 1963 | C91: H | D91: 1963 | E91: =SUMIFS(Data!E:E,Data!$A:$A,Criteria!$B$10,Data!$C:$C,REPORT!$B91,Data!$B:$B,$C91) -> 693154 | F91: =SUMIFS(Data!F:F,Data!$A:$A,Criteria!$B$10,Data!$C:$C,REPORT!$B91,Data!$B:$B,$C91) -> 772975500 | G91: =SUMIFS(Data!G:G,Data!$A:$A,Criteria!$B$11,Data!$C:$C,$B91,Data!$B:$B,$C91) -> 527 | H91: 0.0007602928065 | I91: =SUMIFS(Data!H:H,Data!$A:$A,Criteria!$B$11,Data!$C:$C,$B91,Data!$B:$B,$C91) -> 426000 | J91: =SUMIFS(Data!G:G,Data!$A:$A,Criteria!$B$10,Data!$C:$C,$B91,Data!$B:$B,$C91) -> 527 | K91: 0.0007602928065 | L91: =SUMIFS(Data!H:H,Data!$A:$A,Criteria!$B$10,Data!$C:$C,$B91,Data!$B:$B,$C91) -> 426000 | M91: 0
B92: 1964 | C92: H | D92: 1964 | E92: =SUMIFS(Data!E:E,Data!$A:$A,Criteria!$B$10,Data!$C:$C,REPORT!$B92,Data!$B:$B,$C92) -> 600683 | F92: =SUMIFS(Data!F:F,Data!$A:$A,Criteria!$B$10,Data!$C:$C,REPORT!$B92,Data!$B:$B,$C92) -> 671587500 | G92: =SUMIFS(Data!G:G,Data!$A:$A,Criteria!$B$11,Data!$C:$C,$B92,Data!$B:$B,$C92) -> 564 | H92: 0.0009389311833 | I92: =SUMIFS(Data!H:H,Data!$A:$A,Criteria!$B$11,Data!$C:$C,$B92,Data!$B:$B,$C92) -> 506500 | J92: =SUMIFS(Data!G:G,Data!$A:$A,Criteria!$B$10,Data!$C:$C,$B92,Data!$B:$B,$C92) -> 563 | K92: 0.0009372664117 | L92: =SUMIFS(Data!H:H,Data!$A:$A,Criteria!$B$10,Data!$C:$C,$B92,Data!$B:$B,$C92) -> 506000 | M92: -1
B93: 1965 | C93: H | D93: 1965 | E93: =SUMIFS(Data!E:E,Data!$A:$A,Criteria!$B$10,Data!$C:$C,REPORT!$B93,Data!$B:$B,$C93) -> 524779 | F93: =SUMIFS(Data!F:F,Data!$A:$A,Criteria!$B$10,Data!$C:$C,REPORT!$B93,Data!$B:$B,$C93) -> 585896000 | G93: =SUMIFS(Data!G:G,Data!$A:$A,Criteria!$B$11,Data!$C:$C,$B93,Data!$B:$B,$C93) -> 559 | H93: 0.001065210308 | I93: =SUMIFS(Data!H:H,Data!$A:$A,Criteria!$B$11,Data!$C:$C,$B93,Data!$B:$B,$C93) -> 422000 | J93: =SUMIFS(Data!G:G,Data!$A:$A,Criteria!$B$10,Data!$C:$C,$B93,Data!$B:$B,$C93) -> 557 | K93: 0.001061399179 | L93: =SUMIFS(Data!H:H,Data!$A:$A,Criteria!$B$10,Data!$C:$C,$B93,Data!$B:$B,$C93) -> 421000 | M93: -2
B94: 1966 | C94: H | D94: 1966 | E94: =SUMIFS(Data!E:E,Data!$A:$A,Criteria!$B$10,Data!$C:$C,REPORT!$B94,Data!$B:$B,$C94) -> 563143 | F94: =SUMIFS(Data!F:F,Data!$A:$A,Criteria!$B$10,Data!$C:$C,REPORT!$B94,Data!$B:$B,$C94) -> 635282000 | G94: =SUMIFS(Data!G:G,Data!$A:$A,Criteria!$B$11,Data!$C:$C,$B94,Data!$B:$B,$C94) -> 710 | H94: 0.001260781009 | I94: =SUMIFS(Data!H:H,Data!$A:$A,Criteria!$B$11,Data!$C:$C,$B94,Data!$B:$B,$C94) -> 576000 | J94: =SUMIFS(Data!G:G,Data!$A:$A,Criteria!$B$10,Data!$C:$C,$B94,Data!$B:$B,$C94) -> 710 | K94: 0.001260781009 | L94: =SUMIFS(Data!H:H,Data!$A:$A,Criteria!$B$10,Data!$C:$C,$B94,Data!$B:$B,$C94) -> 576000 | M94: 0
B95: 1967 | C95: H | D95: 1967 | E95: =SUMIFS(Data!E:E,Data!$A:$A,Criteria!$B$10,Data!$C:$C,REPORT!$B95,Data!$B:$B,$C95) -> 465284 | F95: =SUMIFS(Data!F:F,Data!$A:$A,Criteria!$B$10,Data!$C:$C,REPORT!$B95,Data!$B:$B,$C95) -> 525980000 | G95: =SUMIFS(Data!G:G,Data!$A:$A,Criteria!$B$11,Data!$C:$C,$B95,Data!$B:$B,$C95) -> 587 | H95: 0.001261595069 | I95: =SUMIFS(Data!H:H,Data!$A:$A,Criteria!$B$11,Data!$C:$C,$B95,Data!$B:$B,$C95) -> 520000 | J95: =SUMIFS(Data!G:G,Data!$A:$A,Criteria!$B$10,Data!$C:$C,$B95,Data!$B:$B,$C95) -> 587 | K95: 0.001261595069 | L95: =SUMIFS(Data!H:H,Data!$A:$A,Criteria!$B$10,Data!$C:$C,$B95,Data!$B:$B,$C95) -> 520000 | M95: 0
B96: 1968 | C96: H | D96: 1968 | E96: =SUMIFS(Data!E:E,Data!$A:$A,Criteria!$B$10,Data!$C:$C,REPORT!$B96,Data!$B:$B,$C96) -> 383771 | F96: =SUMIFS(Data!F:F,Data!$A:$A,Criteria!$B$10,Data!$C:$C,REPORT!$B96,Data!$B:$B,$C96) -> 430938500 | G96: =SUMIFS(Data!G:G,Data!$A:$A,Criteria!$B$11,Data!$C:$C,$B96,Data!$B:$B,$C96) -> 573 | H96: 0.001493077903 | I96: =SUMIFS(Data!H:H,Data!$A:$A,Criteria!$B$11,Data!$C:$C,$B96,Data!$B:$B,$C96) -> 506500 | J96: =SUMIFS(Data!G:G,Data!$A:$A,Criteria!$B$10,Data!$C:$C,$B96,Data!$B:$B,$C96) -> 572 | K96: 0.001490472183 | L96: =SUMIFS(Data!H:H,Data!$A:$A,Criteria!$B$10,Data!$C:$C,$B96,Data!$B:$B,$C96) -> 505500 | M96: -1
B97: 1969 | C97: H | D97: =IF(Criteria!$C$7>(2000+CELL("row",A96)-97),"",IF(MONTH(Criteria!$B$7)=1,"Jan. ","Jan-"&TEXT(Criteria!$B$7,"mmm ")))&TEXT((1970+CELL("row",A96)-97),"0") -> 1969 | E97: =SUMIFS(Data!E:E,Data!$A:$A,Criteria!$B$10,Data!$C:$C,REPORT!$B97,Data!$B:$B,$C97) -> 319605 | F97: =SUMIFS(Data!F:F,Data!$A:$A,Criteria!$B$10,Data!$C:$C,REPORT!$B97,Data!$B:$B,$C97) -> 357152000 | G97: =SUMIFS(Data!G:G,Data!$A:$A,Criteria!$B$11,Data!$C:$C,$B97,Data!$B:$B,$C97) -> 423 | H97: 0.001323508706 | I97: =SUMIFS(Data!H:H,Data!$A:$A,Criteria!$B$11,Data!$C:$C,$B97,Data!$B:$B,$C97) -> 425500 | J97: =SUMIFS(Data!G:G,Data!$A:$A,Criteria!$B$10,Data!$C:$C,$B97,Data!$B:$B,$C97) -> 423 | K97: 0.001323508706 | L97: =SUMIFS(Data!H:H,Data!$A:$A,Criteria!$B$10,Data!$C:$C,$B97,Data!$B:$B,$C97) -> 425500 | M97: 0
B98: 1970 | C98: H | D98: =IF(Criteria!$C$7>(2000+CELL("row",A97)-97),"",IF(MONTH(Criteria!$B$7)=1,"Jan. ","Jan-"&TEXT(Criteria!$B$7,"mmm ")))&TEXT((1970+CELL("row",A97)-97),"0") -> 1970 | E98: =SUMIFS(Data!E:E,Data!$A:$A,Criteria!$B$10,Data!$C:$C,REPORT!$B98,Data!$B:$B,$C98) -> 363284 | F98: =SUMIFS(Data!F:F,Data!$A:$A,Criteria!$B$10,Data!$C:$C,REPORT!$B98,Data!$B:$B,$C98) -> 388314000 | G98: =SUMIFS(Data!G:G,Data!$A:$A,Criteria!$B$11,Data!$C:$C,$B98,Data!$B:$B,$C98) -> 705 | H98: 0.001940630471 | I98: =SUMIFS(Data!H:H,Data!$A:$A,Criteria!$B$11,Data!$C:$C,$B98,Data!$B:$B,$C98) -> 577000 | J98: =SUMIFS(Data!G:G,Data!$A:$A,Criteria!$B$10,Data!$C:$C,$B98,Data!$B:$B,$C98) -> 705 | K98: 0.001940630471 | L98: =SUMIFS(Data!H:H,Data!$A:$A,Criteria!$B$10,Data!$C:$C,$B98,Data!$B:$B,$C98) -> 577000 | M98: 0
B99: 1971 | C99: H | D99: =IF(Criteria!$C$7>(2000+CELL("row",A98)-97),"",IF(MONTH(Criteria!$B$7)=1,"Jan. ","Jan-"&TEXT(Criteria!$B$7,"mmm ")))&TEXT((1970+CELL("row",A98)-97),"0") -> 1971 | E99: =SUMIFS(Data!E:E,Data!$A:$A,Criteria!$B$10,Data!$C:$C,REPORT!$B99,Data!$B:$B,$C99) -> 476493 | F99: =SUMIFS(Data!F:F,Data!$A:$A,Criteria!$B$10,Data!$C:$C,REPORT!$B99,Data!$B:$B,$C99) -> 513936000 | G99: =SUMIFS(Data!G:G,Data!$A:$A,Criteria!$B$11,Data!$C:$C,$B99,Data!$B:$B,$C99) -> 995 | H99: 0.002088173383 | I99: =SUMIFS(Data!H:H,Data!$A:$A,Criteria!$B$11,Data!$C:$C,$B99,Data!$B:$B,$C99) -> 883500 | J99: =SUMIFS(Data!G:G,Data!$A:$A,Criteria!$B$10,Data!$C:$C,$B99,Data!$B:$B,$C99) -> 995 | K99: 0.002088173383 | L99: =SUMIFS(Data!H:H,Data!$A:$A,Criteria!$B$10,Data!$C:$C,$B99,Data!$B:$B,$C99) -> 883500 | M99: 0
B100: 1972 | C100: H | D100: =IF(Criteria!$C$7>(2000+CELL("row",A99)-97),"",IF(MONTH(Criteria!$B$7)=1,"Jan. ","Jan-"&TEXT(Criteria!$B$7,"mmm ")))&TEXT((1970+CELL("row",A99)-97),"0") -> 1972 | E100: =SUMIFS(Data!E:E,Data!$A:$A,Criteria!$B$10,Data!$C:$C,REPORT!$B100,Data!$B:$B,$C100) -> 591780 | F100: =SUMIFS(Data!F:F,Data!$A:$A,Criteria!$B$10,Data!$C:$C,REPORT!$B100,Data!$B:$B,$C100) -> 649815000 | G100: =SUMIFS(Data!G:G,Data!$A:$A,Criteria!$B$11,Data!$C:$C,$B100,Data!$B:$B,$C100) -> 1804 | H100: 0.00304843016 | I100: =SUMIFS(Data!H:H,Data!$A:$A,Criteria!$B$11,Data!$C:$C,$B100,Data!$B:$B,$C100) -> 1643000 | J100: =SUMIFS(Data!G:G,Data!$A:$A,Criteria!$B$10,Data!$C:$C,$B100,Data!$B:$B,$C100) -> 1804 | K100: 0.00304843016 | L100: =SUMIFS(Data!H:H,Data!$A:$A,Criteria!$B$10,Data!$C:$C,$B100,Data!$B:$B,$C100) -> 1643000 | M100: 0
B101: 1973 | C101: H | D101: =IF(Criteria!$C$7>(2000+CELL("row",A100)-97),"",IF(MONTH(Criteria!$B$7)=1,"Jan. ","Jan-"&TEXT(Criteria!$B$7,"mmm ")))&TEXT((1970+CELL("row",A100)-97),"0") -> 1973 | E101: =SUMIFS(Data!E:E,Data!$A:$A,Criteria!$B$10,Data!$C:$C,REPORT!$B101,Data!$B:$B,$C101) -> 547175 | F101: =SUMIFS(Data!F:F,Data!$A:$A,Criteria!$B$10,Data!$C:$C,REPORT!$B101,Data!$B:$B,$C101) -> 611493000 | G101: =SUMIFS(Data!G:G,Data!$A:$A,Criteria!$B$11,Data!$C:$C,$B101,Data!$B:$B,$C101) -> 1760 | H101: 0.003216521223 | I101: =SUMIFS(Data!H:H,Data!$A:$A,Criteria!$B$11,Data!$C:$C,$B101,Data!$B:$B,$C101) -> 1645500 | J101: =SUMIFS(Data!G:G,Data!$A:$A,Criteria!$B$10,Data!$C:$C,$B101,Data!$B:$B,$C101) -> 1756 | K101: 0.003209210947 | L101: =SUMIFS(Data!H:H,Data!$A:$A,Criteria!$B$10,Data!$C:$C,$B101,Data!$B:$B,$C101) -> 1633000 | M101: -4
B102: 1974 | C102: H | D102: =IF(Criteria!$C$7>(2000+CELL("row",A101)-97),"",IF(MONTH(Criteria!$B$7)=1,"Jan. ","Jan-"&TEXT(Criteria!$B$7,"mmm ")))&TEXT((1970+CELL("row",A101)-97),"0") -> 1974 | E102: =SUMIFS(Data!E:E,Data!$A:$A,Criteria!$B$10,Data!$C:$C,REPORT!$B102,Data!$B:$B,$C102) -> 546102 | F102: =SUMIFS(Data!F:F,Data!$A:$A,Criteria!$B$10,Data!$C:$C,REPORT!$B102,Data!$B:$B,$C102) -> 626635500 | G102: =SUMIFS(Data!G:G,Data!$A:$A,Criteria!$B$11,Data!$C:$C,$B102,Data!$B:$B,$C102) -> 1809 | H102: 0.003312567982 | I102: =SUMIFS(Data!H:H,Data!$A:$A,Criteria!$B$11,Data!$C:$C,$B102,Data!$B:$B,$C102) -> 1772500 | J102: =SUMIFS(Data!G:G,Data!$A:$A,Criteria!$B$10,Data!$C:$C,$B102,Data!$B:$B,$C102) -> 1809 | K102: 0.003312567982 | L102: =SUMIFS(Data!H:H,Data!$A:$A,Criteria!$B$10,Data!$C:$C,$B102,Data!$B:$B,$C102) -> 1772500 | M102: 0
B103: 1975 | C103: H | D103: =IF(Criteria!$C$7>(2000+CELL("row",A102)-97),"",IF(MONTH(Criteria!$B$7)=1,"Jan. ","Jan-"&TEXT(Criteria!$B$7,"mmm ")))&TEXT((1970+CELL("row",A102)-97),"0") -> 1975 | E103: =SUMIFS(Data!E:E,Data!$A:$A,Criteria!$B$10,Data!$C:$C,REPORT!$B103,Data!$B:$B,$C103) -> 554492 | F103: =SUMIFS(Data!F:F,Data!$A:$A,Criteria!$B$10,Data!$C:$C,REPORT!$B103,Data!$B:$B,$C103) -> 639172500 | G103: =SUMIFS(Data!G:G,Data!$A:$A,Criteria!$B$11,Data!$C:$C,$B103,Data!$B:$B,$C103) -> 2442 | H103: 0.004404031077 | I103: =SUMIFS(Data!H:H,Data!$A:$A,Criteria!$B$11,Data!$C:$C,$B103,Data!$B:$B,$C103) -> 2493000 | J103: =SUMIFS(Data!G:G,Data!$A:$A,Criteria!$B$10,Data!$C:$C,$B103,Data!$B:$B,$C103) -> 2436 | K103: 0.004393210362 | L103: =SUMIFS(Data!H:H,Data!$A:$A,Criteria!$B$10,Data!$C:$C,$B103,Data!$B:$B,$C103) -> 2488500 | M103: -6
B104: 1976 | C104: H | D104: =IF(Criteria!$C$7>(2000+CELL("row",A103)-97),"",IF(MONTH(Criteria!$B$7)=1,"Jan. ","Jan-"&TEXT(Criteria!$B$7,"mmm ")))&TEXT((1970+CELL("row",A103)-97),"0") -> 1976 | E104: =SUMIFS(Data!E:E,Data!$A:$A,Criteria!$B$10,Data!$C:$C,REPORT!$B104,Data!$B:$B,$C104) -> 545315 | F104: =SUMIFS(Data!F:F,Data!$A:$A,Criteria!$B$10,Data!$C:$C,REPORT!$B104,Data!$B:$B,$C104) -> 642686500 | G104: =SUMIFS(Data!G:G,Data!$A:$A,Criteria!$B$11,Data!$C:$C,$B104,Data!$B:$B,$C104) -> 2518 | H104: 0.004617514647 | I104: =SUMIFS(Data!H:H,Data!$A:$A,Criteria!$B$11,Data!$C:$C,$B104,Data!$B:$B,$C104) -> 2492500 | J104: =SUMIFS(Data!G:G,Data!$A:$A,Criteria!$B$10,Data!$C:$C,$B104,Data!$B:$B,$C104) -> 2516 | K104: 0.004613847043 | L104: =SUMIFS(Data!H:H,Data!$A:$A,Criteria!$B$10,Data!$C:$C,$B104,Data!$B:$B,$C104) -> 2490500 | M104: -2
B105: 1977 | C105: H | D105: =IF(Criteria!$C$7>(2000+CELL("row",A104)-97),"",IF(MONTH(Criteria!$B$7)=1,"Jan. ","Jan-"&TEXT(Criteria!$B$7,"mmm ")))&TEXT((1970+CELL("row",A104)-97),"0") -> 1977 | E105: =SUMIFS(Data!E:E,Data!$A:$A,Criteria!$B$10,Data!$C:$C,REPORT!$B105,Data!$B:$B,$C105) -> 501204 | F105: =SUMIFS(Data!F:F,Data!$A:$A,Criteria!$B$10,Data!$C:$C,REPORT!$B105,Data!$B:$B,$C105) -> 612992500 | G105: =SUMIFS(Data!G:G,Data!$A:$A,Criteria!$B$11,Data!$C:$C,$B105,Data!$B:$B,$C105) -> 2745 | H105: 0.005476811837 | I105: =SUMIFS(Data!H:H,Data!$A:$A,Criteria!$B$11,Data!$C:$C,$B105,Data!$B:$B,$C105) -> 2735500 | J105: =SUMIFS(Data!G:G,Data!$A:$A,Criteria!$B$10,Data!$C:$C,$B105,Data!$B:$B,$C105) -> 2736 | K105: 0.005458855077 | L105: =SUMIFS(Data!H:H,Data!$A:$A,Criteria!$B$10,Data!$C:$C,$B105,Data!$B:$B,$C105) -> 2719000 | M105: -9
B106: 1978 | C106: H | D106: =IF(Criteria!$C$7>(2000+CELL("row",A105)-97),"",IF(MONTH(Criteria!$B$7)=1,"Jan. ","Jan-"&TEXT(Criteria!$B$7,"mmm ")))&TEXT((1970+CELL("row",A105)-97),"0") -> 1978 | E106: =SUMIFS(Data!E:E,Data!$A:$A,Criteria!$B$10,Data!$C:$C,REPORT!$B106,Data!$B:$B,$C106) -> 459794 | F106: =SUMIFS(Data!F:F,Data!$A:$A,Criteria!$B$10,Data!$C:$C,REPORT!$B106,Data!$B:$B,$C106) -> 579114500 | G106: =SUMIFS(Data!G:G,Data!$A:$A,Criteria!$B$11,Data!$C:$C,$B106,Data!$B:$B,$C106) -> 2686 | H106: 0.005841746521 | I106: =SUMIFS(Data!H:H,Data!$A:$A,Criteria!$B$11,Data!$C:$C,$B106,Data!$B:$B,$C106) -> 2837000 | J106: =SUMIFS(Data!G:G,Data!$A:$A,Criteria!$B$10,Data!$C:$C,$B106,Data!$B:$B,$C106) -> 2685 | K106: 0.005839571634 | L106: =SUMIFS(Data!H:H,Data!$A:$A,Criteria!$B$10,Data!$C:$C,$B106,Data!$B:$B,$C106) -> 2827000 | M106: -1
B107: 1979 | C107: H | D107: =IF(Criteria!$C$7>(2000+CELL("row",A106)-97),"",IF(MONTH(Criteria!$B$7)=1,"Jan. ","Jan-"&TEXT(Criteria!$B$7,"mmm ")))&TEXT((1970+CELL("row",A106)-97),"0") -> 1979 | E107: =SUMIFS(Data!E:E,Data!$A:$A,Criteria!$B$10,Data!$C:$C,REPORT!$B107,Data!$B:$B,$C107) -> 434281 | F107: =SUMIFS(Data!F:F,Data!$A:$A,Criteria!$B$10,Data!$C:$C,REPORT!$B107,Data!$B:$B,$C107) -> 557806500 | G107: =SUMIFS(Data!G:G,Data!$A:$A,Criteria!$B$11,Data!$C:$C,$B107,Data!$B:$B,$C107) -> 3014 | H107: 0.006940206917 | I107: =SUMIFS(Data!H:H,Data!$A:$A,Criteria!$B$11,Data!$C:$C,$B107,Data!$B:$B,$C107) -> 3210500 | J107: =SUMIFS(Data!G:G,Data!$A:$A,Criteria!$B$10,Data!$C:$C,$B107,Data!$B:$B,$C107) -> 3006 | K107: 0.006921785664 | L107: =SUMIFS(Data!H:H,Data!$A:$A,Criteria!$B$10,Data!$C:$C,$B107,Data!$B:$B,$C107) -> 3205000 | M107: -8
C108: SERIES H TOTAL | E108: =SUM(E80:E107) -> 16386525 | F108: =SUM(F80:F107) -> 18554048500 | G108: =SUM(G80:G107) -> 27991 | H108: =G108/E108 -> 0.001708171806 | I108: =SUM(I80:I107) -> 26613000 | J108: =SUM(J80:J107) -> 27946 | K108: =J108/E108 -> 0.001705425647 | L108: =SUM(L80:L107) -> 26554000 | M108: =J108-G108 -> -45
C110: SERIES HH BONDS (20 YEAR MATURITY) | G110: =G5 -> OUTSTANDING AS OF LAST MONTH 03/31/2024 | J110: =J5 -> OUTSTANDING AS OF THIS MONTH 04/30/2024 | M110: =M$5 -> NET
C111: SERIES | D111: YEAR | E111: BONDS | F111: PAR AMOUNT | G111: BONDS | H111: PERCENT | I111: MATURITY VALUE | J111: BONDS | K111: PERCENT | L111: MATURITY VALUE | M111: =M$6 -> CHANGE
B112: 1980 | C112: HH | D112: =IF(Criteria!$C$7>(2000+CELL("row",A111)-111),"",IF(Criteria!$D$7=1,"Jan. ","Jan-"&TEXT(Criteria!$B$7,"mmm ")))&TEXT((1980+CELL("row",A111)-111),"0") -> 1980 | E112: =SUMIFS(Data!E:E,Data!$A:$A,Criteria!$B$10,Data!$C:$C,REPORT!$B112,Data!$B:$B,$C112) -> 500337 | F112: =SUMIFS(Data!F:F,Data!$A:$A,Criteria!$B$10,Data!$C:$C,REPORT!$B112,Data!$B:$B,$C112) -> 693429500 | G112: =SUMIFS(Data!G:G,Data!$A:$A,Criteria!$B$11,Data!$C:$C,$B112,Data!$B:$B,$C112) -> 1710 | H112: =IF(E112,G112/E112) -> 0.003417696473 | I112: =SUMIFS(Data!H:H,Data!$A:$A,Criteria!$B$11,Data!$C:$C,$B112,Data!$B:$B,$C112) -> 1677000 | J112: =SUMIFS(Data!G:G,Data!$A:$A,Criteria!$B$10,Data!$C:$C,$B112,Data!$B:$B,$C112) -> 1710 | K112: =IF(E112,J112/E112) -> 0.003417696473 | L112: =SUMIFS(Data!H:H,Data!$A:$A,Criteria!$B$10,Data!$C:$C,$B112,Data!$B:$B,$C112) -> 1677000 | M112: =J112-G112 -> 0
B113: =B112+1 -> 1981 | C113: HH | D113: =IF(Criteria!$C$7>(2000+CELL("row",A112)-111),"",IF(Criteria!$D$7=1,"Jan. ","Jan-"&TEXT(Criteria!$B$7,"mmm ")))&TEXT((1980+CELL("row",A112)-111),"0") -> 1981 | E113: =SUMIFS(Data!E:E,Data!$A:$A,Criteria!$B$10,Data!$C:$C,REPORT!$B113,Data!$B:$B,$C113) -> 595751 | F113: =SUMIFS(Data!F:F,Data!$A:$A,Criteria!$B$10,Data!$C:$C,REPORT!$B113,Data!$B:$B,$C113) -> 831964000 | G113: =SUMIFS(Data!G:G,Data!$A:$A,Criteria!$B$11,Data!$C:$C,$B113,Data!$B:$B,$C113) -> 3023 | H113: 0.005074267605 | I113: =SUMIFS(Data!H:H,Data!$A:$A,Criteria!$B$11,Data!$C:$C,$B113,Data!$B:$B,$C113) -> 2878500 | J113: =SUMIFS(Data!G:G,Data!$A:$A,Criteria!$B$10,Data!$C:$C,$B113,Data!$B:$B,$C113) -> 3010 | K113: 0.005052446408 | L113: =SUMIFS(Data!H:H,Data!$A:$A,Criteria!$B$10,Data!$C:$C,$B113,Data!$B:$B,$C113) -> 2868000 | M113: =J113-G113 -> -13
B114: =B113+1 -> 1982 | C114: HH | D114: =IF(Criteria!$C$7>(2000+CELL("row",A113)-111),"",IF(Criteria!$D$7=1,"Jan. ","Jan-"&TEXT(Criteria!$B$7,"mmm ")))&TEXT((1980+CELL("row",A113)-111),"0") -> 1982 | E114: =SUMIFS(Data!E:E,Data!$A:$A,Criteria!$B$10,Data!$C:$C,REPORT!$B114,Data!$B:$B,$C114) -> 578431 | F114: =SUMIFS(Data!F:F,Data!$A:$A,Criteria!$B$10,Data!$C:$C,REPORT!$B114,Data!$B:$B,$C114) -> 801291500 | G114: =SUMIFS(Data!G:G,Data!$A:$A,Criteria!$B$11,Data!$C:$C,$B114,Data!$B:$B,$C114) -> 3542 | H114: 0.006123461571 | I114: =SUMIFS(Data!H:H,Data!$A:$A,Criteria!$B$11,Data!$C:$C,$B114,Data!$B:$B,$C114) -> 3585000 | J114: =SUMIFS(Data!G:G,Data!$A:$A,Criteria!$B$10,Data!$C:$C,$B114,Data!$B:$B,$C114) -> 3541 | K114: 0.006121732756 | L114: =SUMIFS(Data!H:H,Data!$A:$A,Criteria!$B$10,Data!$C:$C,$B114,Data!$B:$B,$C114) -> 3584500 | M114: -1
B115: 1983 | C115: HH | D115: =IF(Criteria!$C$7>(2000+CELL("row",A114)-111),"",IF(Criteria!$D$7=1,"Jan. ","Jan-"&TEXT(Criteria!$B$7,"mmm ")))&TEXT((1980+CELL("row",A114)-111),"0") -> 1983 | E115: =SUMIFS(Data!E:E,Data!$A:$A,Criteria!$B$10,Data!$C:$C,REPORT!$B115,Data!$B:$B,$C115) -> 552484 | F115: =SUMIFS(Data!F:F,Data!$A:$A,Criteria!$B$10,Data!$C:$C,REPORT!$B115,Data!$B:$B,$C115) -> 734841000 | G115: =SUMIFS(Data!G:G,Data!$A:$A,Criteria!$B$11,Data!$C:$C,$B115,Data!$B:$B,$C115) -> 3725 | H115: 0.006742276699 | I115: =SUMIFS(Data!H:H,Data!$A:$A,Criteria!$B$11,Data!$C:$C,$B115,Data!$B:$B,$C115) -> 3252000 | J115: =SUMIFS(Data!G:G,Data!$A:$A,Criteria!$B$10,Data!$C:$C,$B115,Data!$B:$B,$C115) -> 3725 | K115: 0.006742276699 | L115: =SUMIFS(Data!H:H,Data!$A:$A,Criteria!$B$10,Data!$C:$C,$B115,Data!$B:$B,$C115) -> 3252000 | M115: 0
B116: 1984 | C116: HH | D116: =IF(Criteria!$C$7>(2000+CELL("row",A115)-111),"",IF(Criteria!$D$7=1,"Jan. ","Jan-"&TEXT(Criteria!$B$7,"mmm ")))&TEXT((1980+CELL("row",A115)-111),"0") -> 1984 | E116: =SUMIFS(Data!E:E,Data!$A:$A,Criteria!$B$10,Data!$C:$C,REPORT!$B116,Data!$B:$B,$C116) -> 514442 | F116: =SUMIFS(Data!F:F,Data!$A:$A,Criteria!$B$10,Data!$C:$C,REPORT!$B116,Data!$B:$B,$C116) -> 701350500 | G116: =SUMIFS(Data!G:G,Data!$A:$A,Criteria!$B$11,Data!$C:$C,$B116,Data!$B:$B,$C116) -> 4772 | H116: 0.009276069994 | I116: =SUMIFS(Data!H:H,Data!$A:$A,Criteria!$B$11,Data!$C:$C,$B116,Data!$B:$B,$C116) -> 5044000 | J116: =SUMIFS(Data!G:G,Data!$A:$A,Criteria!$B$10,Data!$C:$C,$B116,Data!$B:$B,$C116) -> 4721 | K116: 0.009176933454 | L116: =SUMIFS(Data!H:H,Data!$A:$A,Criteria!$B$10,Data!$C:$C,$B116,Data!$B:$B,$C116) -> 5006000 | M116: -51
B117: 1985 | C117: HH | D117: =IF(Criteria!$C$7>(2000+CELL("row",A116)-111),"",IF(Criteria!$D$7=1,"Jan. ","Jan-"&TEXT(Criteria!$B$7,"mmm ")))&TEXT((1980+CELL("row",A116)-111),"0") -> 1985 | E117: =SUMIFS(Data!E:E,Data!$A:$A,Criteria!$B$10,Data!$C:$C,REPORT!$B117,Data!$B:$B,$C117) -> 495599 | F117: =SUMIFS(Data!F:F,Data!$A:$A,Criteria!$B$10,Data!$C:$C,REPORT!$B117,Data!$B:$B,$C117) -> 691736000 | G117: =SUMIFS(Data!G:G,Data!$A:$A,Criteria!$B$11,Data!$C:$C,$B117,Data!$B:$B,$C117) -> 5489 | H117: 0.01107548643 | I117: =SUMIFS(Data!H:H,Data!$A:$A,Criteria!$B$11,Data!$C:$C,$B117,Data!$B:$B,$C117) -> 5420500 | J117: =SUMIFS(Data!G:G,Data!$A:$A,Criteria!$B$10,Data!$C:$C,$B117,Data!$B:$B,$C117) -> 5485 | K117: 0.01106741539 | L117: =SUMIFS(Data!H:H,Data!$A:$A,Criteria!$B$10,Data!$C:$C,$B117,Data!$B:$B,$C117) -> 5417500 | M117: -4
B118: 1986 | C118: HH | D118: =IF(Criteria!$C$7>(2000+CELL("row",A117)-111),"",IF(Criteria!$D$7=1,"Jan. ","Jan-"&TEXT(Criteria!$B$7,"mmm ")))&TEXT((1980+CELL("row",A117)-111),"0") -> 1986 | E118: =SUMIFS(Data!E:E,Data!$A:$A,Criteria!$B$10,Data!$C:$C,REPORT!$B118,Data!$B:$B,$C118) -> 537812 | F118: =SUMIFS(Data!F:F,Data!$A:$A,Criteria!$B$10,Data!$C:$C,REPORT!$B118,Data!$B:$B,$C118) -> 826212000 | G118: =SUMIFS(Data!G:G,Data!$A:$A,Criteria!$B$11,Data!$C:$C,$B118,Data!$B:$B,$C118) -> 5100 | H118: 0.009482867619 | I118: =SUMIFS(Data!H:H,Data!$A:$A,Criteria!$B$11,Data!$C:$C,$B118,Data!$B:$B,$C118) -> 5655000 | J118: =SUMIFS(Data!G:G,Data!$A:$A,Criteria!$B$10,Data!$C:$C,$B118,Data!$B:$B,$C118) -> 5088 | K118: 0.009460554989 | L118: =SUMIFS(Data!H:H,Data!$A:$A,Criteria!$B$10,Data!$C:$C,$B118,Data!$B:$B,$C118) -> 5647000 | M118: -12
B119: 1987 | C119: HH | D119: =IF(Criteria!$C$7>(2000+CELL("row",A118)-111),"",IF(Criteria!$D$7=1,"Jan. ","Jan-"&TEXT(Criteria!$B$7,"mmm ")))&TEXT((1980+CELL("row",A118)-111),"0") -> 1987 | E119: =SUMIFS(Data!E:E,Data!$A:$A,Criteria!$B$10,Data!$C:$C,REPORT!$B119,Data!$B:$B,$C119) -> 399256 | F119: =SUMIFS(Data!F:F,Data!$A:$A,Criteria!$B$10,Data!$C:$C,REPORT!$B119,Data!$B:$B,$C119) -> 637163500 | G119: =SUMIFS(Data!G:G,Data!$A:$A,Criteria!$B$11,Data!$C:$C,$B119,Data!$B:$B,$C119) -> 4362 | H119: 0.0109253211 | I119: =SUMIFS(Data!H:H,Data!$A:$A,Criteria!$B$11,Data!$C:$C,$B119,Data!$B:$B,$C119) -> 4985500 | J119: =SUMIFS(Data!G:G,Data!$A:$A,Criteria!$B$10,Data!$C:$C,$B119,Data!$B:$B,$C119) -> 4361 | K119: 0.01092281644 | L119: =SUMIFS(Data!H:H,Data!$A:$A,Criteria!$B$10,Data!$C:$C,$B119,Data!$B:$B,$C119) -> 4985000 | M119: -1
B120: 1988 | C120: HH | D120: =IF(Criteria!$C$7>(2000+CELL("row",A119)-111),"",IF(Criteria!$D$7=1,"Jan. ","Jan-"&TEXT(Criteria!$B$7,"mmm ")))&TEXT((1980+CELL("row",A119)-111),"0") -> 1988 | E120: =SUMIFS(Data!E:E,Data!$A:$A,Criteria!$B$10,Data!$C:$C,REPORT!$B120,Data!$B:$B,$C120) -> 458335 | F120: =SUMIFS(Data!F:F,Data!$A:$A,Criteria!$B$10,Data!$C:$C,REPORT!$B120,Data!$B:$B,$C120) -> 766099500 | G120: =SUMIFS(Data!G:G,Data!$A:$A,Criteria!$B$11,Data!$C:$C,$B120,Data!$B:$B,$C120) -> 5678 | H120: 0.01238831859 | I120: =SUMIFS(Data!H:H,Data!$A:$A,Criteria!$B$11,Data!$C:$C,$B120,Data!$B:$B,$C120) -> 7414000 | J120: =SUMIFS(Data!G:G,Data!$A:$A,Criteria!$B$10,Data!$C:$C,$B120,Data!$B:$B,$C120) -> 5664 | K120: 0.01235777324 | L120: =SUMIFS(Data!H:H,Data!$A:$A,Criteria!$B$10,Data!$C:$C,$B120,Data!$B:$B,$C120) -> 7337500 | M120: -14
B121: 1989 | C121: HH | D121: =IF(Criteria!$C$7>(2000+CELL("row",A120)-111),"",IF(Criteria!$D$7=1,"Jan. ","Jan-"&TEXT(Criteria!$B$7,"mmm ")))&TEXT((1980+CELL("row",A120)-111),"0") -> 1989 | E121: =SUMIFS(Data!E:E,Data!$A:$A,Criteria!$B$10,Data!$C:$C,REPORT!$B121,Data!$B:$B,$C121) -> 414393 | F121: =SUMIFS(Data!F:F,Data!$A:$A,Criteria!$B$10,Data!$C:$C,REPORT!$B121,Data!$B:$B,$C121) -> 714821000 | G121: =SUMIFS(Data!G:G,Data!$A:$A,Criteria!$B$11,Data!$C:$C,$B121,Data!$B:$B,$C121) -> 5983 | H121: 0.0144379852 | I121: =SUMIFS(Data!H:H,Data!$A:$A,Criteria!$B$11,Data!$C:$C,$B121,Data!$B:$B,$C121) -> 7953000 | J121: =SUMIFS(Data!G:G,Data!$A:$A,Criteria!$B$10,Data!$C:$C,$B121,Data!$B:$B,$C121) -> 5944 | K121: 0.01434387164 | L121: =SUMIFS(Data!H:H,Data!$A:$A,Criteria!$B$10,Data!$C:$C,$B121,Data!$B:$B,$C121) -> 7884000 | M121: -39
B122: 1990 | C122: HH | D122: =IF(Criteria!$C$7>(2000+CELL("row",A121)-111),"",IF(Criteria!$D$7=1,"Jan. ","Jan-"&TEXT(Criteria!$B$7,"mmm ")))&TEXT((1980+CELL("row",A121)-111),"0") -> 1990 | E122: =SUMIFS(Data!E:E,Data!$A:$A,Criteria!$B$10,Data!$C:$C,REPORT!$B122,Data!$B:$B,$C122) -> 455721 | F122: =SUMIFS(Data!F:F,Data!$A:$A,Criteria!$B$10,Data!$C:$C,REPORT!$B122,Data!$B:$B,$C122) -> 805967000 | G122: =SUMIFS(Data!G:G,Data!$A:$A,Criteria!$B$11,Data!$C:$C,$B122,Data!$B:$B,$C122) -> 7042 | H122: 0.01545243691 | I122: =SUMIFS(Data!H:H,Data!$A:$A,Criteria!$B$11,Data!$C:$C,$B122,Data!$B:$B,$C122) -> 8317500 | J122: =SUMIFS(Data!G:G,Data!$A:$A,Criteria!$B$10,Data!$C:$C,$B122,Data!$B:$B,$C122) -> 7007 | K122: 0.01537563553 | L122: =SUMIFS(Data!H:H,Data!$A:$A,Criteria!$B$10,Data!$C:$C,$B122,Data!$B:$B,$C122) -> 8268000 | M122: =J122-G122 -> -35
B123: 1991 | C123: HH | D123: =IF(Criteria!$C$7>(2000+CELL("row",A122)-111),"",IF(Criteria!$D$7=1,"Jan. ","Jan-"&TEXT(Criteria!$B$7,"mmm ")))&TEXT((1980+CELL("row",A122)-111),"0") -> 1991 | E123: =SUMIFS(Data!E:E,Data!$A:$A,Criteria!$B$10,Data!$C:$C,REPORT!$B123,Data!$B:$B,$C123) -> 478442 | F123: =SUMIFS(Data!F:F,Data!$A:$A,Criteria!$B$10,Data!$C:$C,REPORT!$B123,Data!$B:$B,$C123) -> 853585500 | G123: =SUMIFS(Data!G:G,Data!$A:$A,Criteria!$B$11,Data!$C:$C,$B123,Data!$B:$B,$C123) -> 7678 | H123: 0.01604792221 | I123: =SUMIFS(Data!H:H,Data!$A:$A,Criteria!$B$11,Data!$C:$C,$B123,Data!$B:$B,$C123) -> 10817000 | J123: =SUMIFS(Data!G:G,Data!$A:$A,Criteria!$B$10,Data!$C:$C,$B123,Data!$B:$B,$C123) -> 7618 | K123: 0.01592251516 | L123: =SUMIFS(Data!H:H,Data!$A:$A,Criteria!$B$10,Data!$C:$C,$B123,Data!$B:$B,$C123) -> 10771500 | M123: -60
B124: 1992 | C124: HH | D124: =IF(Criteria!$C$7>(2000+CELL("row",A123)-111),"",IF(Criteria!$D$7=1,"Jan. ","Jan-"&TEXT(Criteria!$B$7,"mmm ")))&TEXT((1980+CELL("row",A123)-111),"0") -> 1992 | E124: =SUMIFS(Data!E:E,Data!$A:$A,Criteria!$B$10,Data!$C:$C,REPORT!$B124,Data!$B:$B,$C124) -> 680772 | F124: =SUMIFS(Data!F:F,Data!$A:$A,Criteria!$B$10,Data!$C:$C,REPORT!$B124,Data!$B:$B,$C124) -> 1237302500 | G124: =SUMIFS(Data!G:G,Data!$A:$A,Criteria!$B$11,Data!$C:$C,$B124,Data!$B:$B,$C124) -> 12293 | H124: 0.01805744067 | I124: =SUMIFS(Data!H:H,Data!$A:$A,Criteria!$B$11,Data!$C:$C,$B124,Data!$B:$B,$C124) -> 16103500 | J124: =SUMIFS(Data!G:G,Data!$A:$A,Criteria!$B$10,Data!$C:$C,$B124,Data!$B:$B,$C124) -> 12172 | K124: 0.01787970128 | L124: =SUMIFS(Data!H:H,Data!$A:$A,Criteria!$B$10,Data!$C:$C,$B124,Data!$B:$B,$C124) -> 15988500 | M124: -121
B125: 1993 | C125: HH | D125: =IF(Criteria!$C$7>(2000+CELL("row",A124)-111),"",IF(Criteria!$D$7=1,"Jan. ","Jan-"&TEXT(Criteria!$B$7,"mmm ")))&TEXT((1980+CELL("row",A124)-111),"0") -> 1993 | E125: =SUMIFS(Data!E:E,Data!$A:$A,Criteria!$B$10,Data!$C:$C,REPORT!$B125,Data!$B:$B,$C125) -> 555855 | F125: =SUMIFS(Data!F:F,Data!$A:$A,Criteria!$B$10,Data!$C:$C,REPORT!$B125,Data!$B:$B,$C125) -> 1012376500 | G125: =SUMIFS(Data!G:G,Data!$A:$A,Criteria!$B$11,Data!$C:$C,$B125,Data!$B:$B,$C125) -> 10652 | H125: 0.019163271 | I125: =SUMIFS(Data!H:H,Data!$A:$A,Criteria!$B$11,Data!$C:$C,$B125,Data!$B:$B,$C125) -> 13760000 | J125: =SUMIFS(Data!G:G,Data!$A:$A,Criteria!$B$10,Data!$C:$C,$B125,Data!$B:$B,$C125) -> 10562 | K125: 0.01900135827 | L125: =SUMIFS(Data!H:H,Data!$A:$A,Criteria!$B$10,Data!$C:$C,$B125,Data!$B:$B,$C125) -> 13646000 | M125: -90
B126: 1994 | C126: HH | D126: =IF(Criteria!$C$7>(2000+CELL("row",A125)-111),"",IF(Criteria!$D$7=1,"Jan. ","Jan-"&TEXT(Criteria!$B$7,"mmm ")))&TEXT((1980+CELL("row",A125)-111),"0") -> 1994 | E126: =SUMIFS(Data!E:E,Data!$A:$A,Criteria!$B$10,Data!$C:$C,REPORT!$B126,Data!$B:$B,$C126) -> 459323 | F126: =SUMIFS(Data!F:F,Data!$A:$A,Criteria!$B$10,Data!$C:$C,REPORT!$B126,Data!$B:$B,$C126) -> 841500500 | G126: =SUMIFS(Data!G:G,Data!$A:$A,Criteria!$B$11,Data!$C:$C,$B126,Data!$B:$B,$C126) -> 10648 | H126: 0.02318194386 | I126: =SUMIFS(Data!H:H,Data!$A:$A,Criteria!$B$11,Data!$C:$C,$B126,Data!$B:$B,$C126) -> 15223000 | J126: =SUMIFS(Data!G:G,Data!$A:$A,Criteria!$B$10,Data!$C:$C,$B126,Data!$B:$B,$C126) -> 10586 | K126: 0.02304696259 | L126: =SUMIFS(Data!H:H,Data!$A:$A,Criteria!$B$10,Data!$C:$C,$B126,Data!$B:$B,$C126) -> 15162000 | M126: -62
B127: 1995 | C127: HH | D127: =IF(Criteria!$C$7>(2000+CELL("row",A126)-111),"",IF(Criteria!$D$7=1,"Jan. ","Jan-"&TEXT(Criteria!$B$7,"mmm ")))&TEXT((1980+CELL("row",A126)-111),"0") -> 1995 | E127: =SUMIFS(Data!E:E,Data!$A:$A,Criteria!$B$10,Data!$C:$C,REPORT!$B127,Data!$B:$B,$C127) -> 492750 | F127: =SUMIFS(Data!F:F,Data!$A:$A,Criteria!$B$10,Data!$C:$C,REPORT!$B127,Data!$B:$B,$C127) -> 922625500 | G127: =SUMIFS(Data!G:G,Data!$A:$A,Criteria!$B$11,Data!$C:$C,$B127,Data!$B:$B,$C127) -> 12881 | H127: 0.02614104515 | I127: =SUMIFS(Data!H:H,Data!$A:$A,Criteria!$B$11,Data!$C:$C,$B127,Data!$B:$B,$C127) -> 17565000 | J127: =SUMIFS(Data!G:G,Data!$A:$A,Criteria!$B$10,Data!$C:$C,$B127,Data!$B:$B,$C127) -> 12783 | K127: 0.02594216134 | L127: =SUMIFS(Data!H:H,Data!$A:$A,Criteria!$B$10,Data!$C:$C,$B127,Data!$B:$B,$C127) -> 17445000 | M127: -98
B128: 1996 | C128: HH | D128: =IF(Criteria!$C$7>(2000+CELL("row",A127)-111),"",IF(Criteria!$D$7=1,"Jan. ","Jan-"&TEXT(Criteria!$B$7,"mmm ")))&TEXT((1980+CELL("row",A127)-111),"0") -> 1996 | E128: =SUMIFS(Data!E:E,Data!$A:$A,Criteria!$B$10,Data!$C:$C,REPORT!$B128,Data!$B:$B,$C128) -> 688846 | F128: =SUMIFS(Data!F:F,Data!$A:$A,Criteria!$B$10,Data!$C:$C,REPORT!$B128,Data!$B:$B,$C128) -> 1254150500 | G128: =SUMIFS(Data!G:G,Data!$A:$A,Criteria!$B$11,Data!$C:$C,$B128,Data!$B:$B,$C128) -> 20085 | H128: 0.02915746045 | I128: =SUMIFS(Data!H:H,Data!$A:$A,Criteria!$B$11,Data!$C:$C,$B128,Data!$B:$B,$C128) -> 26463500 | J128: =SUMIFS(Data!G:G,Data!$A:$A,Criteria!$B$10,Data!$C:$C,$B128,Data!$B:$B,$C128) -> 19893 | K128: 0.02887873342 | L128: =SUMIFS(Data!H:H,Data!$A:$A,Criteria!$B$10,Data!$C:$C,$B128,Data!$B:$B,$C128) -> 26235000 | M128: -192
B129: 1997 | C129: HH | D129: =IF(Criteria!$C$7>(2000+CELL("row",A128)-111),"",IF(Criteria!$D$7=1,"Jan. ","Jan-"&TEXT(Criteria!$B$7,"mmm ")))&TEXT((1980+CELL("row",A128)-111),"0") -> 1997 | E129: =SUMIFS(Data!E:E,Data!$A:$A,Criteria!$B$10,Data!$C:$C,REPORT!$B129,Data!$B:$B,$C129) -> 662583 | F129: =SUMIFS(Data!F:F,Data!$A:$A,Criteria!$B$10,Data!$C:$C,REPORT!$B129,Data!$B:$B,$C129) -> 1184576500 | G129: =SUMIFS(Data!G:G,Data!$A:$A,Criteria!$B$11,Data!$C:$C,$B129,Data!$B:$B,$C129) -> 24045 | H129: 0.03628979313 | I129: =SUMIFS(Data!H:H,Data!$A:$A,Criteria!$B$11,Data!$C:$C,$B129,Data!$B:$B,$C129) -> 31498500 | J129: =SUMIFS(Data!G:G,Data!$A:$A,Criteria!$B$10,Data!$C:$C,$B129,Data!$B:$B,$C129) -> 23811 | K129: 0.03593662983 | L129: =SUMIFS(Data!H:H,Data!$A:$A,Criteria!$B$10,Data!$C:$C,$B129,Data!$B:$B,$C129) -> 31105000 | M129: -234
B130: 1998 | C130: HH | D130: =IF(Criteria!$C$7>(2000+CELL("row",A129)-111),"",IF(Criteria!$D$7=1,"Jan. ","Jan-"&TEXT(Criteria!$B$7,"mmm ")))&TEXT((1980+CELL("row",A129)-111),"0") -> 1998 | E130: =SUMIFS(Data!E:E,Data!$A:$A,Criteria!$B$10,Data!$C:$C,REPORT!$B130,Data!$B:$B,$C130) -> 619141 | F130: =SUMIFS(Data!F:F,Data!$A:$A,Criteria!$B$10,Data!$C:$C,REPORT!$B130,Data!$B:$B,$C130) -> 1099839000 | G130: =SUMIFS(Data!G:G,Data!$A:$A,Criteria!$B$11,Data!$C:$C,$B130,Data!$B:$B,$C130) -> 26076 | H130: 0.04211641613 | I130: =SUMIFS(Data!H:H,Data!$A:$A,Criteria!$B$11,Data!$C:$C,$B130,Data!$B:$B,$C130) -> 35067000 | J130: =SUMIFS(Data!G:G,Data!$A:$A,Criteria!$B$10,Data!$C:$C,$B130,Data!$B:$B,$C130) -> 25774 | K130: 0.04162864356 | L130: =SUMIFS(Data!H:H,Data!$A:$A,Criteria!$B$10,Data!$C:$C,$B130,Data!$B:$B,$C130) -> 34656500 | M130: -302
B131: 1999 | C131: HH | D131: =IF(Criteria!$C$7>(2000+CELL("row",A130)-111),"",IF(Criteria!$D$7=1,"Jan. ","Jan-"&TEXT(Criteria!$B$7,"mmm ")))&TEXT((1980+CELL("row",A130)-111),"0") -> 1999 | E131: =SUMIFS(Data!E:E,Data!$A:$A,Criteria!$B$10,Data!$C:$C,REPORT!$B131,Data!$B:$B,$C131) -> 607141 | F131: =SUMIFS(Data!F:F,Data!$A:$A,Criteria!$B$10,Data!$C:$C,REPORT!$B131,Data!$B:$B,$C131) -> 1091623000 | G131: =SUMIFS(Data!G:G,Data!$A:$A,Criteria!$B$11,Data!$C:$C,$B131,Data!$B:$B,$C131) -> 30777 | H131: 0.05069168447 | I131: =SUMIFS(Data!H:H,Data!$A:$A,Criteria!$B$11,Data!$C:$C,$B131,Data!$B:$B,$C131) -> 42446000 | J131: =SUMIFS(Data!G:G,Data!$A:$A,Criteria!$B$10,Data!$C:$C,$B131,Data!$B:$B,$C131) -> 30495 | K131: 0.05022721246 | L131: =SUMIFS(Data!H:H,Data!$A:$A,Criteria!$B$10,Data!$C:$C,$B131,Data!$B:$B,$C131) -> 41780500 | M131: -282
B132: 2000 | C132: HH | D132: =IF(Criteria!$C$7>(2000+CELL("row",A131)-111),"",IF(Criteria!$D$7=1,"Jan. ","Jan-"&TEXT(Criteria!$B$7,"mmm ")))&TEXT((1980+CELL("row",A131)-111),"0") -> 2000 | E132: =SUMIFS(Data!E:E,Data!$A:$A,Criteria!$B$10,Data!$C:$C,REPORT!$B132,Data!$B:$B,$C132) -> 592939 | F132: =SUMIFS(Data!F:F,Data!$A:$A,Criteria!$B$10,Data!$C:$C,REPORT!$B132,Data!$B:$B,$C132) -> 1062533500 | G132: =SUMIFS(Data!G:G,Data!$A:$A,Criteria!$B$11,Data!$C:$C,$B132,Data!$B:$B,$C132) -> 37401 | H132: 0.06307731487 | I132: =SUMIFS(Data!H:H,Data!$A:$A,Criteria!$B$11,Data!$C:$C,$B132,Data!$B:$B,$C132) -> 53109500 | J132: =SUMIFS(Data!G:G,Data!$A:$A,Criteria!$B$10,Data!$C:$C,$B132,Data!$B:$B,$C132) -> 36927 | K132: 0.06227790717 | L132: =SUMIFS(Data!H:H,Data!$A:$A,Criteria!$B$10,Data!$C:$C,$B132,Data!$B:$B,$C132) -> 52430000 | M132: -474
B133: 2001 | C133: HH | D133: =IF(Criteria!$C$7>(2000+CELL("row",A132)-111),"",IF(Criteria!$D$7=1,"Jan. ","Jan-"&TEXT(Criteria!$B$7,"mmm ")))&TEXT((1980+CELL("row",A132)-111),"0") -> 2001 | E133: =SUMIFS(Data!E:E,Data!$A:$A,Criteria!$B$10,Data!$C:$C,REPORT!$B133,Data!$B:$B,$C133) -> 722400 | F133: =SUMIFS(Data!F:F,Data!$A:$A,Criteria!$B$10,Data!$C:$C,REPORT!$B133,Data!$B:$B,$C133) -> 1255035500 | G133: =SUMIFS(Data!G:G,Data!$A:$A,Criteria!$B$11,Data!$C:$C,$B133,Data!$B:$B,$C133) -> 53866 | H133: 0.07456533776 | I133: =SUMIFS(Data!H:H,Data!$A:$A,Criteria!$B$11,Data!$C:$C,$B133,Data!$B:$B,$C133) -> 75513500 | J133: =SUMIFS(Data!G:G,Data!$A:$A,Criteria!$B$10,Data!$C:$C,$B133,Data!$B:$B,$C133) -> 52893 | K133: 0.07321843854 | L133: =SUMIFS(Data!H:H,Data!$A:$A,Criteria!$B$10,Data!$C:$C,$B133,Data!$B:$B,$C133) -> 74088500 | M133: -973
B134: 2002 | C134: HH | D134: =IF(Criteria!$C$7>(2000+CELL("row",A133)-111),"",IF(Criteria!$D$7=1,"Jan. ","Jan-"&TEXT(Criteria!$B$7,"mmm ")))&TEXT((1980+CELL("row",A133)-111),"0") -> 2002 | E134: =SUMIFS(Data!E:E,Data!$A:$A,Criteria!$B$10,Data!$C:$C,REPORT!$B134,Data!$B:$B,$C134) -> 968389 | F134: =SUMIFS(Data!F:F,Data!$A:$A,Criteria!$B$10,Data!$C:$C,REPORT!$B134,Data!$B:$B,$C134) -> 1675694500 | G134: =SUMIFS(Data!G:G,Data!$A:$A,Criteria!$B$11,Data!$C:$C,$B134,Data!$B:$B,$C134) -> 91850 | H134: 0.09484824797 | I134: =SUMIFS(Data!H:H,Data!$A:$A,Criteria!$B$11,Data!$C:$C,$B134,Data!$B:$B,$C134) -> 131655500 | J134: =SUMIFS(Data!G:G,Data!$A:$A,Criteria!$B$10,Data!$C:$C,$B134,Data!$B:$B,$C134) -> 89744 | K134: 0.09267350207 | L134: =SUMIFS(Data!H:H,Data!$A:$A,Criteria!$B$10,Data!$C:$C,$B134,Data!$B:$B,$C134) -> 127633500 | M134: -2106
B135: 2003 | C135: HH | D135: =IF(Criteria!$C$7>(2000+CELL("row",A134)-111),"",IF(Criteria!$D$7=1,"Jan. ","Jan-"&TEXT(Criteria!$B$7,"mmm ")))&TEXT((1980+CELL("row",A134)-111),"0") -> 2003 | E135: =SUMIFS(Data!E:E,Data!$A:$A,Criteria!$B$10,Data!$C:$C,REPORT!$B135,Data!$B:$B,$C135) -> 671037 | F135: =SUMIFS(Data!F:F,Data!$A:$A,Criteria!$B$10,Data!$C:$C,REPORT!$B135,Data!$B:$B,$C135) -> 1108465500 | G135: =SUMIFS(Data!G:G,Data!$A:$A,Criteria!$B$11,Data!$C:$C,$B135,Data!$B:$B,$C135) -> 81915 | H135: 0.1220722553 | I135: =SUMIFS(Data!H:H,Data!$A:$A,Criteria!$B$11,Data!$C:$C,$B135,Data!$B:$B,$C135) -> 117338500 | J135: =SUMIFS(Data!G:G,Data!$A:$A,Criteria!$B$10,Data!$C:$C,$B135,Data!$B:$B,$C135) -> 77497 | K135: 0.1154884157 | L135: =SUMIFS(Data!H:H,Data!$A:$A,Criteria!$B$10,Data!$C:$C,$B135,Data!$B:$B,$C135) -> 109785500 | M135: -4418
B136: 2004 | C136: HH | D136: =IF(Criteria!$C$7>(2000+CELL("row",A135)-111),"",IF(Criteria!$D$7=1,"Jan. ","Jan-"&TEXT(Criteria!$B$7,"mmm ")))&TEXT((1980+CELL("row",A135)-111),"0") -> Jan-Apr 2004 | E136: =SUMIFS(Data!E:E,Data!$A:$A,Criteria!$B$10,Data!$C:$C,REPORT!$B136,Data!$B:$B,$C136) -> 413206 | F136: =SUMIFS(Data!F:F,Data!$A:$A,Criteria!$B$10,Data!$C:$C,REPORT!$B136,Data!$B:$B,$C136) -> 538240500 | G136: =SUMIFS(Data!G:G,Data!$A:$A,Criteria!$B$11,Data!$C:$C,$B136,Data!$B:$B,$C136) -> 90232 | H136: 0.218370498 | I136: =SUMIFS(Data!H:H,Data!$A:$A,Criteria!$B$11,Data!$C:$C,$B136,Data!$B:$B,$C136) -> 65879500 | J136: =SUMIFS(Data!G:G,Data!$A:$A,Criteria!$B$10,Data!$C:$C,$B136,Data!$B:$B,$C136) -> 114633 | K136: 0.2774233675 | L136: =SUMIFS(Data!H:H,Data!$A:$A,Criteria!$B$10,Data!$C:$C,$B136,Data!$B:$B,$C136) -> 81747500 | M136: =J136-G136 -> 24401
C137: SERIES HH TOTAL | E137: =SUM(E112:E136) -> 14115385 | F137: =SUM(F112:F136) -> 23342424500 | G137: =SUM(G112:G136) -> 560825 | H137: =G137/E137 -> 0.03973147031 | I137: =SUM(I112:I136) -> 708622000 | J137: =SUM(J112:J136) -> 575644 | K137: =J137/E137 -> 0.04078131769 | L137: =SUM(L112:L136) -> 708401500 | M137: =J137-G137 -> 14819
C139: SERIES A -- D BONDS (10 YEAR MATURITY) | G139: =G5 -> OUTSTANDING AS OF LAST MONTH 03/31/2024 | J139: =J5 -> OUTSTANDING AS OF THIS MONTH 04/30/2024 | M139: =M$5 -> NET
C140: SERIES | D140: YEAR | E140: BONDS | F140: PAR AMOUNT | G140: BONDS | H140: PERCENT | I140: MATURITY VALUE | J140: BONDS | K140: PERCENT | L140: MATURITY VALUE | M140: =M$6 -> CHANGE
B141: 228 | C141: A | D141: 1935 | E141: =SUMIFS(Data!E:E,Data!$A:$A,Criteria!$B$10,Data!$C:$C,$D141,Data!$B:$B,$C141) -> 1026746 | F141: =SUMIFS(Data!F:F,Data!$A:$A,Criteria!$B$10,Data!$C:$C,REPORT!$D141,Data!$B:$B,$C141) -> 271843525 | G141: =SUMIFS(Data!G:G,Data!$A:$A,Criteria!$B$11,Data!$C:$C,$D141,Data!$B:$B,$C141) -> 752 | H141: =IF(E141,G141/E141) -> 0.0007324109371 | I141: =SUMIFS(Data!H:H,Data!$A:$A,Criteria!$B$11,Data!$C:$C,$D141,Data!$B:$B,$C141) -> 61475 | J141: =SUMIFS(Data!G:G,Data!$A:$A,Criteria!$B$10,Data!$C:$C,$D141,Data!$B:$B,$C141) -> 752 | K141: =IF(E141,J141/E141) -> 0.0007324109371 | L141: =SUMIFS(Data!H:H,Data!$A:$A,Criteria!$B$10,Data!$C:$C,$D141,Data!$B:$B,$C141) -> 61475 | M141: =J141-G141 -> 0
B142: =B141+2 -> 230 | C142: B | D142: 1936 | E142: =SUMIFS(Data!E:E,Data!$A:$A,Criteria!$B$10,Data!$C:$C,$D142,Data!$B:$B,$C142) -> 1710441 | F142: =SUMIFS(Data!F:F,Data!$A:$A,Criteria!$B$10,Data!$C:$C,REPORT!$D142,Data!$B:$B,$C142) -> 493075050 | G142: =SUMIFS(Data!G:G,Data!$A:$A,Criteria!$B$11,Data!$C:$C,$D142,Data!$B:$B,$C142) -> 842 | H142: =IF(E142,G142/E142) -> 0.0004922707068 | I142: =SUMIFS(Data!H:H,Data!$A:$A,Criteria!$B$11,Data!$C:$C,$D142,Data!$B:$B,$C142) -> 91350 | J142: =SUMIFS(Data!G:G,Data!$A:$A,Criteria!$B$10,Data!$C:$C,$D142,Data!$B:$B,$C142) -> 842 | K142: =IF(E142,J142/E142) -> 0.0004922707068 | L142: =SUMIFS(Data!H:H,Data!$A:$A,Criteria!$B$10,Data!$C:$C,$D142,Data!$B:$B,$C142) -> 91350 | M142: 0
B143: 232 | C143: C | D143: 1937 | E143: =SUMIFS(Data!E:E,Data!$A:$A,Criteria!$B$10,Data!$C:$C,$D143,Data!$B:$B,$C143) -> 2346478 | F143: =SUMIFS(Data!F:F,Data!$A:$A,Criteria!$B$10,Data!$C:$C,REPORT!$D143,Data!$B:$B,$C143) -> 626100600 | G143: =SUMIFS(Data!G:G,Data!$A:$A,Criteria!$B$11,Data!$C:$C,$D143,Data!$B:$B,$C143) -> 675 | H143: 0.0002876651731 | I143: =SUMIFS(Data!H:H,Data!$A:$A,Criteria!$B$11,Data!$C:$C,$D143,Data!$B:$B,$C143) -> 41200 | J143: =SUMIFS(Data!G:G,Data!$A:$A,Criteria!$B$10,Data!$C:$C,$D143,Data!$B:$B,$C143) -> 675 | K143: 0.0002876651731 | L143: =SUMIFS(Data!H:H,Data!$A:$A,Criteria!$B$10,Data!$C:$C,$D143,Data!$B:$B,$C143) -> 41200 | M143: 0
B144: 234 | C144: C | D144: 1938 | E144: =SUMIFS(Data!E:E,Data!$A:$A,Criteria!$B$10,Data!$C:$C,$D144,Data!$B:$B,$C144) -> 2771613 | F144: =SUMIFS(Data!F:F,Data!$A:$A,Criteria!$B$10,Data!$C:$C,REPORT!$D144,Data!$B:$B,$C144) -> 720884550 | G144: =SUMIFS(Data!G:G,Data!$A:$A,Criteria!$B$11,Data!$C:$C,$D144,Data!$B:$B,$C144) -> 1340 | H144: 0.0004834729813 | I144: =SUMIFS(Data!H:H,Data!$A:$A,Criteria!$B$11,Data!$C:$C,$D144,Data!$B:$B,$C144) -> 159350 | J144: =SUMIFS(Data!G:G,Data!$A:$A,Criteria!$B$10,Data!$C:$C,$D144,Data!$B:$B,$C144) -> 1340 | K144: 0.0004834729813 | L144: =SUMIFS(Data!H:H,Data!$A:$A,Criteria!$B$10,Data!$C:$C,$D144,Data!$B:$B,$C144) -> 159350 | M144: 0
B145: 236 | C145: D | D145: 1939 | E145: =SUMIFS(Data!E:E,Data!$A:$A,Criteria!$B$10,Data!$C:$C,$D145,Data!$B:$B,$C145) -> 3946636 | F145: =SUMIFS(Data!F:F,Data!$A:$A,Criteria!$B$10,Data!$C:$C,REPORT!$D145,Data!$B:$B,$C145) -> 1148728950 | G145: =SUMIFS(Data!G:G,Data!$A:$A,Criteria!$B$11,Data!$C:$C,$D145,Data!$B:$B,$C145) -> 1334 | H145: 0.0003380093832 | I145: =SUMIFS(Data!H:H,Data!$A:$A,Criteria!$B$11,Data!$C:$C,$D145,Data!$B:$B,$C145) -> 145175 | J145: =SUMIFS(Data!G:G,Data!$A:$A,Criteria!$B$10,Data!$C:$C,$D145,Data!$B:$B,$C145) -> 1334 | K145: 0.0003380093832 | L145: =SUMIFS(Data!H:H,Data!$A:$A,Criteria!$B$10,Data!$C:$C,$D145,Data!$B:$B,$C145) -> 145175 | M145: 0
B146: 238 | C146: D | D146: 1940 | E146: =SUMIFS(Data!E:E,Data!$A:$A,Criteria!$B$10,Data!$C:$C,$D146,Data!$B:$B,$C146) -> 4783735 | F146: =SUMIFS(Data!F:F,Data!$A:$A,Criteria!$B$10,Data!$C:$C,REPORT!$D146,Data!$B:$B,$C146) -> 1393599250 | G146: =SUMIFS(Data!G:G,Data!$A:$A,Criteria!$B$11,Data!$C:$C,$D146,Data!$B:$B,$C146) -> 1868 | H146: 0.0003904898578 | I146: =SUMIFS(Data!H:H,Data!$A:$A,Criteria!$B$11,Data!$C:$C,$D146,Data!$B:$B,$C146) -> 197125 | J146: =SUMIFS(Data!G:G,Data!$A:$A,Criteria!$B$10,Data!$C:$C,$D146,Data!$B:$B,$C146) -> 1868 | K146: 0.0003904898578 | L146: =SUMIFS(Data!H:H,Data!$A:$A,Criteria!$B$10,Data!$C:$C,$D146,Data!$B:$B,$C146) -> 197125 | M146: 0
B147: 240 | C147: D | D147: 1941 | E147: =SUMIFS(Data!E:E,Data!$A:$A,Criteria!$B$10,Data!$C:$C,$D147,Data!$B:$B,$C147) -> 1974236 | F147: =SUMIFS(Data!F:F,Data!$A:$A,Criteria!$B$10,Data!$C:$C,REPORT!$D147,Data!$B:$B,$C147) -> 610870175 | G147: =SUMIFS(Data!G:G,Data!$A:$A,Criteria!$B$11,Data!$C:$C,$D147,Data!$B:$B,$C147) -> 1063 | H147: 0.0005384361343 | I147: =SUMIFS(Data!H:H,Data!$A:$A,Criteria!$B$11,Data!$C:$C,$D147,Data!$B:$B,$C147) -> 155225 | J147: =SUMIFS(Data!G:G,Data!$A:$A,Criteria!$B$10,Data!$C:$C,$D147,Data!$B:$B,$C147) -> 1060 | K147: 0.0005369165591 | L147: =SUMIFS(Data!H:H,Data!$A:$A,Criteria!$B$10,Data!$C:$C,$D147,Data!$B:$B,$C147) -> 155125 | M147: -3
C148: SERIES A-D TOTAL | E148: =SUM(E141:E147) -> 18559885 | F148: =SUM(F141:F147) -> 5265102100 | G148: =SUM(G141:G147) -> 7874 | H148: =G148/E148 -> 0.0004242483183 | I148: =SUM(I141:I147) -> 850900 | J148: =SUM(J141:J147) -> 7871 | K148: =J148/E148 -> 0.0004240866794 | L148: =SUM(L141:L147) -> 850800 | M148: =J148-G148 -> -3
C150: SERIES F BONDS (12 YEAR MATURITY) | G150: =G5 -> OUTSTANDING AS OF LAST MONTH 03/31/2024 | J150: =J5 -> OUTSTANDING AS OF THIS MONTH 04/30/2024 | M150: =M$5 -> NET
C151: SERIES | D151: YEAR | E151: BONDS | F151: PAR AMOUNT | G151: BONDS | H151: PERCENT | I151: MATURITY VALUE | J151: BONDS | K151: PERCENT | L151: MATURITY VALUE | M151: =M$6 -> CHANGE
B152: 243 | C152: F | D152: 1941 | E152: =SUMIFS(Data!E:E,Data!$A:$A,Criteria!$B$10,Data!$C:$C,$D152,Data!$B:$B,$C152) -> 223681 | F152: =SUMIFS(Data!F:F,Data!$A:$A,Criteria!$B$10,Data!$C:$C,REPORT!$D152,Data!$B:$B,$C152) -> 313530400 | G152: =SUMIFS(Data!G:G,Data!$A:$A,Criteria!$B$11,Data!$C:$C,$D152,Data!$B:$B,$C152) -> 161 | H152: =IF(E152,G152/E152) -> 0.0007197750368 | I152: =SUMIFS(Data!H:H,Data!$A:$A,Criteria!$B$11,Data!$C:$C,$D152,Data!$B:$B,$C152) -> 61950 | J152: =SUMIFS(Data!G:G,Data!$A:$A,Criteria!$B$10,Data!$C:$C,$D152,Data!$B:$B,$C152) -> 161 | K152: =IF(E152,J152/E152) -> 0.0007197750368 | L152: =SUMIFS(Data!H:H,Data!$A:$A,Criteria!$B$10,Data!$C:$C,$D152,Data!$B:$B,$C152) -> 61950 | M152: =J152-G152 -> 0
B153: =B152+2 -> 245 | C153: F | D153: 1942 | E153: =SUMIFS(Data!E:E,Data!$A:$A,Criteria!$B$10,Data!$C:$C,$D153,Data!$B:$B,$C153) -> 955390 | F153: =SUMIFS(Data!F:F,Data!$A:$A,Criteria!$B$10,Data!$C:$C,REPORT!$D153,Data!$B:$B,$C153) -> 878916250 | G153: =SUMIFS(Data!G:G,Data!$A:$A,Criteria!$B$11,Data!$C:$C,$D153,Data!$B:$B,$C153) -> 2219 | H153: 0.002322611708 | I153: =SUMIFS(Data!H:H,Data!$A:$A,Criteria!$B$11,Data!$C:$C,$D153,Data!$B:$B,$C153) -> 172450 | J153: =SUMIFS(Data!G:G,Data!$A:$A,Criteria!$B$10,Data!$C:$C,$D153,Data!$B:$B,$C153) -> 2218 | K153: 0.002321565015 | L153: =SUMIFS(Data!H:H,Data!$A:$A,Criteria!$B$10,Data!$C:$C,$D153,Data!$B:$B,$C153) -> 172350 | M153: =J153-G153 -> -1
B154: =B153+2 -> 247 | C154: F | D154: 1943 | E154: =SUMIFS(Data!E:E,Data!$A:$A,Criteria!$B$10,Data!$C:$C,$D154,Data!$B:$B,$C154) -> 1107907 | F154: =SUMIFS(Data!F:F,Data!$A:$A,Criteria!$B$10,Data!$C:$C,REPORT!$D154,Data!$B:$B,$C154) -> 987330225 | G154: =SUMIFS(Data!G:G,Data!$A:$A,Criteria!$B$11,Data!$C:$C,$D154,Data!$B:$B,$C154) -> 2422 | H154: 0.002186104068 | I154: =SUMIFS(Data!H:H,Data!$A:$A,Criteria!$B$11,Data!$C:$C,$D154,Data!$B:$B,$C154) -> 214075 | J154: =SUMIFS(Data!G:G,Data!$A:$A,Criteria!$B$10,Data!$C:$C,$D154,Data!$B:$B,$C154) -> 2422 | K154: 0.002186104068 | L154: =SUMIFS(Data!H:H,Data!$A:$A,Criteria!$B$10,Data!$C:$C,$D154,Data!$B:$B,$C154) -> 214075 | M154: =J154-G154 -> 0
B155: 249 | C155: F | D155: 1944 | E155: =SUMIFS(Data!E:E,Data!$A:$A,Criteria!$B$10,Data!$C:$C,$D155,Data!$B:$B,$C155) -> 1134576 | F155: =SUMIFS(Data!F:F,Data!$A:$A,Criteria!$B$10,Data!$C:$C,REPORT!$D155,Data!$B:$B,$C155) -> 1049357075 | G155: =SUMIFS(Data!G:G,Data!$A:$A,Criteria!$B$11,Data!$C:$C,$D155,Data!$B:$B,$C155) -> 2187 | H155: 0.001927592334 | I155: =SUMIFS(Data!H:H,Data!$A:$A,Criteria!$B$11,Data!$C:$C,$D155,Data!$B:$B,$C155) -> 237550 | J155: =SUMIFS(Data!G:G,Data!$A:$A,Criteria!$B$10,Data!$C:$C,$D155,Data!$B:$B,$C155) -> 2187 | K155: 0.001927592334 | L155: =SUMIFS(Data!H:H,Data!$A:$A,Criteria!$B$10,Data!$C:$C,$D155,Data!$B:$B,$C155) -> 237550 | M155: =J155-G155 -> 0
B156: 251 | C156: F | D156: 1945 | E156: =SUMIFS(Data!E:E,Data!$A:$A,Criteria!$B$10,Data!$C:$C,$D156,Data!$B:$B,$C156) -> 746760 | F156: =SUMIFS(Data!F:F,Data!$A:$A,Criteria!$B$10,Data!$C:$C,REPORT!$D156,Data!$B:$B,$C156) -> 804303925 | G156: =SUMIFS(Data!G:G,Data!$A:$A,Criteria!$B$11,Data!$C:$C,$D156,Data!$B:$B,$C156) -> 1224 | H156: 0.001639080829 | I156: =SUMIFS(Data!H:H,Data!$A:$A,Criteria!$B$11,Data!$C:$C,$D156,Data!$B:$B,$C156) -> 100500 | J156: =SUMIFS(Data!G:G,Data!$A:$A,Criteria!$B$10,Data!$C:$C,$D156,Data!$B:$B,$C156) -> 1216 | K156: 0.001628367883 | L156: =SUMIFS(Data!H:H,Data!$A:$A,Criteria!$B$10,Data!$C:$C,$D156,Data!$B:$B,$C156) -> 98550 | M156: -8
B157: 253 | C157: F | D157: 1946 | E157: =SUMIFS(Data!E:E,Data!$A:$A,Criteria!$B$10,Data!$C:$C,$D157,Data!$B:$B,$C157) -> 325867 | F157: =SUMIFS(Data!F:F,Data!$A:$A,Criteria!$B$10,Data!$C:$C,REPORT!$D157,Data!$B:$B,$C157) -> 444087525 | G157: =SUMIFS(Data!G:G,Data!$A:$A,Criteria!$B$11,Data!$C:$C,$D157,Data!$B:$B,$C157) -> 243 | H157: 0.0007457030015 | I157: =SUMIFS(Data!H:H,Data!$A:$A,Criteria!$B$11,Data!$C:$C,$D157,Data!$B:$B,$C157) -> 33275 | J157: =SUMIFS(Data!G:G,Data!$A:$A,Criteria!$B$10,Data!$C:$C,$D157,Data!$B:$B,$C157) -> 243 | K157: 0.0007457030015 | L157: =SUMIFS(Data!H:H,Data!$A:$A,Criteria!$B$10,Data!$C:$C,$D157,Data!$B:$B,$C157) -> 33275 | M157: 0
B158: 255 | C158: F | D158: 1947 | E158: =SUMIFS(Data!E:E,Data!$A:$A,Criteria!$B$10,Data!$C:$C,$D158,Data!$B:$B,$C158) -> 294367 | F158: =SUMIFS(Data!F:F,Data!$A:$A,Criteria!$B$10,Data!$C:$C,REPORT!$D158,Data!$B:$B,$C158) -> 458935800 | G158: =SUMIFS(Data!G:G,Data!$A:$A,Criteria!$B$11,Data!$C:$C,$D158,Data!$B:$B,$C158) -> 160 | H158: 0.0005435391875 | I158: =SUMIFS(Data!H:H,Data!$A:$A,Criteria!$B$11,Data!$C:$C,$D158,Data!$B:$B,$C158) -> 44800 | J158: =SUMIFS(Data!G:G,Data!$A:$A,Criteria!$B$10,Data!$C:$C,$D158,Data!$B:$B,$C158) -> 160 | K158: 0.0005435391875 | L158: =SUMIFS(Data!H:H,Data!$A:$A,Criteria!$B$10,Data!$C:$C,$D158,Data!$B:$B,$C158) -> 44800 | M158: 0
B159: 257 | C159: F | D159: 1948 | E159: =SUMIFS(Data!E:E,Data!$A:$A,Criteria!$B$10,Data!$C:$C,$D159,Data!$B:$B,$C159) -> 263285 | F159: =SUMIFS(Data!F:F,Data!$A:$A,Criteria!$B$10,Data!$C:$C,REPORT!$D159,Data!$B:$B,$C159) -> 664064925 | G159: =SUMIFS(Data!G:G,Data!$A:$A,Criteria!$B$11,Data!$C:$C,$D159,Data!$B:$B,$C159) -> 107 | H159: 0.000406403707 | I159: =SUMIFS(Data!H:H,Data!$A:$A,Criteria!$B$11,Data!$C:$C,$D159,Data!$B:$B,$C159) -> 16300 | J159: =SUMIFS(Data!G:G,Data!$A:$A,Criteria!$B$10,Data!$C:$C,$D159,Data!$B:$B,$C159) -> 107 | K159: 0.000406403707 | L159: =SUMIFS(Data!H:H,Data!$A:$A,Criteria!$B$10,Data!$C:$C,$D159,Data!$B:$B,$C159) -> 16300 | M159: 0
B160: 259 | C160: F | D160: 1949 | E160: =SUMIFS(Data!E:E,Data!$A:$A,Criteria!$B$10,Data!$C:$C,$D160,Data!$B:$B,$C160) -> 205794 | F160: =SUMIFS(Data!F:F,Data!$A:$A,Criteria!$B$10,Data!$C:$C,REPORT!$D160,Data!$B:$B,$C160) -> 320976200 | G160: =SUMIFS(Data!G:G,Data!$A:$A,Criteria!$B$11,Data!$C:$C,$D160,Data!$B:$B,$C160) -> 131 | H160: 0.000636558889 | I160: =SUMIFS(Data!H:H,Data!$A:$A,Criteria!$B$11,Data!$C:$C,$D160,Data!$B:$B,$C160) -> 49200 | J160: =SUMIFS(Data!G:G,Data!$A:$A,Criteria!$B$10,Data!$C:$C,$D160,Data!$B:$B,$C160) -> 131 | K160: 0.000636558889 | L160: =SUMIFS(Data!H:H,Data!$A:$A,Criteria!$B$10,Data!$C:$C,$D160,Data!$B:$B,$C160) -> 49200 | M160: 0
B161: 261 | C161: F | D161: 1950 | E161: =SUMIFS(Data!E:E,Data!$A:$A,Criteria!$B$10,Data!$C:$C,$D161,Data!$B:$B,$C161) -> 199217 | F161: =SUMIFS(Data!F:F,Data!$A:$A,Criteria!$B$10,Data!$C:$C,REPORT!$D161,Data!$B:$B,$C161) -> 553000900 | G161: =SUMIFS(Data!G:G,Data!$A:$A,Criteria!$B$11,Data!$C:$C,$D161,Data!$B:$B,$C161) -> 100 | H161: 0.0005019651937 | I161: =SUMIFS(Data!H:H,Data!$A:$A,Criteria!$B$11,Data!$C:$C,$D161,Data!$B:$B,$C161) -> 15075 | J161: =SUMIFS(Data!G:G,Data!$A:$A,Criteria!$B$10,Data!$C:$C,$D161,Data!$B:$B,$C161) -> 100 | K161: 0.0005019651937 | L161: =SUMIFS(Data!H:H,Data!$A:$A,Criteria!$B$10,Data!$C:$C,$D161,Data!$B:$B,$C161) -> 15075 | M161: 0
B162: 263 | C162: F | D162: 1951 | E162: =SUMIFS(Data!E:E,Data!$A:$A,Criteria!$B$10,Data!$C:$C,$D162,Data!$B:$B,$C162) -> 128103 | F162: =SUMIFS(Data!F:F,Data!$A:$A,Criteria!$B$10,Data!$C:$C,REPORT!$D162,Data!$B:$B,$C162) -> 169336075 | G162: =SUMIFS(Data!G:G,Data!$A:$A,Criteria!$B$11,Data!$C:$C,$D162,Data!$B:$B,$C162) -> 104 | H162: 0.0008118467171 | I162: =SUMIFS(Data!H:H,Data!$A:$A,Criteria!$B$11,Data!$C:$C,$D162,Data!$B:$B,$C162) -> 8025 | J162: =SUMIFS(Data!G:G,Data!$A:$A,Criteria!$B$10,Data!$C:$C,$D162,Data!$B:$B,$C162) -> 104 | K162: 0.0008118467171 | L162: =SUMIFS(Data!H:H,Data!$A:$A,Criteria!$B$10,Data!$C:$C,$D162,Data!$B:$B,$C162) -> 8025 | M162: 0
B163: 265 | C163: F | D163: 1952 | E163: =SUMIFS(Data!E:E,Data!$A:$A,Criteria!$B$10,Data!$C:$C,$D163,Data!$B:$B,$C163) -> 39392 | F163: =SUMIFS(Data!F:F,Data!$A:$A,Criteria!$B$10,Data!$C:$C,REPORT!$D163,Data!$B:$B,$C163) -> 55701400 | G163: =SUMIFS(Data!G:G,Data!$A:$A,Criteria!$B$11,Data!$C:$C,$D163,Data!$B:$B,$C163) -> 44 | H163: 0.001116978067 | I163: =SUMIFS(Data!H:H,Data!$A:$A,Criteria!$B$11,Data!$C:$C,$D163,Data!$B:$B,$C163) -> 13975 | J163: =SUMIFS(Data!G:G,Data!$A:$A,Criteria!$B$10,Data!$C:$C,$D163,Data!$B:$B,$C163) -> 44 | K163: 0.001116978067 | L163: =SUMIFS(Data!H:H,Data!$A:$A,Criteria!$B$10,Data!$C:$C,$D163,Data!$B:$B,$C163) -> 13975 | M163: 0
C164: SERIES F TOTAL | E164: =SUM(E152:E163) -> 5624339 | F164: =SUM(F152:F163) -> 6699540700 | G164: =SUM(G152:G163) -> 9102 | H164: =G164/E164 -> 0.001618323504 | I164: =SUM(I152:I163) -> 967175 | J164: =SUM(J152:J163) -> 9093 | K164: =J164/E164 -> 0.001616723316 | L164: =SUM(L152:L163) -> 965125 | M164: -9
C166: SERIES G BONDS (12 YEAR MATURITY) | G166: =G5 -> OUTSTANDING AS OF LAST MONTH 03/31/2024 | J166: =J5 -> OUTSTANDING AS OF THIS MONTH 04/30/2024 | M166: =M$5 -> NET
C167: SERIES | D167: YEAR | E167: BONDS | F167: PAR AMOUNT | G167: BONDS | H167: PERCENT | I167: MATURITY VALUE | J167: BONDS | K167: PERCENT | L167: MATURITY VALUE | M167: =M$6 -> CHANGE
B168: 268 | C168: G | D168: 1941 | E168: =SUMIFS(Data!E:E,Data!$A:$A,Criteria!$B$10,Data!$C:$C,$D168,Data!$B:$B,$C168) -> 772805 | F168: =SUMIFS(Data!F:F,Data!$A:$A,Criteria!$B$10,Data!$C:$C,REPORT!$D168,Data!$B:$B,$C168) -> 1277271400 | G168: =SUMIFS(Data!G:G,Data!$A:$A,Criteria!$B$11,Data!$C:$C,$D168,Data!$B:$B,$C168) -> 125 | H168: =IF(E168,G168/E168) -> 0.0001617484359 | I168: =SUMIFS(Data!H:H,Data!$A:$A,Criteria!$B$11,Data!$C:$C,$D168,Data!$B:$B,$C168) -> 47800 | J168: =SUMIFS(Data!G:G,Data!$A:$A,Criteria!$B$10,Data!$C:$C,$D168,Data!$B:$B,$C168) -> 125 | K168: =IF(E168,J168/E168) -> 0.0001617484359 | L168: =SUMIFS(Data!H:H,Data!$A:$A,Criteria!$B$10,Data!$C:$C,$D168,Data!$B:$B,$C168) -> 47800 | M168: =J168-G168 -> 0
B169: =B168+2 -> 270 | C169: G | D169: 1942 | E169: =SUMIFS(Data!E:E,Data!$A:$A,Criteria!$B$10,Data!$C:$C,$D169,Data!$B:$B,$C169) -> 1971799 | F169: =SUMIFS(Data!F:F,Data!$A:$A,Criteria!$B$10,Data!$C:$C,REPORT!$D169,Data!$B:$B,$C169) -> 2493047100 | G169: =SUMIFS(Data!G:G,Data!$A:$A,Criteria!$B$11,Data!$C:$C,$D169,Data!$B:$B,$C169) -> 602 | H169: 0.0003053049525 | I169: =SUMIFS(Data!H:H,Data!$A:$A,Criteria!$B$11,Data!$C:$C,$D169,Data!$B:$B,$C169) -> 193100 | J169: =SUMIFS(Data!G:G,Data!$A:$A,Criteria!$B$10,Data!$C:$C,$D169,Data!$B:$B,$C169) -> 602 | K169: 0.0003053049525 | L169: =SUMIFS(Data!H:H,Data!$A:$A,Criteria!$B$10,Data!$C:$C,$D169,Data!$B:$B,$C169) -> 193100 | M169: =J169-G169 -> 0
B170: =B169+2 -> 272 | C170: G | D170: 1943 | E170: =SUMIFS(Data!E:E,Data!$A:$A,Criteria!$B$10,Data!$C:$C,$D170,Data!$B:$B,$C170) -> 2511966 | F170: =SUMIFS(Data!F:F,Data!$A:$A,Criteria!$B$10,Data!$C:$C,REPORT!$D170,Data!$B:$B,$C170) -> 2598127000 | G170: =SUMIFS(Data!G:G,Data!$A:$A,Criteria!$B$11,Data!$C:$C,$D170,Data!$B:$B,$C170) -> 925 | H170: 0.0003682374682 | I170: =SUMIFS(Data!H:H,Data!$A:$A,Criteria!$B$11,Data!$C:$C,$D170,Data!$B:$B,$C170) -> 267700 | J170: =SUMIFS(Data!G:G,Data!$A:$A,Criteria!$B$10,Data!$C:$C,$D170,Data!$B:$B,$C170) -> 925 | K170: 0.0003682374682 | L170: =SUMIFS(Data!H:H,Data!$A:$A,Criteria!$B$10,Data!$C:$C,$D170,Data!$B:$B,$C170) -> 267700 | M170: =J170-G170 -> 0
B171: 274 | C171: G | D171: 1944 | E171: =SUMIFS(Data!E:E,Data!$A:$A,Criteria!$B$10,Data!$C:$C,$D171,Data!$B:$B,$C171) -> 2743135 | F171: =SUMIFS(Data!F:F,Data!$A:$A,Criteria!$B$10,Data!$C:$C,REPORT!$D171,Data!$B:$B,$C171) -> 2894069000 | G171: =SUMIFS(Data!G:G,Data!$A:$A,Criteria!$B$11,Data!$C:$C,$D171,Data!$B:$B,$C171) -> 1249 | H171: 0.0004553184586 | I171: =SUMIFS(Data!H:H,Data!$A:$A,Criteria!$B$11,Data!$C:$C,$D171,Data!$B:$B,$C171) -> 335800 | J171: =SUMIFS(Data!G:G,Data!$A:$A,Criteria!$B$10,Data!$C:$C,$D171,Data!$B:$B,$C171) -> 1249 | K171: 0.0004553184586 | L171: =SUMIFS(Data!H:H,Data!$A:$A,Criteria!$B$10,Data!$C:$C,$D171,Data!$B:$B,$C171) -> 335800 | M171: =J171-G171 -> 0
B172: 276 | C172: G | D172: 1945 | E172: =SUMIFS(Data!E:E,Data!$A:$A,Criteria!$B$10,Data!$C:$C,$D172,Data!$B:$B,$C172) -> 2086461 | F172: =SUMIFS(Data!F:F,Data!$A:$A,Criteria!$B$10,Data!$C:$C,REPORT!$D172,Data!$B:$B,$C172) -> 2542313400 | G172: =SUMIFS(Data!G:G,Data!$A:$A,Criteria!$B$11,Data!$C:$C,$D172,Data!$B:$B,$C172) -> 812 | H172: 0.0003891757382 | I172: =SUMIFS(Data!H:H,Data!$A:$A,Criteria!$B$11,Data!$C:$C,$D172,Data!$B:$B,$C172) -> 314000 | J172: =SUMIFS(Data!G:G,Data!$A:$A,Criteria!$B$10,Data!$C:$C,$D172,Data!$B:$B,$C172) -> 812 | K172: 0.0003891757382 | L172: =SUMIFS(Data!H:H,Data!$A:$A,Criteria!$B$10,Data!$C:$C,$D172,Data!$B:$B,$C172) -> 314000 | M172: 0
B173: 278 | C173: G | D173: 1946 | E173: =SUMIFS(Data!E:E,Data!$A:$A,Criteria!$B$10,Data!$C:$C,$D173,Data!$B:$B,$C173) -> 1813130 | F173: =SUMIFS(Data!F:F,Data!$A:$A,Criteria!$B$10,Data!$C:$C,REPORT!$D173,Data!$B:$B,$C173) -> 2663903100 | G173: =SUMIFS(Data!G:G,Data!$A:$A,Criteria!$B$11,Data!$C:$C,$D173,Data!$B:$B,$C173) -> 339 | H173: 0.0001869694947 | I173: =SUMIFS(Data!H:H,Data!$A:$A,Criteria!$B$11,Data!$C:$C,$D173,Data!$B:$B,$C173) -> 188700 | J173: =SUMIFS(Data!G:G,Data!$A:$A,Criteria!$B$10,Data!$C:$C,$D173,Data!$B:$B,$C173) -> 339 | K173: 0.0001869694947 | L173: =SUMIFS(Data!H:H,Data!$A:$A,Criteria!$B$10,Data!$C:$C,$D173,Data!$B:$B,$C173) -> 188700 | M173: 0
B174: 280 | C174: G | D174: 1947 | E174: =SUMIFS(Data!E:E,Data!$A:$A,Criteria!$B$10,Data!$C:$C,$D174,Data!$B:$B,$C174) -> 1572990 | F174: =SUMIFS(Data!F:F,Data!$A:$A,Criteria!$B$10,Data!$C:$C,REPORT!$D174,Data!$B:$B,$C174) -> 2247340000 | G174: =SUMIFS(Data!G:G,Data!$A:$A,Criteria!$B$11,Data!$C:$C,$D174,Data!$B:$B,$C174) -> 305 | H174: 0.0001938982447 | I174: =SUMIFS(Data!H:H,Data!$A:$A,Criteria!$B$11,Data!$C:$C,$D174,Data!$B:$B,$C174) -> 174700 | J174: =SUMIFS(Data!G:G,Data!$A:$A,Criteria!$B$10,Data!$C:$C,$D174,Data!$B:$B,$C174) -> 305 | K174: 0.0001938982447 | L174: =SUMIFS(Data!H:H,Data!$A:$A,Criteria!$B$10,Data!$C:$C,$D174,Data!$B:$B,$C174) -> 174700 | M174: 0
B175: 282 | C175: G | D175: 1948 | E175: =SUMIFS(Data!E:E,Data!$A:$A,Criteria!$B$10,Data!$C:$C,$D175,Data!$B:$B,$C175) -> 1283790 | F175: =SUMIFS(Data!F:F,Data!$A:$A,Criteria!$B$10,Data!$C:$C,REPORT!$D175,Data!$B:$B,$C175) -> 2542183700 | G175: =SUMIFS(Data!G:G,Data!$A:$A,Criteria!$B$11,Data!$C:$C,$D175,Data!$B:$B,$C175) -> 312 | H175: 0.0002430304022 | I175: =SUMIFS(Data!H:H,Data!$A:$A,Criteria!$B$11,Data!$C:$C,$D175,Data!$B:$B,$C175) -> 158700 | J175: =SUMIFS(Data!G:G,Data!$A:$A,Criteria!$B$10,Data!$C:$C,$D175,Data!$B:$B,$C175) -> 312 | K175: 0.0002430304022 | L175: =SUMIFS(Data!H:H,Data!$A:$A,Criteria!$B$10,Data!$C:$C,$D175,Data!$B:$B,$C175) -> 158700 | M175: 0
B176: 284 | C176: G | D176: 1949 | E176: =SUMIFS(Data!E:E,Data!$A:$A,Criteria!$B$10,Data!$C:$C,$D176,Data!$B:$B,$C176) -> 992606 | F176: =SUMIFS(Data!F:F,Data!$A:$A,Criteria!$B$10,Data!$C:$C,REPORT!$D176,Data!$B:$B,$C176) -> 1433060200 | G176: =SUMIFS(Data!G:G,Data!$A:$A,Criteria!$B$11,Data!$C:$C,$D176,Data!$B:$B,$C176) -> 312 | H176: 0.0003143241125 | I176: =SUMIFS(Data!H:H,Data!$A:$A,Criteria!$B$11,Data!$C:$C,$D176,Data!$B:$B,$C176) -> 189700 | J176: =SUMIFS(Data!G:G,Data!$A:$A,Criteria!$B$10,Data!$C:$C,$D176,Data!$B:$B,$C176) -> 312 | K176: 0.0003143241125 | L176: =SUMIFS(Data!H:H,Data!$A:$A,Criteria!$B$10,Data!$C:$C,$D176,Data!$B:$B,$C176) -> 189700 | M176: 0
B177: 286 | C177: G | D177: 1950 | E177: =SUMIFS(Data!E:E,Data!$A:$A,Criteria!$B$10,Data!$C:$C,$D177,Data!$B:$B,$C177) -> 857048 | F177: =SUMIFS(Data!F:F,Data!$A:$A,Criteria!$B$10,Data!$C:$C,REPORT!$D177,Data!$B:$B,$C177) -> 1938695600 | G177: =SUMIFS(Data!G:G,Data!$A:$A,Criteria!$B$11,Data!$C:$C,$D177,Data!$B:$B,$C177) -> 230 | H177: 0.0002683630322 | I177: =SUMIFS(Data!H:H,Data!$A:$A,Criteria!$B$11,Data!$C:$C,$D177,Data!$B:$B,$C177) -> 116500 | J177: =SUMIFS(Data!G:G,Data!$A:$A,Criteria!$B$10,Data!$C:$C,$D177,Data!$B:$B,$C177) -> 230 | K177: 0.0002683630322 | L177: =SUMIFS(Data!H:H,Data!$A:$A,Criteria!$B$10,Data!$C:$C,$D177,Data!$B:$B,$C177) -> 116500 | M177: 0
B178: 288 | C178: G | D178: 1951 | E178: =SUMIFS(Data!E:E,Data!$A:$A,Criteria!$B$10,Data!$C:$C,$D178,Data!$B:$B,$C178) -> 507070 | F178: =SUMIFS(Data!F:F,Data!$A:$A,Criteria!$B$10,Data!$C:$C,REPORT!$D178,Data!$B:$B,$C178) -> 644428000 | G178: =SUMIFS(Data!G:G,Data!$A:$A,Criteria!$B$11,Data!$C:$C,$D178,Data!$B:$B,$C178) -> 241 | H178: 0.0004752795472 | I178: =SUMIFS(Data!H:H,Data!$A:$A,Criteria!$B$11,Data!$C:$C,$D178,Data!$B:$B,$C178) -> 97500 | J178: =SUMIFS(Data!G:G,Data!$A:$A,Criteria!$B$10,Data!$C:$C,$D178,Data!$B:$B,$C178) -> 241 | K178: 0.0004752795472 | L178: =SUMIFS(Data!H:H,Data!$A:$A,Criteria!$B$10,Data!$C:$C,$D178,Data!$B:$B,$C178) -> 97500 | M178: 0
B179: 290 | C179: G | D179: 1952 | E179: =SUMIFS(Data!E:E,Data!$A:$A,Criteria!$B$10,Data!$C:$C,$D179,Data!$B:$B,$C179) -> 147202 | F179: =SUMIFS(Data!F:F,Data!$A:$A,Criteria!$B$10,Data!$C:$C,REPORT!$D179,Data!$B:$B,$C179) -> 163428200 | G179: =SUMIFS(Data!G:G,Data!$A:$A,Criteria!$B$11,Data!$C:$C,$D179,Data!$B:$B,$C179) -> 71 | H179: 0.0004823304031 | I179: =SUMIFS(Data!H:H,Data!$A:$A,Criteria!$B$11,Data!$C:$C,$D179,Data!$B:$B,$C179) -> 35000 | J179: =SUMIFS(Data!G:G,Data!$A:$A,Criteria!$B$10,Data!$C:$C,$D179,Data!$B:$B,$C179) -> 71 | K179: 0.0004823304031 | L179: =SUMIFS(Data!H:H,Data!$A:$A,Criteria!$B$10,Data!$C:$C,$D179,Data!$B:$B,$C179) -> 35000 | M179: 0
C180: SERIES G TOTAL | E180: =SUM(E168:E179) -> 17260002 | F180: =SUM(F168:F179) -> 23437866700 | G180: =SUM(G168:G179) -> 5523 | H180: =G180/E180 -> 0.0003199883754 | I180: =SUM(I168:I179) -> 2119200 | J180: =SUM(J168:J179) -> 5523 | K180: =J180/E180 -> 0.0003199883754 | L180: =SUM(L168:L179) -> 2119200 | M180: 0
C182: SERIES J BONDS (12 YEAR MATURITY) | G182: =G5 -> OUTSTANDING AS OF LAST MONTH 03/31/2024 | J182: =J5 -> OUTSTANDING AS OF THIS MONTH 04/30/2024 | M182: =M$5 -> NET
C183: SERIES | D183: YEAR | E183: BONDS | F183: PAR AMOUNT | G183: BONDS | H183: PERCENT | I183: MATURITY VALUE | J183: BONDS | K183: PERCENT | L183: MATURITY VALUE | M183: =M$6 -> CHANGE
B184: 293 | C184: J | D184: 1952 | E184: =SUMIFS(Data!E:E,Data!$A:$A,Criteria!$B$10,Data!$C:$C,$D184,Data!$B:$B,$C184) -> 73181 | F184: =SUMIFS(Data!F:F,Data!$A:$A,Criteria!$B$10,Data!$C:$C,REPORT!$D184,Data!$B:$B,$C184) -> 122826450 | G184: =SUMIFS(Data!G:G,Data!$A:$A,Criteria!$B$11,Data!$C:$C,$D184,Data!$B:$B,$C184) -> 157 | H184: =IF(E184,G184/E184) -> 0.0021453656 | I184: =SUMIFS(Data!H:H,Data!$A:$A,Criteria!$B$11,Data!$C:$C,$D184,Data!$B:$B,$C184) -> 12500 | J184: =SUMIFS(Data!G:G,Data!$A:$A,Criteria!$B$10,Data!$C:$C,$D184,Data!$B:$B,$C184) -> 157 | K184: =IF(E184,J184/E184) -> 0.0021453656 | L184: =SUMIFS(Data!H:H,Data!$A:$A,Criteria!$B$10,Data!$C:$C,$D184,Data!$B:$B,$C184) -> 12500 | M184: =J184-G184 -> 0
B185: =B184+2 -> 295 | C185: J | D185: 1953 | E185: =SUMIFS(Data!E:E,Data!$A:$A,Criteria!$B$10,Data!$C:$C,$D185,Data!$B:$B,$C185) -> 122122 | F185: =SUMIFS(Data!F:F,Data!$A:$A,Criteria!$B$10,Data!$C:$C,REPORT!$D185,Data!$B:$B,$C185) -> 181417725 | G185: =SUMIFS(Data!G:G,Data!$A:$A,Criteria!$B$11,Data!$C:$C,$D185,Data!$B:$B,$C185) -> 212 | H185: 0.001735968949 | I185: =SUMIFS(Data!H:H,Data!$A:$A,Criteria!$B$11,Data!$C:$C,$D185,Data!$B:$B,$C185) -> 18475 | J185: =SUMIFS(Data!G:G,Data!$A:$A,Criteria!$B$10,Data!$C:$C,$D185,Data!$B:$B,$C185) -> 212 | K185: 0.001735968949 | L185: =SUMIFS(Data!H:H,Data!$A:$A,Criteria!$B$10,Data!$C:$C,$D185,Data!$B:$B,$C185) -> 18475 | M185: 0
B186: =B185+2 -> 297 | C186: J | D186: 1954 | E186: =SUMIFS(Data!E:E,Data!$A:$A,Criteria!$B$10,Data!$C:$C,$D186,Data!$B:$B,$C186) -> 200983 | F186: =SUMIFS(Data!F:F,Data!$A:$A,Criteria!$B$10,Data!$C:$C,REPORT!$D186,Data!$B:$B,$C186) -> 459469075 | G186: =SUMIFS(Data!G:G,Data!$A:$A,Criteria!$B$11,Data!$C:$C,$D186,Data!$B:$B,$C186) -> 319 | H186: 0.001587198917 | I186: =SUMIFS(Data!H:H,Data!$A:$A,Criteria!$B$11,Data!$C:$C,$D186,Data!$B:$B,$C186) -> 44475 | J186: =SUMIFS(Data!G:G,Data!$A:$A,Criteria!$B$10,Data!$C:$C,$D186,Data!$B:$B,$C186) -> 319 | K186: 0.001587198917 | L186: =SUMIFS(Data!H:H,Data!$A:$A,Criteria!$B$10,Data!$C:$C,$D186,Data!$B:$B,$C186) -> 44475 | M186: 0
B187: =B186+2 -> 299 | C187: J | D187: 1955 | E187: =SUMIFS(Data!E:E,Data!$A:$A,Criteria!$B$10,Data!$C:$C,$D187,Data!$B:$B,$C187) -> 191070 | F187: =SUMIFS(Data!F:F,Data!$A:$A,Criteria!$B$10,Data!$C:$C,REPORT!$D187,Data!$B:$B,$C187) -> 331524900 | G187: =SUMIFS(Data!G:G,Data!$A:$A,Criteria!$B$11,Data!$C:$C,$D187,Data!$B:$B,$C187) -> 474 | H187: 0.002480766211 | I187: =SUMIFS(Data!H:H,Data!$A:$A,Criteria!$B$11,Data!$C:$C,$D187,Data!$B:$B,$C187) -> 59725 | J187: =SUMIFS(Data!G:G,Data!$A:$A,Criteria!$B$10,Data!$C:$C,$D187,Data!$B:$B,$C187) -> 474 | K187: 0.002480766211 | L187: =SUMIFS(Data!H:H,Data!$A:$A,Criteria!$B$10,Data!$C:$C,$D187,Data!$B:$B,$C187) -> 59725 | M187: 0
B188: =B187+2 -> 301 | C188: J | D188: 1956 | E188: =SUMIFS(Data!E:E,Data!$A:$A,Criteria!$B$10,Data!$C:$C,$D188,Data!$B:$B,$C188) -> 164353 | F188: =SUMIFS(Data!F:F,Data!$A:$A,Criteria!$B$10,Data!$C:$C,REPORT!$D188,Data!$B:$B,$C188) -> 210560125 | G188: =SUMIFS(Data!G:G,Data!$A:$A,Criteria!$B$11,Data!$C:$C,$D188,Data!$B:$B,$C188) -> 459 | H188: 0.002792769222 | I188: =SUMIFS(Data!H:H,Data!$A:$A,Criteria!$B$11,Data!$C:$C,$D188,Data!$B:$B,$C188) -> 67875 | J188: =SUMIFS(Data!G:G,Data!$A:$A,Criteria!$B$10,Data!$C:$C,$D188,Data!$B:$B,$C188) -> 459 | K188: 0.002792769222 | L188: =SUMIFS(Data!H:H,Data!$A:$A,Criteria!$B$10,Data!$C:$C,$D188,Data!$B:$B,$C188) -> 67875 | M188: 0
B189: =B188+2 -> 303 | C189: J | D189: 1957 | E189: =SUMIFS(Data!E:E,Data!$A:$A,Criteria!$B$10,Data!$C:$C,$D189,Data!$B:$B,$C189) -> 41645 | F189: =SUMIFS(Data!F:F,Data!$A:$A,Criteria!$B$10,Data!$C:$C,REPORT!$D189,Data!$B:$B,$C189) -> 44806525 | G189: =SUMIFS(Data!G:G,Data!$A:$A,Criteria!$B$11,Data!$C:$C,$D189,Data!$B:$B,$C189) -> 148 | H189: 0.003553848001 | I189: =SUMIFS(Data!H:H,Data!$A:$A,Criteria!$B$11,Data!$C:$C,$D189,Data!$B:$B,$C189) -> 27300 | J189: =SUMIFS(Data!G:G,Data!$A:$A,Criteria!$B$10,Data!$C:$C,$D189,Data!$B:$B,$C189) -> 148 | K189: 0.003553848001 | L189: =SUMIFS(Data!H:H,Data!$A:$A,Criteria!$B$10,Data!$C:$C,$D189,Data!$B:$B,$C189) -> 27300 | M189: 0
C190: SERIES J TOTAL | E190: =SUM(E184:E189) -> 793354 | F190: =SUM(F184:F189) -> 1350604800 | G190: =SUM(G184:G189) -> 1769 | H190: =G190/E190 -> 0.002229773846 | I190: =SUM(I184:I189) -> 230350 | J190: =SUM(J184:J189) -> 1769 | K190: =J190/E190 -> 0.002229773846 | L190: =SUM(L184:L189) -> 230350 | M190: =J190-G190 -> 0
C192: SERIES K BONDS (12 YEAR MATURITY) | G192: =G5 -> OUTSTANDING AS OF LAST MONTH 03/31/2024 | J192: =J5 -> OUTSTANDING AS OF THIS MONTH 04/30/2024 | M192: =M$5 -> NET
C193: SERIES | D193: YEAR | E193: BONDS | F193: PAR AMOUNT | G193: BONDS | H193: PERCENT | I193: MATURITY VALUE | J193: BONDS | K193: PERCENT | L193: MATURITY VALUE | M193: =M$6 -> CHANGE
B194: 306 | C194: K | D194: 1952 | E194: =SUMIFS(Data!E:E,Data!$A:$A,Criteria!$B$10,Data!$C:$C,$D194,Data!$B:$B,$C194) -> 121011 | F194: =SUMIFS(Data!F:F,Data!$A:$A,Criteria!$B$10,Data!$C:$C,REPORT!$D194,Data!$B:$B,$C194) -> 291932000 | G194: =SUMIFS(Data!G:G,Data!$A:$A,Criteria!$B$11,Data!$C:$C,$D194,Data!$B:$B,$C194) -> 17 | H194: =IF(E194,G194/E194) -> 0.0001404830966 | I194: =SUMIFS(Data!H:H,Data!$A:$A,Criteria!$B$11,Data!$C:$C,$D194,Data!$B:$B,$C194) -> 12000 | J194: =SUMIFS(Data!G:G,Data!$A:$A,Criteria!$B$10,Data!$C:$C,$D194,Data!$B:$B,$C194) -> 17 | K194: =IF(E194,J194/E194) -> 0.0001404830966 | L194: =SUMIFS(Data!H:H,Data!$A:$A,Criteria!$B$10,Data!$C:$C,$D194,Data!$B:$B,$C194) -> 12000 | M194: =J194-G194 -> 0
B195: =B194+2 -> 308 | C195: K | D195: 1953 | E195: =SUMIFS(Data!E:E,Data!$A:$A,Criteria!$B$10,Data!$C:$C,$D195,Data!$B:$B,$C195) -> 151721 | F195: =SUMIFS(Data!F:F,Data!$A:$A,Criteria!$B$10,Data!$C:$C,REPORT!$D195,Data!$B:$B,$C195) -> 302931500 | G195: =SUMIFS(Data!G:G,Data!$A:$A,Criteria!$B$11,Data!$C:$C,$D195,Data!$B:$B,$C195) -> 11 | H195: 7.250149946e-05 | I195: =SUMIFS(Data!H:H,Data!$A:$A,Criteria!$B$11,Data!$C:$C,$D195,Data!$B:$B,$C195) -> 12500 | J195: =SUMIFS(Data!G:G,Data!$A:$A,Criteria!$B$10,Data!$C:$C,$D195,Data!$B:$B,$C195) -> 11 | K195: 7.250149946e-05 | L195: =SUMIFS(Data!H:H,Data!$A:$A,Criteria!$B$10,Data!$C:$C,$D195,Data!$B:$B,$C195) -> 12500 | M195: 0
B196: =B195+2 -> 310 | C196: K | D196: 1954 | E196: =SUMIFS(Data!E:E,Data!$A:$A,Criteria!$B$10,Data!$C:$C,$D196,Data!$B:$B,$C196) -> 269687 | F196: =SUMIFS(Data!F:F,Data!$A:$A,Criteria!$B$10,Data!$C:$C,REPORT!$D196,Data!$B:$B,$C196) -> 981680000 | G196: =SUMIFS(Data!G:G,Data!$A:$A,Criteria!$B$11,Data!$C:$C,$D196,Data!$B:$B,$C196) -> 8 | H196: 2.966401792e-05 | I196: =SUMIFS(Data!H:H,Data!$A:$A,Criteria!$B$11,Data!$C:$C,$D196,Data!$B:$B,$C196) -> 7000 | J196: =SUMIFS(Data!G:G,Data!$A:$A,Criteria!$B$10,Data!$C:$C,$D196,Data!$B:$B,$C196) -> 8 | K196: 2.966401792e-05 | L196: =SUMIFS(Data!H:H,Data!$A:$A,Criteria!$B$10,Data!$C:$C,$D196,Data!$B:$B,$C196) -> 7000 | M196: 0
B197: =B196+2 -> 312 | C197: K | D197: 1955 | E197: =SUMIFS(Data!E:E,Data!$A:$A,Criteria!$B$10,Data!$C:$C,$D197,Data!$B:$B,$C197) -> 216188 | F197: =SUMIFS(Data!F:F,Data!$A:$A,Criteria!$B$10,Data!$C:$C,REPORT!$D197,Data!$B:$B,$C197) -> 633925500 | G197: =SUMIFS(Data!G:G,Data!$A:$A,Criteria!$B$11,Data!$C:$C,$D197,Data!$B:$B,$C197) -> 38 | H197: 0.0001757729384 | I197: =SUMIFS(Data!H:H,Data!$A:$A,Criteria!$B$11,Data!$C:$C,$D197,Data!$B:$B,$C197) -> 38500 | J197: =SUMIFS(Data!G:G,Data!$A:$A,Criteria!$B$10,Data!$C:$C,$D197,Data!$B:$B,$C197) -> 38 | K197: 0.0001757729384 | L197: =SUMIFS(Data!H:H,Data!$A:$A,Criteria!$B$10,Data!$C:$C,$D197,Data!$B:$B,$C197) -> 38500 | M197: 0
B198: =B197+2 -> 314 | C198: K | D198: 1956 | E198: =SUMIFS(Data!E:E,Data!$A:$A,Criteria!$B$10,Data!$C:$C,$D198,Data!$B:$B,$C198) -> 151323 | F198: =SUMIFS(Data!F:F,Data!$A:$A,Criteria!$B$10,Data!$C:$C,REPORT!$D198,Data!$B:$B,$C198) -> 318825500 | G198: =SUMIFS(Data!G:G,Data!$A:$A,Criteria!$B$11,Data!$C:$C,$D198,Data!$B:$B,$C198) -> 15 | H198: 9.912571123e-05 | I198: =SUMIFS(Data!H:H,Data!$A:$A,Criteria!$B$11,Data!$C:$C,$D198,Data!$B:$B,$C198) -> 5500 | J198: =SUMIFS(Data!G:G,Data!$A:$A,Criteria!$B$10,Data!$C:$C,$D198,Data!$B:$B,$C198) -> 15 | K198: 9.912571123e-05 | L198: =SUMIFS(Data!H:H,Data!$A:$A,Criteria!$B$10,Data!$C:$C,$D198,Data!$B:$B,$C198) -> 5500 | M198: 0
B199: =B198+2 -> 316 | C199: K | D199: 1957 | E199: =SUMIFS(Data!E:E,Data!$A:$A,Criteria!$B$10,Data!$C:$C,$D199,Data!$B:$B,$C199) -> 26850 | F199: =SUMIFS(Data!F:F,Data!$A:$A,Criteria!$B$10,Data!$C:$C,REPORT!$D199,Data!$B:$B,$C199) -> 53978500 | G199: =SUMIFS(Data!G:G,Data!$A:$A,Criteria!$B$11,Data!$C:$C,$D199,Data!$B:$B,$C199) -> 7 | H199: 0.000260707635 | I199: =SUMIFS(Data!H:H,Data!$A:$A,Criteria!$B$11,Data!$C:$C,$D199,Data!$B:$B,$C199) -> 5000 | J199: =SUMIFS(Data!G:G,Data!$A:$A,Criteria!$B$10,Data!$C:$C,$D199,Data!$B:$B,$C199) -> 7 | K199: 0.000260707635 | L199: =SUMIFS(Data!H:H,Data!$A:$A,Criteria!$B$10,Data!$C:$C,$D199,Data!$B:$B,$C199) -> 5000 | M199: 0
C200: SERIES K TOTAL | E200: =SUM(E194:E199) -> 936780 | F200: =SUM(F194:F199) -> 2583273000 | G200: =SUM(G194:G199) -> 96 | H200: =G200/E200 -> 0.0001024787036 | I200: =SUM(I194:I199) -> 80500 | J200: =SUM(J194:J199) -> 96 | K200: =IF(E200,J200/E200) -> 0.0001024787036 | L200: =SUM(L194:L199) -> 80500 | M200: =J200-G200 -> 0
C202: SERIES EE BONDS (30 YEAR MATURITY) | G202: =G5 -> OUTSTANDING AS OF LAST MONTH 03/31/2024 | J202: =J5 -> OUTSTANDING AS OF THIS MONTH 04/30/2024 | M202: =M$5 -> NET
C203: SERIES | D203: YEAR | E203: BONDS | F203: PAR AMOUNT | G203: BONDS | H203: PERCENT | I203: MATURITY VALUE | J203: BONDS | K203: PERCENT | L203: MATURITY VALUE | M203: =M$6 -> CHANGE
B204: =1980 -> 1980 | C204: EE | D204: =IF((Criteria!$C$7-($B204))=30,"Jan" & IF(Criteria!$D$7=1,"","-" & TEXT(Criteria!B6,"mmm")) & " ","") & TEXT($B204,"#") -> 1980 | E204: =SUMIFS(Data!E:E,Data!$A:$A,Criteria!$B$10,Data!$C:$C,REPORT!$B204,Data!$B:$B,$C204) -> 67520069 | F204: =SUMIFS(Data!F:F,Data!$A:$A,Criteria!$B$10,Data!$C:$C,REPORT!$B204,Data!$B:$B,$C204) -> 5708662625 | G204: =SUMIFS(Data!G:G,Data!$A:$A,Criteria!$B$11,Data!$C:$C,$B204,Data!$B:$B,$C204) -> 1194570 | H204: =IF(E204,G204/E204) -> 0.01769207315 | I204: =SUMIFS(Data!H:H,Data!$A:$A,Criteria!$B$11,Data!$C:$C,$B204,Data!$B:$B,$C204) -> 348267870 | J204: =SUMIFS(Data!G:G,Data!$A:$A,Criteria!$B$10,Data!$C:$C,$B204,Data!$B:$B,$C204) -> 1188123 | K204: =IF(E204,J204/E204) -> 0.01759659043 | L204: =SUMIFS(Data!H:H,Data!$A:$A,Criteria!$B$10,Data!$C:$C,$B204,Data!$B:$B,$C204) -> 345914368 | M204: =J204-G204 -> -6447
B205: =B204+1 -> 1981 | C205: EE | D205: =IF((Criteria!$C$7-($B205))=30,"Jan" & IF(Criteria!$D$7=1,"","-" & TEXT(Criteria!B7,"mmm")) & " ","") & TEXT($B205,"#") -> 1981 | E205: =SUMIFS(Data!E:E,Data!$A:$A,Criteria!$B$10,Data!$C:$C,REPORT!$B205,Data!$B:$B,$C205) -> 77034919 | F205: =SUMIFS(Data!F:F,Data!$A:$A,Criteria!$B$10,Data!$C:$C,REPORT!$B205,Data!$B:$B,$C205) -> 6405200375 | G205: =SUMIFS(Data!G:G,Data!$A:$A,Criteria!$B$11,Data!$C:$C,$B205,Data!$B:$B,$C205) -> 1493447 | H205: 0.01938662388 | I205: =SUMIFS(Data!H:H,Data!$A:$A,Criteria!$B$11,Data!$C:$C,$B205,Data!$B:$B,$C205) -> 385648574 | J205: =SUMIFS(Data!G:G,Data!$A:$A,Criteria!$B$10,Data!$C:$C,$B205,Data!$B:$B,$C205) -> 1484436 | K205: 0.01926965095 | L205: =SUMIFS(Data!H:H,Data!$A:$A,Criteria!$B$10,Data!$C:$C,$B205,Data!$B:$B,$C205) -> 382944523 | M205: =J205-G205 -> -9011
B206: =B205+1 -> 1982 | C206: EE | D206: =IF((Criteria!$C$7-($B206))=30,"Jan" & IF(Criteria!$D$7=1,"","-" & TEXT(Criteria!B8,"mmm")) & " ","") & TEXT($B206,"#") -> 1982 | E206: =SUMIFS(Data!E:E,Data!$A:$A,Criteria!$B$10,Data!$C:$C,REPORT!$B206,Data!$B:$B,$C206) -> 69212006 | F206: =SUMIFS(Data!F:F,Data!$A:$A,Criteria!$B$10,Data!$C:$C,REPORT!$B206,Data!$B:$B,$C206) -> 6383753750 | G206: =SUMIFS(Data!G:G,Data!$A:$A,Criteria!$B$11,Data!$C:$C,$B206,Data!$B:$B,$C206) -> 1646865 | H206: 0.02379449889 | I206: =SUMIFS(Data!H:H,Data!$A:$A,Criteria!$B$11,Data!$C:$C,$B206,Data!$B:$B,$C206) -> 470112153 | J206: =SUMIFS(Data!G:G,Data!$A:$A,Criteria!$B$10,Data!$C:$C,$B206,Data!$B:$B,$C206) -> 1635772 | K206: 0.02363422323 | L206: =SUMIFS(Data!H:H,Data!$A:$A,Criteria!$B$10,Data!$C:$C,$B206,Data!$B:$B,$C206) -> 465995612 | M206: -11093
B207: 1983 | C207: EE | D207: =IF((Criteria!$C$7-($B207))=30,"Jan" & IF(Criteria!$D$7=1,"","-" & TEXT(Criteria!B9,"mmm")) & " ","") & TEXT($B207,"#") -> 1983 | E207: =SUMIFS(Data!E:E,Data!$A:$A,Criteria!$B$10,Data!$C:$C,REPORT!$B207,Data!$B:$B,$C207) -> 70257404 | F207: =SUMIFS(Data!F:F,Data!$A:$A,Criteria!$B$10,Data!$C:$C,REPORT!$B207,Data!$B:$B,$C207) -> 7866520875 | G207: =SUMIFS(Data!G:G,Data!$A:$A,Criteria!$B$11,Data!$C:$C,$B207,Data!$B:$B,$C207) -> 1984931 | H207: 0.0282522679 | I207: =SUMIFS(Data!H:H,Data!$A:$A,Criteria!$B$11,Data!$C:$C,$B207,Data!$B:$B,$C207) -> 572581972 | J207: =SUMIFS(Data!G:G,Data!$A:$A,Criteria!$B$10,Data!$C:$C,$B207,Data!$B:$B,$C207) -> 1971157 | K207: 0.02805621739 | L207: =SUMIFS(Data!H:H,Data!$A:$A,Criteria!$B$10,Data!$C:$C,$B207,Data!$B:$B,$C207) -> 567154313 | M207: -13774
B208: 1984 | C208: EE | D208: =IF((Criteria!$C$7-($B208))=30,"Jan" & IF(Criteria!$D$7=1,"","-" & TEXT(Criteria!B10,"mmm")) & " ","") & TEXT($B208,"#") -> 1984 | E208: =SUMIFS(Data!E:E,Data!$A:$A,Criteria!$B$10,Data!$C:$C,REPORT!$B208,Data!$B:$B,$C208) -> 73150912 | F208: =SUMIFS(Data!F:F,Data!$A:$A,Criteria!$B$10,Data!$C:$C,REPORT!$B208,Data!$B:$B,$C208) -> 8037288175 | G208: =SUMIFS(Data!G:G,Data!$A:$A,Criteria!$B$11,Data!$C:$C,$B208,Data!$B:$B,$C208) -> 2419018 | H208: 0.03306887001 | I208: =SUMIFS(Data!H:H,Data!$A:$A,Criteria!$B$11,Data!$C:$C,$B208,Data!$B:$B,$C208) -> 647816904 | J208: =SUMIFS(Data!G:G,Data!$A:$A,Criteria!$B$10,Data!$C:$C,$B208,Data!$B:$B,$C208) -> 2401317 | K208: 0.0328268908 | L208: =SUMIFS(Data!H:H,Data!$A:$A,Criteria!$B$10,Data!$C:$C,$B208,Data!$B:$B,$C208) -> 640905949 | M208: -17701
B209: 1985 | C209: EE | D209: =IF((Criteria!$C$7-($B209))=30,"Jan" & IF(Criteria!$D$7=1,"","-" & TEXT(Criteria!B11,"mmm")) & " ","") & TEXT($B209,"#") -> 1985 | E209: =SUMIFS(Data!E:E,Data!$A:$A,Criteria!$B$10,Data!$C:$C,REPORT!$B209,Data!$B:$B,$C209) -> 80292877 | F209: =SUMIFS(Data!F:F,Data!$A:$A,Criteria!$B$10,Data!$C:$C,REPORT!$B209,Data!$B:$B,$C209) -> 11023641350 | G209: =SUMIFS(Data!G:G,Data!$A:$A,Criteria!$B$11,Data!$C:$C,$B209,Data!$B:$B,$C209) -> 3062251 | H209: 0.03813851383 | I209: =SUMIFS(Data!H:H,Data!$A:$A,Criteria!$B$11,Data!$C:$C,$B209,Data!$B:$B,$C209) -> 1022185294 | J209: =SUMIFS(Data!G:G,Data!$A:$A,Criteria!$B$10,Data!$C:$C,$B209,Data!$B:$B,$C209) -> 3039980 | K209: 0.03786114178 | L209: =SUMIFS(Data!H:H,Data!$A:$A,Criteria!$B$10,Data!$C:$C,$B209,Data!$B:$B,$C209) -> 1011905727 | M209: -22271
B210: 1986 | C210: EE | D210: =IF((Criteria!$C$7-($B210))=30,"Jan" & IF(Criteria!$D$7=1,"","-" & TEXT(Criteria!B12,"mmm")) & " ","") & TEXT($B210,"#") -> 1986 | E210: =SUMIFS(Data!E:E,Data!$A:$A,Criteria!$B$10,Data!$C:$C,REPORT!$B210,Data!$B:$B,$C210) -> 100235119 | F210: =SUMIFS(Data!F:F,Data!$A:$A,Criteria!$B$10,Data!$C:$C,REPORT!$B210,Data!$B:$B,$C210) -> 23973820725 | G210: =SUMIFS(Data!G:G,Data!$A:$A,Criteria!$B$11,Data!$C:$C,$B210,Data!$B:$B,$C210) -> 4564628 | H210: 0.04553920867 | I210: =SUMIFS(Data!H:H,Data!$A:$A,Criteria!$B$11,Data!$C:$C,$B210,Data!$B:$B,$C210) -> 2489930133 | J210: =SUMIFS(Data!G:G,Data!$A:$A,Criteria!$B$10,Data!$C:$C,$B210,Data!$B:$B,$C210) -> 4528292 | K210: 0.04517670099 | L210: =SUMIFS(Data!H:H,Data!$A:$A,Criteria!$B$10,Data!$C:$C,$B210,Data!$B:$B,$C210) -> 2460251271 | M210: -36336
B211: 1987 | C211: EE | D211: =IF((Criteria!$C$7-($B211))=30,"Jan" & IF(Criteria!$D$7=1,"","-" & TEXT(Criteria!B13,"mmm")) & " ","") & TEXT($B211,"#") -> 1987 | E211: =SUMIFS(Data!E:E,Data!$A:$A,Criteria!$B$10,Data!$C:$C,REPORT!$B211,Data!$B:$B,$C211) -> 94991633 | F211: =SUMIFS(Data!F:F,Data!$A:$A,Criteria!$B$10,Data!$C:$C,REPORT!$B211,Data!$B:$B,$C211) -> 13899623150 | G211: =SUMIFS(Data!G:G,Data!$A:$A,Criteria!$B$11,Data!$C:$C,$B211,Data!$B:$B,$C211) -> 4733748 | H211: 0.04983331532 | I211: =SUMIFS(Data!H:H,Data!$A:$A,Criteria!$B$11,Data!$C:$C,$B211,Data!$B:$B,$C211) -> 1472379483 | J211: =SUMIFS(Data!G:G,Data!$A:$A,Criteria!$B$10,Data!$C:$C,$B211,Data!$B:$B,$C211) -> 4696625 | K211: 0.04944251248 | L211: =SUMIFS(Data!H:H,Data!$A:$A,Criteria!$B$10,Data!$C:$C,$B211,Data!$B:$B,$C211) -> 1456421005 | M211: -37123
B212: 1988 | C212: EE | D212: =IF((Criteria!$C$7-($B212))=30,"Jan" & IF(Criteria!$D$7=1,"","-" & TEXT(Criteria!B14,"mmm")) & " ","") & TEXT($B212,"#") -> 1988 | E212: =SUMIFS(Data!E:E,Data!$A:$A,Criteria!$B$10,Data!$C:$C,REPORT!$B212,Data!$B:$B,$C212) -> 100055252 | F212: =SUMIFS(Data!F:F,Data!$A:$A,Criteria!$B$10,Data!$C:$C,REPORT!$B212,Data!$B:$B,$C212) -> 14991175075 | G212: =SUMIFS(Data!G:G,Data!$A:$A,Criteria!$B$11,Data!$C:$C,$B212,Data!$B:$B,$C212) -> 5803126 | H212: 0.05799921427 | I212: =SUMIFS(Data!H:H,Data!$A:$A,Criteria!$B$11,Data!$C:$C,$B212,Data!$B:$B,$C212) -> 1851834960 | J212: =SUMIFS(Data!G:G,Data!$A:$A,Criteria!$B$10,Data!$C:$C,$B212,Data!$B:$B,$C212) -> 5757953 | K212: 0.05754773373 | L212: =SUMIFS(Data!H:H,Data!$A:$A,Criteria!$B$10,Data!$C:$C,$B212,Data!$B:$B,$C212) -> 1832121919 | M212: -45173
B213: 1989 | C213: EE | D213: =IF((Criteria!$C$7-($B213))=30,"Jan" & IF(Criteria!$D$7=1,"","-" & TEXT(Criteria!B15,"mmm")) & " ","") & TEXT($B213,"#") -> 1989 | E213: =SUMIFS(Data!E:E,Data!$A:$A,Criteria!$B$10,Data!$C:$C,REPORT!$B213,Data!$B:$B,$C213) -> 100484611 | F213: =SUMIFS(Data!F:F,Data!$A:$A,Criteria!$B$10,Data!$C:$C,REPORT!$B213,Data!$B:$B,$C213) -> 15283043675 | G213: =SUMIFS(Data!G:G,Data!$A:$A,Criteria!$B$11,Data!$C:$C,$B213,Data!$B:$B,$C213) -> 6653631 | H213: 0.06621542278 | I213: =SUMIFS(Data!H:H,Data!$A:$A,Criteria!$B$11,Data!$C:$C,$B213,Data!$B:$B,$C213) -> 2143201058 | J213: =SUMIFS(Data!G:G,Data!$A:$A,Criteria!$B$10,Data!$C:$C,$B213,Data!$B:$B,$C213) -> 6599199 | K213: 0.06567372789 | L213: =SUMIFS(Data!H:H,Data!$A:$A,Criteria!$B$10,Data!$C:$C,$B213,Data!$B:$B,$C213) -> 2120069739 | M213: -54432
... 21 more rows

Sheet Criteria (hidden)
A1: Months Info | H1: Email Info
A3: Earliest Month: | B3: =MIN(Data!K:K) -> 1999-01-31 | H3: To: | I3: Ron Lewis
A4: Latest Month: | B4: =MAX(Data!K:K) -> 2024-04-30 | H4: Cc: | I4: FABStats, Angie Williams, Richard Hathaway
A5: # Month: | B5: =(YEAR(B4)-YEAR(B3))*12+(MONTH(B4)-MONTH(B3)) -> 303 | H5: Subject: | I5: ="Replacement file for PDWeb Reports -- MUD" -> Replacement file for PDWeb Reports -- MUD
A6: Selected Month By # | B6: 1 | C6: Year | D6: Month | E6: EE Mixed Year
A7: Selected Month | B7: =OFFSET($A$13,$B$6,0) -> 2024-04-30 | C7: =YEAR(B7) -> 2024 | D7: =MONTH(B7) -> 4 | E7: =C7-30 -> 1994
A8: Report Month | B8: =DATE(YEAR($B$7),MONTH($B$7)+1,1) -> 2024-05-01
A9: Previous Month | B9: =DATE(YEAR($B$7),MONTH($B$7),0) -> 2024-03-31
A10: Selected TranMonth | B10: =YEAR(B7)*100+MONTH(B7) -> 202404
A11: Previous Tranmonth | B11: =YEAR(B9)*100+MONTH(B9) -> 202403
A13: Available Months
A14: =B4 -> 2024-04-30
A15: =IF(ROW()-ROW($A$14)<$B$5,DATE(YEAR(A14),MONTH(A14),0),"") -> 2024-03-31
A16: 2024-02-29
A17: 2024-01-31
A18: 2023-12-31
A19: 2023-11-30
A20: 2023-10-31
A21: 2023-09-30
A22: 2023-08-31
A23: 2023-07-31
A24: 2023-06-30
A25: 2023-05-31
A26: 2023-04-30
A27: 2023-03-31
A28: 2023-02-28
A29: 2023-01-31
A30: 2022-12-31
A31: 2022-11-30
A32: 2022-10-31
A33: 2022-09-30
A34: 2022-08-31
A35: 2022-07-31
A36: 2022-06-30
A37: 2022-05-31
A38: 2022-04-30
A39: 2022-03-31
A40: 2022-02-28
A41: 2022-01-31
A42: 2021-12-31
A43: 2021-11-30
A44: 2021-10-31
A45: 2021-09-30
A46: 2021-08-31
A47: 2021-07-31
A48: 2021-06-30
A49: 2021-05-31
A50: 2021-04-30
A51: 2021-03-31
A52: 2021-02-28
A53: 2021-01-31
A54: 2020-12-31
A55: 2020-11-30
A56: 2020-10-31
A57: 2020-09-30
A58: 2020-08-31
A59: 2020-07-31
A60: 2020-06-30
A61: 2020-05-31
A62: 2020-04-30
A63: 2020-03-31
A64: 2020-02-29
A65: 2020-01-31
A66: 2019-12-31
A67: 2019-11-30
A68: 2019-10-31
A69: 2019-09-30
A70: 2019-08-31
A71: 2019-07-31
A72: 2019-06-30
A73: 2019-05-31
A74: 2019-04-30
A75: 2019-03-31
A76: 2019-02-28
A77: 2019-01-31
A78: 2018-12-31
A79: =IF(ROW()-ROW($A$14)<$B$5,DATE(YEAR(A78),MONTH(A78),0),"") -> 2018-11-30
A80: 2018-10-31
A81: 2018-09-30
A82: 2018-08-31
A83: 2018-07-31
A84: 2018-06-30
A85: 2018-05-31
A86: 2018-04-30
A87: 2018-03-31
A88: 2018-02-28
A89: 2018-01-31
A90: 2017-12-31
A91: 2017-11-30
A92: 2017-10-31
A93: 2017-09-30
A94: 2017-08-31
A95: 2017-07-31
A96: 2017-06-30
A97: 2017-05-31
A98: 2017-04-30
A99: 2017-03-31
A100: 2017-02-28
A101: 2017-01-31
A102: 2016-12-31
A103: 2016-11-30
A104: 2016-10-31
A105: 2016-09-30
A106: 2016-08-31
A107: 2016-07-31
A108: 2016-06-30
A109: 2016-05-31
A110: 2016-04-30
A111: 2016-03-31
A112: 2016-02-29
A113: 2016-01-31
A114: 2015-12-31
A115: 2015-11-30
A116: 2015-10-31
A117: 2015-09-30
A118: 2015-08-31
A119: 2015-07-31
A120: 2015-06-30
A121: 2015-05-31
A122: 2015-04-30
A123: 2015-03-31
A124: 2015-02-28
A125: 2015-01-31
A126: 2014-12-31
A127: 2014-11-30
A128: 2014-10-31
A129: 2014-09-30
A130: 2014-08-31
A131: 2014-07-31
A132: 2014-06-30
A133: 2014-05-31
A134: 2014-04-30
A135: 2014-03-31
A136: 2014-02-28
A137: 2014-01-31
A138: 2013-12-31
A139: 2013-11-30
A140: 2013-10-31
A141: 2013-09-30
A142: 2013-08-31
A143: =IF(ROW()-ROW($A$14)<$B$5,DATE(YEAR(A142),MONTH(A142),0),"") -> 2013-07-31
A144: 2013-06-30
A145: 2013-05-31
A146: 2013-04-30
A147: 2013-03-31
A148: 2013-02-28
A149: 2013-01-31
A150: 2012-12-31
A151: 2012-11-30
A152: 2012-10-31
A153: 2012-09-30
A154: 2012-08-31
A155: 2012-07-31
A156: 2012-06-30
A157: 2012-05-31
A158: 2012-04-30
A159: 2012-03-31
A160: 2012-02-29
A161: 2012-01-31
A162: 2011-12-31
A163: 2011-11-30
A164: 2011-10-31
A165: 2011-09-30
A166: 2011-08-31
A167: 2011-07-31
A168: 2011-06-30
A169: 2011-05-31
A170: 2011-04-30
A171: 2011-03-31
A172: 2011-02-28
A173: 2011-01-31
A174: 2010-12-31
A175: 2010-11-30
A176: 2010-10-31
A177: 2010-09-30
A178: 2010-08-31
A179: 2010-07-31
A180: 2010-06-30
A181: 2010-05-31
A182: 2010-04-30
A183: 2010-03-31
A184: 2010-02-28
A185: 2010-01-31
A186: 2009-12-31
A187: 2009-11-30
A188: 2009-10-31
A189: 2009-09-30
A190: 2009-08-31
A191: 2009-07-31
A192: 2009-06-30
A193: 2009-05-31
A194: 2009-04-30
A195: 2009-03-31
A196: 2009-02-28
A197: 2009-01-31
A198: 2008-12-31
A199: 2008-11-30
A200: 2008-10-31
A201: 2008-09-30
A202: 2008-08-31
... 80 more rows

Sheet Data (hidden)
A1: MudData.accdb -- v_Muddy
A3: tranMonth | B3: Series | C3: IssueYear | D3: NumMonths | E3: BondsIssued | F3: ParIssued | G3: BondsOut | H3: MatValue | I3: maturityPeriod | J3: fy | K3: RptDate
A4: 202404 | B4: E | C4: 1945 | D4: 12 | E4: 245505526 | F4: 13046226095 | G4: 474432 | H4: 80034962 | I4: 40 | J4: 2024 | K4: 2024-04-30
A5: 202404 | B5: E | C5: 1960 | D5: 12 | E5: 87668900 | F5: 4865044075 | G5: 218606 | H5: 88661583 | I5: 40 | J5: 2024 | K5: 2024-04-30
A6: 202404 | B6: E | C6: 1959 | D6: 12 | E6: 85933690 | F6: 4806681450 | G6: 207672 | H6: 78055443 | I6: 40 | J6: 2024 | K6: 2024-04-30
A7: 202404 | B7: E | C7: 1958 | D7: 12 | E7: 86030714 | F7: 5054709050 | G7: 224199 | H7: 79994983 | I7: 40 | J7: 2024 | K7: 2024-04-30
A8: 202404 | B8: E | C8: 1957 | D8: 12 | E8: 90523358 | F8: 5170467950 | G8: 204061 | H8: 80770025 | I8: 40 | J8: 2024 | K8: 2024-04-30
A9: 202404 | B9: E | C9: 1956 | D9: 12 | E9: 90877143 | F9: 5526628875 | G9: 174582 | H9: 71679809 | I9: 40 | J9: 2024 | K9: 2024-04-30
A10: 202404 | B10: E | C10: 1955 | D10: 12 | E10: 88041041 | F10: 5646147400 | G10: 158429 | H10: 62998437 | I10: 40 | J10: 2024 | K10: 2024-04-30
A11: 202404 | B11: E | C11: 1954 | D11: 12 | E11: 84126308 | F11: 5358585100 | G11: 139071 | H11: 53817211 | I11: 40 | J11: 2024 | K11: 2024-04-30
A12: 202404 | B12: E | C12: 1953 | D12: 12 | E12: 83880950 | F12: 5215142575 | G12: 135652 | H12: 48639067 | I12: 40 | J12: 2024 | K12: 2024-04-30
A13: 202404 | B13: E | C13: 1952 | D13: 12 | E13: 77093372 | F13: 4561017675 | G13: 121827 | H13: 42890889 | I13: 40 | J13: 2024 | K13: 2024-04-30
A14: 202404 | B14: E | C14: 1950 | D14: 12 | E14: 63416111 | F14: 4894816990 | G14: 88789 | H14: 33068517 | I14: 40 | J14: 2024 | K14: 2024-04-30
A15: 202404 | B15: E | C15: 1948 | D15: 12 | E15: 61577319 | F15: 5603037375 | G15: 79489 | H15: 26439865 | I15: 40 | J15: 2024 | K15: 2024-04-30
A16: 202404 | B16: E | C16: 1961 | D16: 12 | E16: 87339293 | F16: 4974025950 | G16: 230649 | H16: 105052293 | I16: 40 | J16: 2024 | K16: 2024-04-30
A17: 202404 | B17: E | C17: 1946 | D17: 12 | E17: 84650016 | F17: 5771917640 | G17: 142543 | H17: 29115129 | I17: 40 | J17: 2024 | K17: 2024-04-30
A18: 202404 | B18: E | C18: 1951 | D18: 12 | E18: 69923481 | F18: 4327776600 | G18: 104660 | H18: 37182184 | I18: 40 | J18: 2024 | K18: 2024-04-30
A19: 202404 | B19: E | C19: 1944 | D19: 12 | E19: 317106076 | F19: 16493868260 | G19: 608213 | H19: 96621969 | I19: 40 | J19: 2024 | K19: 2024-04-30
A20: 202404 | B20: E | C20: 1943 | D20: 12 | E20: 274091322 | F20: 13871586310 | G20: 521413 | H20: 76502692 | I20: 40 | J20: 2024 | K20: 2024-04-30
A21: 202404 | B21: E | C21: 1942 | D21: 12 | E21: 147177997 | F21: 8281451175 | G21: 326128 | H21: 46338715 | I21: 40 | J21: 2024 | K21: 2024-04-30
A22: 202404 | B22: E | C22: 1941 | D22: 12 | E22: 15533834 | F22: 1783227575 | G22: 33978 | H22: 6807648 | I22: 40 | J22: 2024 | K22: 2024-04-30
A23: 202404 | B23: D | C23: 1941 | D23: 4 | E23: 1974236 | F23: 610870175 | G23: 1060 | H23: 155125 | I23: 10 | J23: 2024 | K23: 2024-04-30
A24: 202404 | B24: D | C24: 1940 | D24: 12 | E24: 4783735 | F24: 1393599250 | G24: 1868 | H24: 197125 | I24: 10 | J24: 2024 | K24: 2024-04-30
A25: 202404 | B25: D | C25: 1939 | D25: 12 | E25: 3946636 | F25: 1148728950 | G25: 1334 | H25: 145175 | I25: 10 | J25: 2024 | K25: 2024-04-30
A26: 202404 | B26: C | C26: 1938 | D26: 12 | E26: 2771613 | F26: 720884550 | G26: 1340 | H26: 159350 | I26: 10 | J26: 2024 | K26: 2024-04-30
A27: 202404 | B27: C | C27: 1937 | D27: 12 | E27: 2346478 | F27: 626100600 | G27: 675 | H27: 41200 | I27: 10 | J27: 2024 | K27: 2024-04-30
A28: 202404 | B28: B | C28: 1936 | D28: 12 | E28: 1710441 | F28: 493075050 | G28: 842 | H28: 91350 | I28: 10 | J28: 2024 | K28: 2024-04-30
A29: 202404 | B29: A | C29: 1935 | D29: 12 | E29: 1026746 | F29: 271843525 | G29: 752 | H29: 61475 | I29: 10 | J29: 2024 | K29: 2024-04-30
A30: 202404 | B30: EE | C30: 1984 | D30: 12 | E30: 73150912 | F30: 8037288175 | G30: 2401317 | H30: 640905949 | I30: 30 | J30: 2024 | K30: 2024-04-30
A31: 202404 | B31: E | C31: 1947 | D31: 12 | E31: 61078475 | F31: 5398720610 | G31: 84604 | H31: 24427973 | I31: 40 | J31: 2024 | K31: 2024-04-30
A32: 202404 | B32: SN | C32: 1970 | D32: 12 | E32: 3958484 | F32: 131927825 | G32: 22688 | H32: 3916502 | I32: 30 | J32: 2024 | K32: 2024-04-30
A33: 202404 | B33: EE | C33: 1983 | D33: 12 | E33: 70257404 | F33: 7866520875 | G33: 1971157 | H33: 567154313 | I33: 30 | J33: 2024 | K33: 2024-04-30
A34: 202404 | B34: EE | C34: 1982 | D34: 12 | E34: 69212006 | F34: 6383753750 | G34: 1635772 | H34: 465995612 | I34: 30 | J34: 2024 | K34: 2024-04-30
A35: 202404 | B35: E | C35: 1949 | D35: 12 | E35: 64794503 | F35: 5561006370 | G35: 88299 | H35: 31019487 | I35: 40 | J35: 2024 | K35: 2024-04-30
A36: 202404 | B36: EE | C36: 1980 | D36: 12 | E36: 67520069 | F36: 5708662625 | G36: 1188123 | H36: 345914368 | I36: 30 | J36: 2024 | K36: 2024-04-30
A37: 202404 | B37: E | C37: 1962 | D37: 12 | E37: 88839858 | F37: 4891723800 | G37: 271716 | H37: 125418773 | I37: 40 | J37: 2024 | K37: 2024-04-30
A38: 202404 | B38: SN | C38: 1969 | D38: 12 | E38: 12710952 | F38: 445991500 | G38: 59001 | H38: 10480043 | I38: 30 | J38: 2024 | K38: 2024-04-30
A39: 202404 | B39: SN | C39: 1968 | D39: 12 | E39: 10178871 | F39: 349658250 | G39: 42562 | H39: 7848125 | I39: 30 | J39: 2024 | K39: 2024-04-30
A40: 202404 | B40: SN | C40: 1967 | D40: 12 | E40: 4001806 | F40: 136296525 | G40: 16650 | H40: 3142294 | I40: 30 | J40: 2024 | K40: 2024-04-30
A41: 202404 | B41: E | C41: 1980 | D41: 12 | E41: 28976425 | F41: 1331906075 | G41: 331976 | H41: 59917408 | I41: 30 | J41: 2024 | K41: 2024-04-30
A42: 202404 | B42: E | C42: 1979 | D42: 12 | E42: 149651969 | F42: 8666645200 | G42: 1994739 | H42: 504632986 | I42: 30 | J42: 2024 | K42: 2024-04-30
A43: 202404 | B43: E | C43: 1978 | D43: 12 | E43: 161741744 | F43: 10282853400 | G43: 2005484 | H43: 550185455 | I43: 30 | J43: 2024 | K43: 2024-04-30
A44: 202404 | B44: E | C44: 1977 | D44: 12 | E44: 158559383 | F44: 10323207800 | G44: 1634261 | H44: 579423454 | I44: 30 | J44: 2024 | K44: 2024-04-30
A45: 202404 | B45: E | C45: 1976 | D45: 12 | E45: 153251181 | F45: 9680278575 | G45: 1619979 | H45: 503408426 | I45: 30 | J45: 2024 | K45: 2024-04-30
A46: 202404 | B46: E | C46: 1975 | D46: 12 | E46: 146081235 | F46: 8935810750 | G46: 1165943 | H46: 365304839 | I46: 30 | J46: 2024 | K46: 2024-04-30
A47: 202404 | B47: E | C47: 1965 | D47: 12 | E47: 10149102 | F47: 516124325 | G47: 50818 | H47: 10960410 | I47: 30 | J47: 2024 | K47: 2024-04-30
A48: 202404 | B48: EE | C48: 1981 | D48: 12 | E48: 77034919 | F48: 6405200375 | G48: 1484436 | H48: 382944523 | I48: 30 | J48: 2024 | K48: 2024-04-30
A49: 202404 | B49: E | C49: 1974 | D49: 12 | E49: 143062567 | F49: 8468440375 | G49: 1013628 | H49: 294951691 | I49: 30 | J49: 2024 | K49: 2024-04-30
A50: 202404 | B50: E | C50: 1963 | D50: 12 | E50: 94698284 | F50: 5532030750 | G50: 324220 | H50: 169567406 | I50: 40 | J50: 2024 | K50: 2024-04-30
A51: 202404 | B51: E | C51: 1965 | D51: 11 | E51: 93454729 | F51: 5007012250 | G51: 341072 | H51: 146531046 | I51: 40 | J51: 2024 | K51: 2024-04-30
A52: 202404 | B52: E | C52: 1966 | D52: 12 | E52: 111972527 | F52: 6029679350 | G52: 472091 | H52: 113580954 | I52: 30 | J52: 2024 | K52: 2024-04-30
A53: 202404 | B53: E | C53: 1967 | D53: 12 | E53: 119503016 | F53: 6106807150 | G53: 556525 | H53: 131453295 | I53: 30 | J53: 2024 | K53: 2024-04-30
A54: 202404 | B54: E | C54: 1968 | D54: 12 | E54: 121444547 | F54: 5925047450 | G54: 601924 | H54: 143850522 | I54: 30 | J54: 2024 | K54: 2024-04-30
A55: 202404 | B55: E | C55: 1970 | D55: 12 | E55: 122282374 | F55: 6013069900 | G55: 669062 | H55: 171914077 | I55: 30 | J55: 2024 | K55: 2024-04-30
A56: 202404 | B56: E | C56: 1971 | D56: 12 | E56: 130002183 | F56: 7072612300 | G56: 731466 | H56: 191622138 | I56: 30 | J56: 2024 | K56: 2024-04-30
A57: 202404 | B57: E | C57: 1972 | D57: 12 | E57: 137420570 | F57: 7996016325 | G57: 912513 | H57: 246042527 | I57: 30 | J57: 2024 | K57: 2024-04-30
A58: 202404 | B58: E | C58: 1969 | D58: 12 | E58: 119793729 | F58: 5656724975 | G58: 607082 | H58: 146617960 | I58: 30 | J58: 2024 | K58: 2024-04-30
A59: 202404 | B59: E | C59: 1964 | D59: 12 | E59: 100307265 | F59: 5524982875 | G59: 359562 | H59: 180236651 | I59: 40 | J59: 2024 | K59: 2024-04-30
A60: 202404 | B60: E | C60: 1973 | D60: 12 | E60: 141856585 | F60: 8132922650 | G60: 942547 | H60: 269816253 | I60: 30 | J60: 2024 | K60: 2024-04-30
A61: 202404 | B61: G | C61: 1941 | D61: 12 | E61: 772805 | F61: 1277271400 | G61: 125 | H61: 47800 | I61: 12 | J61: 2024 | K61: 2024-04-30
A62: 202404 | B62: G | C62: 1952 | D62: 12 | E62: 147202 | F62: 163428200 | G62: 71 | H62: 35000 | I62: 12 | J62: 2024 | K62: 2024-04-30
A63: 202404 | B63: G | C63: 1951 | D63: 12 | E63: 507070 | F63: 644428000 | G63: 241 | H63: 97500 | I63: 12 | J63: 2024 | K63: 2024-04-30
A64: 202404 | B64: G | C64: 1950 | D64: 12 | E64: 857048 | F64: 1938695600 | G64: 230 | H64: 116500 | I64: 12 | J64: 2024 | K64: 2024-04-30
A65: 202404 | B65: G | C65: 1949 | D65: 12 | E65: 992606 | F65: 1433060200 | G65: 312 | H65: 189700 | I65: 12 | J65: 2024 | K65: 2024-04-30
A66: 202404 | B66: G | C66: 1948 | D66: 12 | E66: 1283790 | F66: 2542183700 | G66: 312 | H66: 158700 | I66: 12 | J66: 2024 | K66: 2024-04-30
A67: 202404 | B67: G | C67: 1947 | D67: 12 | E67: 1572990 | F67: 2247340000 | G67: 305 | H67: 174700 | I67: 12 | J67: 2024 | K67: 2024-04-30
A68: 202404 | B68: G | C68: 1946 | D68: 12 | E68: 1813130 | F68: 2663903100 | G68: 339 | H68: 188700 | I68: 12 | J68: 2024 | K68: 2024-04-30
A69: 202404 | B69: G | C69: 1945 | D69: 12 | E69: 2086461 | F69: 2542313400 | G69: 812 | H69: 314000 | I69: 12 | J69: 2024 | K69: 2024-04-30
A70: 202404 | B70: G | C70: 1944 | D70: 12 | E70: 2743135 | F70: 2894069000 | G70: 1249 | H70: 335800 | I70: 12 | J70: 2024 | K70: 2024-04-30
A71: 202404 | B71: F | C71: 1942 | D71: 12 | E71: 955390 | F71: 878916250 | G71: 2218 | H71: 172350 | I71: 12 | J71: 2024 | K71: 2024-04-30
A72: 202404 | B72: G | C72: 1942 | D72: 12 | E72: 1971799 | F72: 2493047100 | G72: 602 | H72: 193100 | I72: 12 | J72: 2024 | K72: 2024-04-30
A73: 202404 | B73: K | C73: 1954 | D73: 12 | E73: 269687 | F73: 981680000 | G73: 8 | H73: 7000 | I73: 12 | J73: 2024 | K73: 2024-04-30
A74: 202404 | B74: F | C74: 1952 | D74: 12 | E74: 39392 | F74: 55701400 | G74: 44 | H74: 13975 | I74: 12 | J74: 2024 | K74: 2024-04-30
A75: 202404 | B75: F | C75: 1951 | D75: 12 | E75: 128103 | F75: 169336075 | G75: 104 | H75: 8025 | I75: 12 | J75: 2024 | K75: 2024-04-30
A76: 202404 | B76: F | C76: 1950 | D76: 12 | E76: 199217 | F76: 553000900 | G76: 100 | H76: 15075 | I76: 12 | J76: 2024 | K76: 2024-04-30
A77: 202404 | B77: F | C77: 1949 | D77: 12 | E77: 205794 | F77: 320976200 | G77: 131 | H77: 49200 | I77: 12 | J77: 2024 | K77: 2024-04-30
A78: 202404 | B78: F | C78: 1948 | D78: 12 | E78: 263285 | F78: 664064925 | G78: 107 | H78: 16300 | I78: 12 | J78: 2024 | K78: 2024-04-30
A79: 202404 | B79: F | C79: 1947 | D79: 12 | E79: 294367 | F79: 458935800 | G79: 160 | H79: 44800 | I79: 12 | J79: 2024 | K79: 2024-04-30
A80: 202404 | B80: F | C80: 1946 | D80: 12 | E80: 325867 | F80: 444087525 | G80: 243 | H80: 33275 | I80: 12 | J80: 2024 | K80: 2024-04-30
A81: 202404 | B81: F | C81: 1945 | D81: 12 | E81: 746760 | F81: 804303925 | G81: 1216 | H81: 98550 | I81: 12 | J81: 2024 | K81: 2024-04-30
A82: 202404 | B82: F | C82: 1944 | D82: 12 | E82: 1134576 | F82: 1049357075 | G82: 2187 | H82: 237550 | I82: 12 | J82: 2024 | K82: 2024-04-30
A83: 202404 | B83: F | C83: 1943 | D83: 12 | E83: 1107907 | F83: 987330225 | G83: 2422 | H83: 214075 | I83: 12 | J83: 2024 | K83: 2024-04-30
A84: 202404 | B84: G | C84: 1943 | D84: 12 | E84: 2511966 | F84: 2598127000 | G84: 925 | H84: 267700 | I84: 12 | J84: 2024 | K84: 2024-04-30
A85: 202404 | B85: H | C85: 1960 | D85: 12 | E85: 929551 | F85: 1006778500 | G85: 507 | H85: 440500 | I85: 30 | J85: 2024 | K85: 2024-04-30
A86: 202404 | B86: EE | C86: 1985 | D86: 12 | E86: 80292877 | F86: 11023641350 | G86: 3039980 | H86: 1011905727 | I86: 30 | J86: 2024 | K86: 2024-04-30
A87: 202404 | B87: J | C87: 1957 | D87: 12 | E87: 41645 | F87: 44806525 | G87: 148 | H87: 27300 | I87: 12 | J87: 2024 | K87: 2024-04-30
A88: 202404 | B88: HH | C88: 1991 | D88: 12 | E88: 478442 | F88: 853585500 | G88: 7618 | H88: 10771500 | I88: 20 | J88: 2024 | K88: 2024-04-30
A89: 202404 | B89: H | C89: 1969 | D89: 12 | E89: 319605 | F89: 357152000 | G89: 423 | H89: 425500 | I89: 30 | J89: 2024 | K89: 2024-04-30
A90: 202404 | B90: H | C90: 1968 | D90: 12 | E90: 383771 | F90: 430938500 | G90: 572 | H90: 505500 | I90: 30 | J90: 2024 | K90: 2024-04-30
A91: 202404 | B91: H | C91: 1967 | D91: 12 | E91: 465284 | F91: 525980000 | G91: 587 | H91: 520000 | I91: 30 | J91: 2024 | K91: 2024-04-30
A92: 202404 | B92: H | C92: 1966 | D92: 12 | E92: 563143 | F92: 635282000 | G92: 710 | H92: 576000 | I92: 30 | J92: 2024 | K92: 2024-04-30
A93: 202404 | B93: H | C93: 1965 | D93: 12 | E93: 524779 | F93: 585896000 | G93: 557 | H93: 421000 | I93: 30 | J93: 2024 | K93: 2024-04-30
A94: 202404 | B94: H | C94: 1964 | D94: 12 | E94: 600683 | F94: 671587500 | G94: 563 | H94: 506000 | I94: 30 | J94: 2024 | K94: 2024-04-30
A95: 202404 | B95: H | C95: 1963 | D95: 12 | E95: 693154 | F95: 772975500 | G95: 527 | H95: 426000 | I95: 30 | J95: 2024 | K95: 2024-04-30
A96: 202404 | B96: K | C96: 1952 | D96: 12 | E96: 121011 | F96: 291932000 | G96: 17 | H96: 12000 | I96: 12 | J96: 2024 | K96: 2024-04-30
A97: 202404 | B97: H | C97: 1961 | D97: 12 | E97: 954441 | F97: 1041586000 | G97: 545 | H97: 440000 | I97: 30 | J97: 2024 | K97: 2024-04-30
A98: 202404 | B98: K | C98: 1953 | D98: 12 | E98: 151721 | F98: 302931500 | G98: 11 | H98: 12500 | I98: 12 | J98: 2024 | K98: 2024-04-30
A99: 202404 | B99: H | C99: 1959 | D99: 12 | E99: 649562 | F99: 718736500 | G99: 296 | H99: 252000 | I99: 30 | J99: 2024 | K99: 2024-04-30
A100: 202404 | B100: H | C100: 1958 | D100: 12 | E100: 773873 | F100: 890261000 | G100: 322 | H100: 266500 | I100: 30 | J100: 2024 | K100: 2024-04-30
A101: 202404 | B101: H | C101: 1957 | D101: 12 | E101: 607168 | F101: 632194500 | G101: 255 | H101: 197500 | I101: 30 | J101: 2024 | K101: 2024-04-30
A102: 202404 | B102: H | C102: 1956 | D102: 12 | E102: 810033 | F102: 893178000 | G102: 278 | H102: 217000 | I102: 30 | J102: 2024 | K102: 2024-04-30
A103: 202404 | B103: H | C103: 1955 | D103: 12 | E103: 996746 | F103: 1173096000 | G103: 289 | H103: 256000 | I103: 30 | J103: 2024 | K103: 2024-04-30
A104: 202404 | B104: H | C104: 1954 | D104: 12 | E104: 724523 | F104: 877690500 | G104: 197 | H104: 150000 | I104: 30 | J104: 2024 | K104: 2024-04-30
A105: 202404 | B105: H | C105: 1953 | D105: 12 | E105: 420121 | F105: 470502000 | G105: 132 | H105: 92000 | I105: 30 | J105: 2024 | K105: 2024-04-30
A106: 202404 | B106: K | C106: 1957 | D106: 12 | E106: 26850 | F106: 53978500 | G106: 7 | H106: 5000 | I106: 12 | J106: 2024 | K106: 2024-04-30
A107: 202404 | B107: K | C107: 1955 | D107: 12 | E107: 216188 | F107: 633925500 | G107: 38 | H107: 38500 | I107: 12 | J107: 2024 | K107: 2024-04-30
A108: 202404 | B108: K | C108: 1956 | D108: 12 | E108: 151323 | F108: 318825500 | G108: 15 | H108: 5500 | I108: 12 | J108: 2024 | K108: 2024-04-30
A109: 202404 | B109: H | C109: 1962 | D109: 12 | E109: 771830 | F109: 856767500 | G109: 663 | H109: 551500 | I109: 30 | J109: 2024 | K109: 2024-04-30
A110: 202404 | B110: H | C110: 1975 | D110: 12 | E110: 554492 | F110: 639172500 | G110: 2436 | H110: 2488500 | I110: 30 | J110: 2024 | K110: 2024-04-30
A111: 202404 | B111: HH | C111: 1983 | D111: 12 | E111: 552484 | F111: 734841000 | G111: 3725 | H111: 3252000 | I111: 20 | J111: 2024 | K111: 2024-04-30
A112: 202404 | B112: HH | C112: 1984 | D112: 12 | E112: 514442 | F112: 701350500 | G112: 4721 | H112: 5006000 | I112: 20 | J112: 2024 | K112: 2024-04-30
A113: 202404 | B113: HH | C113: 1985 | D113: 12 | E113: 495599 | F113: 691736000 | G113: 5485 | H113: 5417500 | I113: 20 | J113: 2024 | K113: 2024-04-30
A114: 202404 | B114: HH | C114: 1986 | D114: 12 | E114: 537812 | F114: 826212000 | G114: 5088 | H114: 5647000 | I114: 20 | J114: 2024 | K114: 2024-04-30
A115: 202404 | B115: HH | C115: 1987 | D115: 12 | E115: 399256 | F115: 637163500 | G115: 4361 | H115: 4985000 | I115: 20 | J115: 2024 | K115: 2024-04-30
A116: 202404 | B116: HH | C116: 1988 | D116: 12 | E116: 458335 | F116: 766099500 | G116: 5664 | H116: 7337500 | I116: 20 | J116: 2024 | K116: 2024-04-30
A117: 202404 | B117: HH | C117: 1989 | D117: 12 | E117: 414393 | F117: 714821000 | G117: 5944 | H117: 7884000 | I117: 20 | J117: 2024 | K117: 2024-04-30
A118: 202404 | B118: HH | C118: 1990 | D118: 12 | E118: 455721 | F118: 805967000 | G118: 7007 | H118: 8268000 | I118: 20 | J118: 2024 | K118: 2024-04-30
A119: 202404 | B119: H | C119: 1970 | D119: 12 | E119: 363284 | F119: 388314000 | G119: 705 | H119: 577000 | I119: 30 | J119: 2024 | K119: 2024-04-30
A120: 202404 | B120: H | C120: 1971 | D120: 12 | E120: 476493 | F120: 513936000 | G120: 995 | H120: 883500 | I120: 30 | J120: 2024 | K120: 2024-04-30
A121: 202404 | B121: HH | C121: 1982 | D121: 12 | E121: 578431 | F121: 801291500 | G121: 3541 | H121: 3584500 | I121: 20 | J121: 2024 | K121: 2024-04-30
A122: 202404 | B122: H | C122: 1973 | D122: 12 | E122: 547175 | F122: 611493000 | G122: 1756 | H122: 1633000 | I122: 30 | J122: 2024 | K122: 2024-04-30
A123: 202404 | B123: H | C123: 1972 | D123: 12 | E123: 591780 | F123: 649815000 | G123: 1804 | H123: 1643000 | I123: 30 | J123: 2024 | K123: 2024-04-30
A124: 202404 | B124: H | C124: 1976 | D124: 12 | E124: 545315 | F124: 642686500 | G124: 2516 | H124: 2490500 | I124: 30 | J124: 2024 | K124: 2024-04-30
A125: 202404 | B125: H | C125: 1977 | D125: 12 | E125: 501204 | F125: 612992500 | G125: 2736 | H125: 2719000 | I125: 30 | J125: 2024 | K125: 2024-04-30
A126: 202404 | B126: H | C126: 1978 | D126: 12 | E126: 459794 | F126: 579114500 | G126: 2685 | H126: 2827000 | I126: 30 | J126: 2024 | K126: 2024-04-30
A127: 202404 | B127: H | C127: 1979 | D127: 12 | E127: 434281 | F127: 557806500 | G127: 3006 | H127: 3205000 | I127: 30 | J127: 2024 | K127: 2024-04-30
A128: 202404 | B128: J | C128: 1952 | D128: 12 | E128: 73181 | F128: 122826450 | G128: 157 | H128: 12500 | I128: 12 | J128: 2024 | K128: 2024-04-30
A129: 202404 | B129: J | C129: 1953 | D129: 12 | E129: 122122 | F129: 181417725 | G129: 212 | H129: 18475 | I129: 12 | J129: 2024 | K129: 2024-04-30
A130: 202404 | B130: F | C130: 1941 | D130: 12 | E130: 223681 | F130: 313530400 | G130: 161 | H130: 61950 | I130: 12 | J130: 2024 | K130: 2024-04-30
A131: 202404 | B131: H | C131: 1952 | D131: 12 | E131: 178338 | F131: 191480500 | G131: 75 | H131: 72000 | I131: 30 | J131: 2024 | K131: 2024-04-30
A132: 202404 | B132: J | C132: 1955 | D132: 12 | E132: 191070 | F132: 331524900 | G132: 474 | H132: 59725 | I132: 12 | J132: 2024 | K132: 2024-04-30
A133: 202404 | B133: J | C133: 1956 | D133: 12 | E133: 164353 | F133: 210560125 | G133: 459 | H133: 67875 | I133: 12 | J133: 2024 | K133: 2024-04-30
A134: 202404 | B134: J | C134: 1954 | D134: 12 | E134: 200983 | F134: 459469075 | G134: 319 | H134: 44475 | I134: 12 | J134: 2024 | K134: 2024-04-30
A135: 202404 | B135: HH | C135: 1995 | D135: 12 | E135: 492750 | F135: 922625500 | G135: 12783 | H135: 17445000 | I135: 20 | J135: 2024 | K135: 2024-04-30
A136: 202404 | B136: HH | C136: 2002 | D136: 12 | E136: 968389 | F136: 1675694500 | G136: 89744 | H136: 127633500 | I136: 20 | J136: 2024 | K136: 2024-04-30
A137: 202404 | B137: H | C137: 1974 | D137: 12 | E137: 546102 | F137: 626635500 | G137: 1809 | H137: 1772500 | I137: 30 | J137: 2024 | K137: 2024-04-30
A138: 202404 | B138: HH | C138: 1981 | D138: 12 | E138: 595751 | F138: 831964000 | G138: 3010 | H138: 2868000 | I138: 20 | J138: 2024 | K138: 2024-04-30
A139: 202404 | B139: HH | C139: 2000 | D139: 12 | E139: 592939 | F139: 1062533500 | G139: 36927 | H139: 52430000 | I139: 20 | J139: 2024 | K139: 2024-04-30
A140: 202404 | B140: HH | C140: 1999 | D140: 12 | E140: 607141 | F140: 1091623000 | G140: 30495 | H140: 41780500 | I140: 20 | J140: 2024 | K140: 2024-04-30
A141: 202404 | B141: HH | C141: 1998 | D141: 12 | E141: 619141 | F141: 1099839000 | G141: 25774 | H141: 34656500 | I141: 20 | J141: 2024 | K141: 2024-04-30
A142: 202404 | B142: HH | C142: 1996 | D142: 12 | E142: 688846 | F142: 1254150500 | G142: 19893 | H142: 26235000 | I142: 20 | J142: 2024 | K142: 2024-04-30
A143: 202404 | B143: HH | C143: 2001 | D143: 12 | E143: 722400 | F143: 1255035500 | G143: 52893 | H143: 74088500 | I143: 20 | J143: 2024 | K143: 2024-04-30
A144: 202404 | B144: HH | C144: 1994 | D144: 12 | E144: 459323 | F144: 841500500 | G144: 10586 | H144: 15162000 | I144: 20 | J144: 2024 | K144: 2024-04-30
A145: 202404 | B145: HH | C145: 2003 | D145: 12 | E145: 671037 | F145: 1108465500 | G145: 77497 | H145: 109785500 | I145: 20 | J145: 2024 | K145: 2024-04-30
A146: 202404 | B146: HH | C146: 1993 | D146: 12 | E146: 555855 | F146: 1012376500 | G146: 10562 | H146: 13646000 | I146: 20 | J146: 2024 | K146: 2024-04-30
A147: 202404 | B147: HH | C147: 1992 | D147: 12 | E147: 680772 | F147: 1237302500 | G147: 12172 | H147: 15988500 | I147: 20 | J147: 2024 | K147: 2024-04-30
A148: 202404 | B148: EE | C148: 1992 | D148: 12 | E148: 111499928 | F148: 35681781325 | G148: 10086163 | H148: 7210724302 | I148: 30 | J148: 2024 | K148: 2024-04-30
A149: 202404 | B149: EE | C149: 1994 | D149: 4 | E149: 29882792 | F149: 7309086550 | G149: 4182232 | H149: 1547399676 | I149: 30 | J149: 2024 | K149: 2024-04-30
A150: 202404 | B150: HH | C150: 1997 | D150: 12 | E150: 662583 | F150: 1184576500 | G150: 23811 | H150: 31105000 | I150: 20 | J150: 2024 | K150: 2024-04-30
A151: 202404 | B151: EE | C151: 1986 | D151: 12 | E151: 100235119 | F151: 23973820725 | G151: 4528292 | H151: 2460251271 | I151: 30 | J151: 2024 | K151: 2024-04-30
A152: 202404 | B152: HH | C152: 1980 | D152: 12 | E152: 500337 | F152: 693429500 | G152: 1710 | H152: 1677000 | I152: 20 | J152: 2024 | K152: 2024-04-30
A153: 202404 | B153: EE | C153: 1993 | D153: 12 | E153: 99755595 | F153: 26234503125 | G153: 10813283 | H153: 5113666659 | I153: 30 | J153: 2024 | K153: 2024-04-30
A154: 202404 | B154: HH | C154: 2004 | D154: 4 | E154: 413206 | F154: 538240500 | G154: 114633 | H154: 81747500 | I154: 20 | J154: 2024 | K154: 2024-04-30
A155: 202404 | B155: EE | C155: 1991 | D155: 12 | E155: 92301122 | F155: 19014132825 | G155: 7859945 | H155: 3450136239 | I155: 30 | J155: 2024 | K155: 2024-04-30
A156: 202404 | B156: EE | C156: 1990 | D156: 12 | E156: 96373161 | F156: 16153294275 | G156: 7255753 | H156: 2572161143 | I156: 30 | J156: 2024 | K156: 2024-04-30
A157: 202404 | B157: EE | C157: 1989 | D157: 12 | E157: 100484611 | F157: 15283043675 | G157: 6599199 | H157: 2120069739 | I157: 30 | J157: 2024 | K157: 2024-04-30
A158: 202404 | B158: EE | C158: 1988 | D158: 12 | E158: 100055252 | F158: 14991175075 | G158: 5757953 | H158: 1832121919 | I158: 30 | J158: 2024 | K158: 2024-04-30
A159: 202404 | B159: EE | C159: 1987 | D159: 12 | E159: 94991633 | F159: 13899623150 | G159: 4696625 | H159: 1456421005 | I159: 30 | J159: 2024 | K159: 2024-04-30
A160: 202403 | B160: HH | C160: 1996 | D160: 12 | E160: 688846 | F160: 1254150500 | G160: 20085 | H160: 26463500 | I160: 20 | J160: 2024 | K160: 2024-03-31
A161: 202403 | B161: HH | C161: 1998 | D161: 12 | E161: 619141 | F161: 1099839000 | G161: 26076 | H161: 35067000 | I161: 20 | J161: 2024 | K161: 2024-03-31
A162: 202403 | B162: HH | C162: 1999 | D162: 12 | E162: 607141 | F162: 1091623000 | G162: 30777 | H162: 42446000 | I162: 20 | J162: 2024 | K162: 2024-03-31
A163: 202403 | B163: HH | C163: 2000 | D163: 12 | E163: 592939 | F163: 1062533500 | G163: 37401 | H163: 53109500 | I163: 20 | J163: 2024 | K163: 2024-03-31
A164: 202403 | B164: HH | C164: 1997 | D164: 12 | E164: 662583 | F164: 1184576500 | G164: 24045 | H164: 31498500 | I164: 20 | J164: 2024 | K164: 2024-03-31
A165: 202403 | B165: HH | C165: 2001 | D165: 12 | E165: 722400 | F165: 1255035500 | G165: 53866 | H165: 75513500 | I165: 20 | J165: 2024 | K165: 2024-03-31
A166: 202403 | B166: HH | C166: 2002 | D166: 12 | E166: 968389 | F166: 1675694500 | G166: 91850 | H166: 131655500 | I166: 20 | J166: 2024 | K166: 2024-03-31
A167: 202403 | B167: HH | C167: 2004 | D167: 3 | E167: 309905 | F167: 394756500 | G167: 90232 | H167: 65879500 | I167: 20 | J167: 2024 | K167: 2024-03-31
A168: 202403 | B168: F | C168: 1941 | D168: 12 | E168: 223681 | F168: 313530400 | G168: 161 | H168: 61950 | I168: 12 | J168: 2024 | K168: 2024-03-31
A169: 202403 | B169: F | C169: 1942 | D169: 12 | E169: 955390 | F169: 878916250 | G169: 2219 | H169: 172450 | I169: 12 | J169: 2024 | K169: 2024-03-31
A170: 202403 | B170: HH | C170: 1995 | D170: 12 | E170: 492750 | F170: 922625500 | G170: 12881 | H170: 17565000 | I170: 20 | J170: 2024 | K170: 2024-03-31
A171: 202403 | B171: HH | C171: 2003 | D171: 12 | E171: 671037 | F171: 1108465500 | G171: 81915 | H171: 117338500 | I171: 20 | J171: 2024 | K171: 2024-03-31
A172: 202403 | B172: HH | C172: 1987 | D172: 12 | E172: 399256 | F172: 637163500 | G172: 4362 | H172: 4985500 | I172: 20 | J172: 2024 | K172: 2024-03-31
A173: 202403 | B173: HH | C173: 1980 | D173: 12 | E173: 500337 | F173: 693429500 | G173: 1710 | H173: 1677000 | I173: 20 | J173: 2024 | K173: 2024-03-31
A174: 202403 | B174: HH | C174: 1981 | D174: 12 | E174: 595751 | F174: 831964000 | G174: 3023 | H174: 2878500 | I174: 20 | J174: 2024 | K174: 2024-03-31
A175: 202403 | B175: F | C175: 1943 | D175: 12 | E175: 1107907 | F175: 987330225 | G175: 2422 | H175: 214075 | I175: 12 | J175: 2024 | K175: 2024-03-31
A176: 202403 | B176: HH | C176: 1982 | D176: 12 | E176: 578431 | F176: 801291500 | G176: 3542 | H176: 3585000 | I176: 20 | J176: 2024 | K176: 2024-03-31
A177: 202403 | B177: HH | C177: 1983 | D177: 12 | E177: 552484 | F177: 734841000 | G177: 3725 | H177: 3252000 | I177: 20 | J177: 2024 | K177: 2024-03-31
A178: 202403 | B178: HH | C178: 1985 | D178: 12 | E178: 495599 | F178: 691736000 | G178: 5489 | H178: 5420500 | I178: 20 | J178: 2024 | K178: 2024-03-31
A179: 202403 | B179: HH | C179: 1986 | D179: 12 | E179: 537812 | F179: 826212000 | G179: 5100 | H179: 5655000 | I179: 20 | J179: 2024 | K179: 2024-03-31
A180: 202403 | B180: HH | C180: 1994 | D180: 12 | E180: 459323 | F180: 841500500 | G180: 10648 | H180: 15223000 | I180: 20 | J180: 2024 | K180: 2024-03-31
A181: 202403 | B181: HH | C181: 1988 | D181: 12 | E181: 458335 | F181: 766099500 | G181: 5678 | H181: 7414000 | I181: 20 | J181: 2024 | K181: 2024-03-31
A182: 202403 | B182: HH | C182: 1989 | D182: 12 | E182: 414393 | F182: 714821000 | G182: 5983 | H182: 7953000 | I182: 20 | J182: 2024 | K182: 2024-03-31
A183: 202403 | B183: HH | C183: 1990 | D183: 12 | E183: 455721 | F183: 805967000 | G183: 7042 | H183: 8317500 | I183: 20 | J183: 2024 | K183: 2024-03-31
A184: 202403 | B184: HH | C184: 1991 | D184: 12 | E184: 478442 | F184: 853585500 | G184: 7678 | H184: 10817000 | I184: 20 | J184: 2024 | K184: 2024-03-31
A185: 202403 | B185: HH | C185: 1992 | D185: 12 | E185: 680772 | F185: 1237302500 | G185: 12293 | H185: 16103500 | I185: 20 | J185: 2024 | K185: 2024-03-31
A186: 202403 | B186: HH | C186: 1993 | D186: 12 | E186: 555855 | F186: 1012376500 | G186: 10652 | H186: 13760000 | I186: 20 | J186: 2024 | K186: 2024-03-31
A187: 202403 | B187: HH | C187: 1984 | D187: 12 | E187: 514442 | F187: 701350500 | G187: 4772 | H187: 5044000 | I187: 20 | J187: 2024 | K187: 2024-03-31
A188: 202403 | B188: G | C188: 1946 | D188: 12 | E188: 1813130 | F188: 2663903100 | G188: 339 | H188: 188700 | I188: 12 | J188: 2024 | K188: 2024-03-31
A189: 202403 | B189: E | C189: 1953 | D189: 12 | E189: 83880950 | F189: 5215142575 | G189: 135792 | H189: 48724502 | I189: 40 | J189: 2024 | K189: 2024-03-31
A190: 202403 | B190: EE | C190: 1994 | D190: 3 | E190: 22412094 | F190: 5776782500 | G190: 3179873 | H190: 1251632377 | I190: 30 | J190: 2024 | K190: 2024-03-31
A191: 202403 | B191: H | C191: 1952 | D191: 12 | E191: 178338 | F191: 191480500 | G191: 75 | H191: 72000 | I191: 30 | J191: 2024 | K191: 2024-03-31
A192: 202403 | B192: K | C192: 1957 | D192: 12 | E192: 26850 | F192: 53978500 | G192: 7 | H192: 5000 | I192: 12 | J192: 2024 | K192: 2024-03-31
A193: 202403 | B193: K | C193: 1956 | D193: 12 | E193: 151323 | F193: 318825500 | G193: 15 | H193: 5500 | I193: 12 | J193: 2024 | K193: 2024-03-31
A194: 202403 | B194: K | C194: 1955 | D194: 12 | E194: 216188 | F194: 633925500 | G194: 38 | H194: 38500 | I194: 12 | J194: 2024 | K194: 2024-03-31
A195: 202403 | B195: K | C195: 1954 | D195: 12 | E195: 269687 | F195: 981680000 | G195: 8 | H195: 7000 | I195: 12 | J195: 2024 | K195: 2024-03-31
A196: 202403 | B196: K | C196: 1952 | D196: 12 | E196: 121011 | F196: 291932000 | G196: 17 | H196: 12000 | I196: 12 | J196: 2024 | K196: 2024-03-31
A197: 202403 | B197: G | C197: 1952 | D197: 12 | E197: 147202 | F197: 163428200 | G197: 71 | H197: 35000 | I197: 12 | J197: 2024 | K197: 2024-03-31
A198: 202403 | B198: G | C198: 1951 | D198: 12 | E198: 507070 | F198: 644428000 | G198: 241 | H198: 97500 | I198: 12 | J198: 2024 | K198: 2024-03-31
A199: 202403 | B199: G | C199: 1950 | D199: 12 | E199: 857048 | F199: 1938695600 | G199: 230 | H199: 116500 | I199: 12 | J199: 2024 | K199: 2024-03-31
A200: 202403 | B200: G | C200: 1949 | D200: 12 | E200: 992606 | F200: 1433060200 | G200: 312 | H200: 189700 | I200: 12 | J200: 2024 | K200: 2024-03-31
A201: 202403 | B201: K | C201: 1953 | D201: 12 | E201: 151721 | F201: 302931500 | G201: 11 | H201: 12500 | I201: 12 | J201: 2024 | K201: 2024-03-31
... 4299 more rows

Sheet Connections
A1: Name | B1: MUD
A2: File | B2: \\fiscalad.treasury.gov\fsdata\RSS\DPS\ACDMB\Data\MUD\MudData.accdb
A3: Query | B3: SELECT m.tranMonth,
B4: m.Series,
B5: m.IssueYear,
B6: m.NumMonths,
B7: m.BondsIssued,
B8: m.ParIssued,
B9: m.BondsOut,
B10: m.MatValue,
B11: m.maturityPeriod,
B12: m.fy,
B13: m.RptDate
B14: FROM v_Muddy AS M
B15: ORDER BY m.tranMonth DESC
A17: Name | B17: MUD Text File
A18: File | B18: \\fiscalad.treasury.gov\fsdata\RSS\DPS\ACDMB\Data\MUD\Input\MUDSPRD.TXT
